Workbook

Sheet Sheet1
B1: UNITED BROTHERS
B2: CONSIGNMENT STOCKIST OF GAIL (INDIA) LTD
B3: 301,HERITAGE PLAZA, R.S.MAHARAJ MARG,( TELI GALLI CROSS LANE), ANDHERI (E), MUMBAI - 400 069
B4: TEL: 26844612(4 LINES) FAX: 26822914 E-MAIL:,info@unibrothers.com , prashant@unibrothers.com , jyoti@unibrothers.com
B5: EX-WORKS PRICE OF HDPE "G-LEX / G-LENE " W.E.F. 3RD APRIL 2014
C7: Freight | E7: 2048.77 | H7: Freight | J7: 2061.17 | M7: Freight | O7: 2537.23 | R7: Freight | T7: 1959.23 | W7: Freight | Y7: 1624.98 | AB7: Freight | AD7: 2247.23 | AG7: Freight 2833.73
C8: DAMAN | H8: SILVASSA | M8: MUMBAI/BHIWANDI/THANE | R8: JALGAON | W8: NAGPUR | AB8: AURANGABAD | AG8: SOLAPUR
C9: BASIC | D9: DISC | E9: LOC | F9: EXCISE | G9: EX-WKS | H9: BASIC | I9: DISC | J9: LOC | K9: EXCISE | L9: EX-WKS | M9: BASIC | N9: DISC | O9: LOC | P9: EXCISE | Q9: EX-WKS | R9: BASIC | S9: DISC | T9: LOC | U9: EXCISE | V9: EX-WKS | W9: BASIC | X9: DISC | Y9: LOC | Z9: EXCISE | AA9: EX-WKS | AB9: BASIC | AC9: DISC | AE9: EXCISE | AF9: EX-WKS | AG9: BASIC | AH9: DISC | AJ9: EXCISE | AK9: EX-WKS
B10: BM
B11: B52A003A | C11: =IF(C$8="Daman",HLOOKUP($B11,'[1]PROPOSED EX WORKS'!$D$2:$AE$90,3,0)) -> 106900 | D11: 1000 | E11: =IF(C$8="Daman",HLOOKUP($B11,[1]LD!$D$2:$AE$90,3,0)) -> 2327.429534 | F11: =(C11-D11-E11)*12.36% -> 12801.56971 | G11: =C11-D11-E11+F11 -> 116374.1402 | H11: =IF(H$8="SILVASSA",HLOOKUP($B11,'[1]PROPOSED EX WORKS'!$D$2:$AE$90,4,0)) -> 106900 | I11: 1000 | J11: =IF(H$8="SILVASSA",HLOOKUP($B11,[1]LD!$D$2:$AE$90,4,0)) -> 2327.429534 | K11: =(H11-I11-J11)*12.36% -> 12801.56971 | L11: =H11-I11-J11+K11 -> 116374.1402 | M11: =IF(M$8="MUMBAI/BHIWANDI/THANE",HLOOKUP($B11,'[1]PROPOSED EX WORKS'!$D$2:$AE$90,5,0)) -> 106260 | N11: 1000 | O11: =IF(M$8="MUMBAI/BHIWANDI/THANE",HLOOKUP($B11,[1]LD!$D$2:$AE$90,5,0)) -> 2313.36386 | P11: =(M11-N11-O11)*12.36% -> 12724.20423 | Q11: =M11-N11-O11+P11 -> 115670.8404 | R11: =IF(R$8="JALGAON",HLOOKUP($B11,'[1]PROPOSED EX WORKS'!$D$2:$AE$90,6,0)) -> 107290 | S11: 1000 | T11: =IF(R$8="JALGAON",HLOOKUP($B11,[1]LD!$D$2:$AE$90,6,0)) -> 2336.000805 | U11: =(R11-S11-T11)*12.36% -> 12848.7143 | V11: =R11-S11-T11+U11 -> 116802.7135 | W11: =IF(W$8="NAGPUR",HLOOKUP($B11,'[1]PROPOSED EX WORKS'!$D$2:$AE$90,7,0)) -> 108340 | X11: 1000 | Y11: =IF(W$8="NAGPUR",HLOOKUP($B11,[1]LD!$D$2:$AE$90,7,0)) -> 2359.077301 | Z11: =(W11-X11-Y11)*12.36% -> 12975.64205 | AA11: =W11-X11-Y11+Z11 -> 117956.5647 | AB11: =IF(AB$8="AURANGABAD",HLOOKUP($B11,'[1]PROPOSED EX WORKS'!$D$2:$AE$90,8,0)) -> 106910 | AC11: 1000 | AD11: =IF(AB$8="AURANGABAD",HLOOKUP($B11,[1]LD!$D$2:$AE$90,8,0)) -> 2327.649311 | AE11: =(AB11-AC11-AD11)*12.36% -> 12802.77855 | AF11: =AB11-AC11-AD11+AE11 -> 116385.1292 | AG11: =IF(AG$8="SOLAPUR",HLOOKUP($B11,'[1]PROPOSED EX WORKS'!$D$2:$AE$90,9,0)) -> 106280 | AH11: 1000 | AI11: =IF(AG$8="SOLAPUR",HLOOKUP($B11,[1]LD!$D$2:$AE$90,9,0)) -> 2313.803412 | AJ11: =(AG11-AH11-AI11)*12.36% -> 12726.6219 | AK11: =AG11-AH11-AI11+AJ11 -> 115692.8185
B12: B63A003A | C12: =IF(C$8="Daman",HLOOKUP($B12,'[1]PROPOSED EX WORKS'!$D$2:$AE$90,3,0)) -> 106900 | D12: 1000 | E12: =IF(C$8="Daman",HLOOKUP($B12,[1]LD!$D$2:$AE$90,3,0)) -> 2327.429534 | F12: =(C12-D12-E12)*12.36% -> 12801.56971 | G12: =C12-D12-E12+F12 -> 116374.1402 | H12: =IF(H$8="SILVASSA",HLOOKUP($B12,'[1]PROPOSED EX WORKS'!$D$2:$AE$90,4,0)) -> 106900 | I12: 1000 | J12: =IF(H$8="SILVASSA",HLOOKUP($B12,[1]LD!$D$2:$AE$90,4,0)) -> 2327.429534 | K12: =(H12-I12-J12)*12.36% -> 12801.56971 | L12: =H12-I12-J12+K12 -> 116374.1402 | M12: =IF(M$8="MUMBAI/BHIWANDI/THANE",HLOOKUP($B12,'[1]PROPOSED EX WORKS'!$D$2:$AE$90,5,0)) -> 106260 | N12: 1000 | O12: =IF(M$8="MUMBAI/BHIWANDI/THANE",HLOOKUP($B12,[1]LD!$D$2:$AE$90,5,0)) -> 2313.36386 | P12: =(M12-N12-O12)*12.36% -> 12724.20423 | Q12: =M12-N12-O12+P12 -> 115670.8404 | R12: =IF(R$8="JALGAON",HLOOKUP($B12,'[1]PROPOSED EX WORKS'!$D$2:$AE$90,6,0)) -> 107290 | S12: 1000 | T12: =IF(R$8="JALGAON",HLOOKUP($B12,[1]LD!$D$2:$AE$90,6,0)) -> 2336.000805 | U12: =(R12-S12-T12)*12.36% -> 12848.7143 | V12: =R12-S12-T12+U12 -> 116802.7135 | W12: =IF(W$8="NAGPUR",HLOOKUP($B12,'[1]PROPOSED EX WORKS'!$D$2:$AE$90,7,0)) -> 108340 | X12: 1000 | Y12: =IF(W$8="NAGPUR",HLOOKUP($B12,[1]LD!$D$2:$AE$90,7,0)) -> 2359.077301 | Z12: =(W12-X12-Y12)*12.36% -> 12975.64205 | AA12: =W12-X12-Y12+Z12 -> 117956.5647 | AB12: =IF(AB$8="AURANGABAD",HLOOKUP($B12,'[1]PROPOSED EX WORKS'!$D$2:$AE$90,8,0)) -> 106910 | AC12: 1000 | AD12: =IF(AB$8="AURANGABAD",HLOOKUP($B12,[1]LD!$D$2:$AE$90,8,0)) -> 2327.649311 | AE12: =(AB12-AC12-AD12)*12.36% -> 12802.77855 | AF12: =AB12-AC12-AD12+AE12 -> 116385.1292 | AG12: =IF(AG$8="SOLAPUR",HLOOKUP($B12,'[1]PROPOSED EX WORKS'!$D$2:$AE$90,9,0)) -> 106280 | AH12: 1000 | AI12: =IF(AG$8="SOLAPUR",HLOOKUP($B12,[1]LD!$D$2:$AE$90,9,0)) -> 2313.803412 | AJ12: =(AG12-AH12-AI12)*12.36% -> 12726.6219 | AK12: =AG12-AH12-AI12+AJ12 -> 115692.8185
B13: B55HM0003A | C13: =IF(C$8="Daman",HLOOKUP($B13,'[1]PROPOSED EX WORKS'!$D$2:$AE$90,3,0)) -> 110850 | D13: 1000 | E13: =IF(C$8="Daman",HLOOKUP($B13,[1]LD!$D$2:$AE$90,3,0)) -> 2414.241118 | F13: =(C13-D13-E13)*12.36% -> 13279.0598 | G13: =C13-D13-E13+F13 -> 120714.8187 | H13: =IF(H$8="SILVASSA",HLOOKUP($B13,'[1]PROPOSED EX WORKS'!$D$2:$AE$90,4,0)) -> 110860 | I13: 1000 | J13: =IF(H$8="SILVASSA",HLOOKUP($B13,[1]LD!$D$2:$AE$90,4,0)) -> 2414.460894 | K13: =(H13-I13-J13)*12.36% -> 13280.26863 | L13: =H13-I13-J13+K13 -> 120725.8077 | M13: =IF(M$8="MUMBAI/BHIWANDI/THANE",HLOOKUP($B13,'[1]PROPOSED EX WORKS'!$D$2:$AE$90,5,0)) -> 110270 | N13: 1000 | O13: =IF(M$8="MUMBAI/BHIWANDI/THANE",HLOOKUP($B13,[1]LD!$D$2:$AE$90,5,0)) -> 2401.4941 | P13: =(M13-N13-O13)*12.36% -> 13208.94733 | Q13: =M13-N13-O13+P13 -> 120077.4532 | R13: =IF(R$8="JALGAON",HLOOKUP($B13,'[1]PROPOSED EX WORKS'!$D$2:$AE$90,6,0)) -> 111300 | S13: 1000 | T13: =IF(R$8="JALGAON",HLOOKUP($B13,[1]LD!$D$2:$AE$90,6,0)) -> 2424.131045 | U13: =(R13-S13-T13)*12.36% -> 13333.4574 | V13: =R13-S13-T13+U13 -> 121209.3264 | W13: =IF(W$8="NAGPUR",HLOOKUP($B13,'[1]PROPOSED EX WORKS'!$D$2:$AE$90,7,0)) -> 112440 | X13: 1000 | Y13: =IF(W$8="NAGPUR",HLOOKUP($B13,[1]LD!$D$2:$AE$90,7,0)) -> 2449.185527 | Z13: =(W13-X13-Y13)*12.36% -> 13471.26467 | AA13: =W13-X13-Y13+Z13 -> 122462.0791 | AB13: =IF(AB$8="AURANGABAD",HLOOKUP($B13,'[1]PROPOSED EX WORKS'!$D$2:$AE$90,8,0)) -> 110910 | AC13: 1000 | AD13: =IF(AB$8="AURANGABAD",HLOOKUP($B13,[1]LD!$D$2:$AE$90,8,0)) -> 2415.559775 | AE13: =(AB13-AC13-AD13)*12.36% -> 13286.31281 | AF13: =AB13-AC13-AD13+AE13 -> 120780.753 | AG13: =IF(AG$8="SOLAPUR",HLOOKUP($B13,'[1]PROPOSED EX WORKS'!$D$2:$AE$90,9,0)) -> 110390 | AH13: 1000 | AI13: =IF(AG$8="SOLAPUR",HLOOKUP($B13,[1]LD!$D$2:$AE$90,9,0)) -> 2404.131414 | AJ13: =(AG13-AH13-AI13)*12.36% -> 13223.45336 | AK13: =AG13-AH13-AI13+AJ13 -> 120209.3219
B14: B53EA0035A | C14: =IF(C$8="Daman",HLOOKUP($B14,'[1]PROPOSED EX WORKS'!$D$2:$AE$90,3,0)) -> 107400 | D14: 1000 | E14: =IF(C$8="Daman",HLOOKUP($B14,[1]LD!$D$2:$AE$90,3,0)) -> 2338.418342 | F14: =(C14-D14-E14)*12.36% -> 12862.01149 | G14: =C14-D14-E14+F14 -> 116923.5932 | H14: =IF(H$8="SILVASSA",HLOOKUP($B14,'[1]PROPOSED EX WORKS'!$D$2:$AE$90,4,0)) -> 107400 | I14: 1000 | J14: =IF(H$8="SILVASSA",HLOOKUP($B14,[1]LD!$D$2:$AE$90,4,0)) -> 2338.418342 | K14: =(H14-I14-J14)*12.36% -> 12862.01149 | L14: =H14-I14-J14+K14 -> 116923.5932 | M14: =IF(M$8="MUMBAI/BHIWANDI/THANE",HLOOKUP($B14,'[1]PROPOSED EX WORKS'!$D$2:$AE$90,5,0)) -> 106760
B15: CABLE-INSUL
B16: C43D006A | C16: =IF(C$8="Daman",HLOOKUP($B16,'[1]PROPOSED EX WORKS'!$D$2:$AE$90,3,0)) -> 104855 | D16: 1000 | E16: =IF(C$8="Daman",HLOOKUP($B16,[1]LD!$D$2:$AE$90,3,0)) -> 2282.48531 | F16: =(C16-D16-E16)*12.36% -> 12554.36282 | G16: =C16-D16-E16+F16 -> 114126.8775 | H16: =IF(H$8="SILVASSA",HLOOKUP($B16,'[1]PROPOSED EX WORKS'!$D$2:$AE$90,4,0)) -> 104855 | I16: 1000 | J16: =IF(H$8="SILVASSA",HLOOKUP($B16,[1]LD!$D$2:$AE$90,4,0)) -> 2282.48531 | K16: =(H16-I16-J16)*12.36% -> 12554.36282 | L16: =H16-I16-J16+K16 -> 114126.8775 | M16: =IF(M$8="MUMBAI/BHIWANDI/THANE",HLOOKUP($B16,'[1]PROPOSED EX WORKS'!$D$2:$AE$90,5,0)) -> 104237.5 | N16: 1000 | O16: =IF(M$8="MUMBAI/BHIWANDI/THANE",HLOOKUP($B16,[1]LD!$D$2:$AE$90,5,0)) -> 2268.914132 | P16: =(M16-N16-O16)*12.36% -> 12479.71721 | Q16: =M16-N16-O16+P16 -> 113448.3031 | R16: =IF(R$8="JALGAON",HLOOKUP($B16,'[1]PROPOSED EX WORKS'!$D$2:$AE$90,6,0)) -> 105273 | S16: 1000 | T16: =IF(R$8="JALGAON",HLOOKUP($B16,[1]LD!$D$2:$AE$90,6,0)) -> 2291.671953 | U16: =(R16-S16-T16)*12.36% -> 12604.89215 | V16: =R16-S16-T16+U16 -> 114586.2202 | W16: =IF(W$8="NAGPUR",HLOOKUP($B16,'[1]PROPOSED EX WORKS'!$D$2:$AE$90,7,0)) -> 106365.5 | X16: 1000 | Y16: =IF(W$8="NAGPUR",HLOOKUP($B16,[1]LD!$D$2:$AE$90,7,0)) -> 2315.682499 | Z16: =(W16-X16-Y16)*12.36% -> 12736.95744 | AA16: =W16-X16-Y16+Z16 -> 115786.7749 | AB16: =IF(AB$8="AURANGABAD",HLOOKUP($B16,'[1]PROPOSED EX WORKS'!$D$2:$AE$90,8,0)) -> 104921.5 | AC16: 1000 | AD16: =IF(AB$8="AURANGABAD",HLOOKUP($B16,[1]LD!$D$2:$AE$90,8,0)) -> 2283.946821 | AE16: =(AB16-AC16-AD16)*12.36% -> 12562.40157 | AF16: =AB16-AC16-AD16+AE16 -> 114199.9548 | AG16: =IF(AG$8="SOLAPUR",HLOOKUP($B16,'[1]PROPOSED EX WORKS'!$D$2:$AE$90,9,0)) -> 104313.5 | AH16: 1000 | AI16: =IF(AG$8="SOLAPUR",HLOOKUP($B16,[1]LD!$D$2:$AE$90,9,0)) -> 2270.584431 | AJ16: =(AG16-AH16-AI16)*12.36% -> 12488.90436 | AK16: =AG16-AH16-AI16+AJ16 -> 113531.8199
B18: SHETG
B19: E45A003A | C19: =IF(C$8="Daman",HLOOKUP($B19,'[1]PROPOSED EX WORKS'!$D$2:$AE$90,3,0)) -> 105950 | D19: 1000 | E19: =IF(C$8="Daman",HLOOKUP($B19,[1]LD!$D$2:$AE$90,3,0)) -> 2306.550799 | F19: =(C19-D19-E19)*12.36% -> 12686.73032 | G19: =C19-D19-E19+F19 -> 115330.1795 | H19: =IF(H$8="SILVASSA",HLOOKUP($B19,'[1]PROPOSED EX WORKS'!$D$2:$AE$90,4,0)) -> 105950 | I19: 1000 | J19: =IF(H$8="SILVASSA",HLOOKUP($B19,[1]LD!$D$2:$AE$90,4,0)) -> 2306.550799 | K19: =(H19-I19-J19)*12.36% -> 12686.73032 | L19: =H19-I19-J19+K19 -> 115330.1795 | M19: =IF(M$8="MUMBAI/BHIWANDI/THANE",HLOOKUP($B19,'[1]PROPOSED EX WORKS'!$D$2:$AE$90,5,0)) -> 105290 | N19: 1000 | O19: =IF(M$8="MUMBAI/BHIWANDI/THANE",HLOOKUP($B19,[1]LD!$D$2:$AE$90,5,0)) -> 2292.045573 | P19: =(M19-N19-O19)*12.36% -> 12606.94717 | Q19: =M19-N19-O19+P19 -> 114604.9016 | R19: =IF(R$8="JALGAON",HLOOKUP($B19,'[1]PROPOSED EX WORKS'!$D$2:$AE$90,6,0)) -> 106390 | S19: 1000 | T19: =IF(R$8="JALGAON",HLOOKUP($B19,[1]LD!$D$2:$AE$90,6,0)) -> 2316.22095 | U19: =(R19-S19-T19)*12.36% -> 12739.91909 | V19: =R19-S19-T19+U19 -> 115813.6981 | W19: =IF(W$8="NAGPUR",HLOOKUP($B19,'[1]PROPOSED EX WORKS'!$D$2:$AE$90,7,0)) -> 107530 | X19: 1000 | Y19: =IF(W$8="NAGPUR",HLOOKUP($B19,[1]LD!$D$2:$AE$90,7,0)) -> 2341.275432 | Z19: =(W19-X19-Y19)*12.36% -> 12877.72636 | AA19: =W19-X19-Y19+Z19 -> 117066.4509 | AB19: =IF(AB$8="AURANGABAD",HLOOKUP($B19,'[1]PROPOSED EX WORKS'!$D$2:$AE$90,8,0)) -> 106020 | AC19: 1000 | AD19: =IF(AB$8="AURANGABAD",HLOOKUP($B19,[1]LD!$D$2:$AE$90,8,0)) -> 2308.089232 | AE19: =(AB19-AC19-AD19)*12.36% -> 12695.19217 | AF19: =AB19-AC19-AD19+AE19 -> 115407.1029 | AG19: =IF(AG$8="SOLAPUR",HLOOKUP($B19,'[1]PROPOSED EX WORKS'!$D$2:$AE$90,9,0)) -> 105380 | AH19: 1000 | AI19: =IF(AG$8="SOLAPUR",HLOOKUP($B19,[1]LD!$D$2:$AE$90,9,0)) -> 2294.023558 | AJ19: =(AG19-AH19-AI19)*12.36% -> 12617.82669 | AK19: =AG19-AH19-AI19+AJ19 -> 114703.8031
B20: E45A003OG
B21: EXTR
B22: E52A003A | C22: =IF(C$8="Daman",HLOOKUP($B22,'[1]PROPOSED EX WORKS'!$D$2:$AE$90,3,0)) -> 107620 | D22: 1000 | E22: =IF(C$8="Daman",HLOOKUP($B22,[1]LD!$D$2:$AE$90,3,0)) -> 2343.253418 | F22: =(C22-D22-E22)*12.36% -> 12888.60588 | G22: =C22-D22-E22+F22 -> 117165.3525 | H22: =IF(H$8="SILVASSA",HLOOKUP($B22,'[1]PROPOSED EX WORKS'!$D$2:$AE$90,4,0)) -> 107620 | I22: 1000 | J22: =IF(H$8="SILVASSA",HLOOKUP($B22,[1]LD!$D$2:$AE$90,4,0)) -> 2343.253418 | K22: =(H22-I22-J22)*12.36% -> 12888.60588 | L22: =H22-I22-J22+K22 -> 117165.3525 | M22: =IF(M$8="MUMBAI/BHIWANDI/THANE",HLOOKUP($B22,'[1]PROPOSED EX WORKS'!$D$2:$AE$90,5,0)) -> 106960 | N22: 1000 | O22: =IF(M$8="MUMBAI/BHIWANDI/THANE",HLOOKUP($B22,[1]LD!$D$2:$AE$90,5,0)) -> 2328.748191 | P22: =(M22-N22-O22)*12.36% -> 12808.82272 | Q22: =M22-N22-O22+P22 -> 116440.0745 | R22: =IF(R$8="JALGAON",HLOOKUP($B22,'[1]PROPOSED EX WORKS'!$D$2:$AE$90,6,0)) -> 108060 | S22: 1000 | T22: =IF(R$8="JALGAON",HLOOKUP($B22,[1]LD!$D$2:$AE$90,6,0)) -> 2352.923569 | U22: =(R22-S22-T22)*12.36% -> 12941.79465 | V22: =R22-S22-T22+U22 -> 117648.8711 | W22: =IF(W$8="NAGPUR",HLOOKUP($B22,'[1]PROPOSED EX WORKS'!$D$2:$AE$90,7,0)) -> 109200 | X22: 1000 | Y22: =IF(W$8="NAGPUR",HLOOKUP($B22,[1]LD!$D$2:$AE$90,7,0)) -> 2377.978051 | Z22: =(W22-X22-Y22)*12.36% -> 13079.60191 | AA22: =W22-X22-Y22+Z22 -> 118901.6239 | AB22: =IF(AB$8="AURANGABAD",HLOOKUP($B22,'[1]PROPOSED EX WORKS'!$D$2:$AE$90,8,0)) -> 107680 | AC22: 1000 | AD22: =IF(AB$8="AURANGABAD",HLOOKUP($B22,[1]LD!$D$2:$AE$90,8,0)) -> 2344.572075 | AE22: =(AB22-AC22-AD22)*12.36% -> 12895.85889 | AF22: =AB22-AC22-AD22+AE22 -> 117231.2868 | AG22: =IF(AG$8="SOLAPUR",HLOOKUP($B22,'[1]PROPOSED EX WORKS'!$D$2:$AE$90,9,0)) -> 107050 | AH22: 1000 | AI22: =IF(AG$8="SOLAPUR",HLOOKUP($B22,[1]LD!$D$2:$AE$90,9,0)) -> 2330.726177 | AJ22: =(AG22-AH22-AI22)*12.36% -> 12819.70224 | AK22: =AG22-AH22-AI22+AJ22 -> 116538.9761
B23: E52A003OG
B24: E52U003A | C24: =IF(C$8="Daman",HLOOKUP($B24,'[1]PROPOSED EX WORKS'!$D$2:$AE$90,3,0)) -> 111400 | D24: 1000 | E24: =IF(C$8="Daman",HLOOKUP($B24,[1]LD!$D$2:$AE$90,3,0)) -> 2371.384766 | F24: =(C24-D24-E24)*12.36% -> 13352.33684 | G24: =C24-D24-E24+F24 -> 121380.9521 | H24: =IF(H$8="SILVASSA",HLOOKUP($B24,'[1]PROPOSED EX WORKS'!$D$2:$AE$90,4,0)) -> 111400 | I24: 1000 | J24: =IF(H$8="SILVASSA",HLOOKUP($B24,[1]LD!$D$2:$AE$90,4,0)) -> 2371.384766 | K24: =(H24-I24-J24)*12.36% -> 13352.33684 | L24: =H24-I24-J24+K24 -> 121380.9521 | M24: =IF(M$8="MUMBAI/BHIWANDI/THANE",HLOOKUP($B24,'[1]PROPOSED EX WORKS'!$D$2:$AE$90,5,0)) -> 110740 | N24: 1000 | O24: =IF(M$8="MUMBAI/BHIWANDI/THANE",HLOOKUP($B24,[1]LD!$D$2:$AE$90,5,0)) -> 2356.87954 | P24: =(M24-N24-O24)*12.36% -> 13272.55369 | Q24: =M24-N24-O24+P24 -> 120655.6741 | R24: =IF(R$8="JALGAON",HLOOKUP($B24,'[1]PROPOSED EX WORKS'!$D$2:$AE$90,6,0)) -> 111840 | S24: 1000 | T24: =IF(R$8="JALGAON",HLOOKUP($B24,[1]LD!$D$2:$AE$90,6,0)) -> 2381.054917 | U24: =(R24-S24-T24)*12.36% -> 13405.52561 | V24: =R24-S24-T24+U24 -> 121864.4707 | W24: =IF(W$8="NAGPUR",HLOOKUP($B24,'[1]PROPOSED EX WORKS'!$D$2:$AE$90,7,0)) -> 112980 | X24: 1000 | Y24: =IF(W$8="NAGPUR",HLOOKUP($B24,[1]LD!$D$2:$AE$90,7,0)) -> 2406.1094 | Z24: =(W24-X24-Y24)*12.36% -> 13543.33288 | AA24: =W24-X24-Y24+Z24 -> 123117.2235 | AB24: =IF(AB$8="AURANGABAD",HLOOKUP($B24,'[1]PROPOSED EX WORKS'!$D$2:$AE$90,8,0)) -> 111460 | AC24: 1000 | AD24: =IF(AB$8="AURANGABAD",HLOOKUP($B24,[1]LD!$D$2:$AE$90,8,0)) -> 2372.703423 | AE24: =(AB24-AC24-AD24)*12.36% -> 13359.58986 | AF24: =AB24-AC24-AD24+AE24 -> 121446.8864 | AG24: =IF(AG$8="SOLAPUR",HLOOKUP($B24,'[1]PROPOSED EX WORKS'!$D$2:$AE$90,9,0)) -> 110830 | AH24: 1000 | AI24: =IF(AG$8="SOLAPUR",HLOOKUP($B24,[1]LD!$D$2:$AE$90,9,0)) -> 2358.857525 | AJ24: =(AG24-AH24-AI24)*12.36% -> 13283.43321 | AK24: =AG24-AH24-AI24+AJ24 -> 120754.5757
B25: E52U003OG
B26: HM FILM
B27: F55HM0003A | C27: =IF(C$8="Daman",HLOOKUP($B27,'[1]PROPOSED EX WORKS'!$D$2:$AE$90,3,0)) -> 106400 | D27: 1000 | E27: =IF(C$8="Daman",HLOOKUP($B27,[1]LD!$D$2:$AE$90,3,0)) -> 2316.440726 | F27: =(C27-D27-E27)*12.36% -> 12741.12793 | G27: =C27-D27-E27+F27 -> 115824.6872 | H27: =IF(H$8="SILVASSA",HLOOKUP($B27,'[1]PROPOSED EX WORKS'!$D$2:$AE$90,4,0)) -> 106910 | I27: 1000 | J27: =IF(H$8="SILVASSA",HLOOKUP($B27,[1]LD!$D$2:$AE$90,4,0)) -> 2327.649311 | K27: =(H27-I27-J27)*12.36% -> 12802.77855 | L27: =H27-I27-J27+K27 -> 116385.1292 | M27: =IF(M$8="MUMBAI/BHIWANDI/THANE",HLOOKUP($B27,'[1]PROPOSED EX WORKS'!$D$2:$AE$90,5,0)) -> 106320 | N27: 1000 | O27: =IF(M$8="MUMBAI/BHIWANDI/THANE",HLOOKUP($B27,[1]LD!$D$2:$AE$90,5,0)) -> 2314.682517 | P27: =(M27-N27-O27)*12.36% -> 12731.45724 | Q27: =M27-N27-O27+P27 -> 115736.7747 | R27: =IF(R$8="JALGAON",HLOOKUP($B27,'[1]PROPOSED EX WORKS'!$D$2:$AE$90,6,0)) -> 107350 | S27: 1000 | T27: =IF(R$8="JALGAON",HLOOKUP($B27,[1]LD!$D$2:$AE$90,6,0)) -> 2337.319462 | U27: =(R27-S27-T27)*12.36% -> 12855.96731 | V27: =R27-S27-T27+U27 -> 116868.6479 | W27: =IF(W$8="NAGPUR",HLOOKUP($B27,'[1]PROPOSED EX WORKS'!$D$2:$AE$90,7,0)) -> 108490 | X27: 1000 | Y27: =IF(W$8="NAGPUR",HLOOKUP($B27,[1]LD!$D$2:$AE$90,7,0)) -> 2362.373944 | Z27: =(W27-X27-Y27)*12.36% -> 12993.77458 | AA27: =W27-X27-Y27+Z27 -> 118121.4006 | AB27: =IF(AB$8="AURANGABAD",HLOOKUP($B27,'[1]PROPOSED EX WORKS'!$D$2:$AE$90,8,0)) -> 106960 | AC27: 1000 | AD27: =IF(AB$8="AURANGABAD",HLOOKUP($B27,[1]LD!$D$2:$AE$90,8,0)) -> 2328.748191 | AE27: =(AB27-AC27-AD27)*12.36% -> 12808.82272 | AF27: =AB27-AC27-AD27+AE27 -> 116440.0745 | AG27: =IF(AG$8="SOLAPUR",HLOOKUP($B27,'[1]PROPOSED EX WORKS'!$D$2:$AE$90,9,0)) -> 106440 | AH27: 1000 | AI27: =IF(AG$8="SOLAPUR",HLOOKUP($B27,[1]LD!$D$2:$AE$90,9,0)) -> 2317.319831 | AJ27: =(AG27-AH27-AI27)*12.36% -> 12745.96327 | AK27: =AG27-AH27-AI27+AJ27 -> 115868.6434
B28: F55HM0003OG
B29: IM HIGH
B30: I50A180A | C30: =IF(C$8="Daman",HLOOKUP($B30,'[1]PROPOSED EX WORKS'!$D$2:$AE$90,3,0)) -> 103220 | D30: 1000 | E30: =IF(C$8="Daman",HLOOKUP($B30,[1]LD!$D$2:$AE$90,3,0)) -> 2246.551908 | F30: =(C30-D30-E30)*12.36% -> 12356.71818 | G30: =C30-D30-E30+F30 -> 112330.1663 | H30: =IF(H$8="SILVASSA",HLOOKUP($B30,'[1]PROPOSED EX WORKS'!$D$2:$AE$90,4,0)) -> 103230 | I30: 1000 | J30: =IF(H$8="SILVASSA",HLOOKUP($B30,[1]LD!$D$2:$AE$90,4,0)) -> 2246.771684 | K30: =(H30-I30-J30)*12.36% -> 12357.92702 | L30: =H30-I30-J30+K30 -> 112341.1553 | M30: =IF(M$8="MUMBAI/BHIWANDI/THANE",HLOOKUP($B30,'[1]PROPOSED EX WORKS'!$D$2:$AE$90,5,0)) -> 102700 | N30: 1000 | O30: =IF(M$8="MUMBAI/BHIWANDI/THANE",HLOOKUP($B30,[1]LD!$D$2:$AE$90,5,0)) -> 2235.123547 | P30: =(M30-N30-O30)*12.36% -> 12293.85873 | Q30: =M30-N30-O30+P30 -> 111758.7352 | R30: =IF(R$8="JALGAON",HLOOKUP($B30,'[1]PROPOSED EX WORKS'!$D$2:$AE$90,6,0)) -> 103660 | S30: 1000 | T30: =IF(R$8="JALGAON",HLOOKUP($B30,[1]LD!$D$2:$AE$90,6,0)) -> 2256.222059 | U30: =(R30-S30-T30)*12.36% -> 12409.90695 | V30: =R30-S30-T30+U30 -> 112813.6849 | W30: =IF(W$8="NAGPUR",HLOOKUP($B30,'[1]PROPOSED EX WORKS'!$D$2:$AE$90,7,0)) -> 104770 | X30: 1000 | Y30: =IF(W$8="NAGPUR",HLOOKUP($B30,[1]LD!$D$2:$AE$90,7,0)) -> 2280.617212 | Z30: =(W30-X30-Y30)*12.36% -> 12544.08771 | AA30: =W30-X30-Y30+Z30 -> 114033.4705 | AB30: =IF(AB$8="AURANGABAD",HLOOKUP($B30,'[1]PROPOSED EX WORKS'!$D$2:$AE$90,8,0)) -> 103300 | AC30: 1000 | AD30: =IF(AB$8="AURANGABAD",HLOOKUP($B30,[1]LD!$D$2:$AE$90,8,0)) -> 2248.310117 | AE30: =(AB30-AC30-AD30)*12.36% -> 12366.38887 | AF30: =AB30-AC30-AD30+AE30 -> 112418.0788 | AG30: =IF(AG$8="SOLAPUR",HLOOKUP($B30,'[1]PROPOSED EX WORKS'!$D$2:$AE$90,9,0)) -> 102840 | AH30: 1000 | AI30: =IF(AG$8="SOLAPUR",HLOOKUP($B30,[1]LD!$D$2:$AE$90,9,0)) -> 2238.200413 | AJ30: =(AG30-AH30-AI30)*12.36% -> 12310.78243 | AK30: =AG30-AH30-AI30+AJ30 -> 111912.582
B31: I50A180OG
B32: IM LOW
B33: I60A080A | C33: =IF(C$8="Daman",HLOOKUP($B33,'[1]PROPOSED EX WORKS'!$D$2:$AE$90,3,0)) -> 104590 | D33: 1000 | E33: =IF(C$8="Daman",HLOOKUP($B33,[1]LD!$D$2:$AE$90,3,0)) -> 2276.661241 | F33: =(C33-D33-E33)*12.36% -> 12522.32867 | G33: =C33-D33-E33+F33 -> 113835.6674 | H33: =IF(H$8="SILVASSA",HLOOKUP($B33,'[1]PROPOSED EX WORKS'!$D$2:$AE$90,4,0)) -> 104590 | I33: 1000 | J33: =IF(H$8="SILVASSA",HLOOKUP($B33,[1]LD!$D$2:$AE$90,4,0)) -> 2276.661241 | K33: =(H33-I33-J33)*12.36% -> 12522.32867 | L33: =H33-I33-J33+K33 -> 113835.6674 | M33: =IF(M$8="MUMBAI/BHIWANDI/THANE",HLOOKUP($B33,'[1]PROPOSED EX WORKS'!$D$2:$AE$90,5,0)) -> 103940 | N33: 1000 | O33: =IF(M$8="MUMBAI/BHIWANDI/THANE",HLOOKUP($B33,[1]LD!$D$2:$AE$90,5,0)) -> 2262.375791 | P33: =(M33-N33-O33)*12.36% -> 12443.75435 | Q33: =M33-N33-O33+P33 -> 113121.3786 | R33: =IF(R$8="JALGAON",HLOOKUP($B33,'[1]PROPOSED EX WORKS'!$D$2:$AE$90,6,0)) -> 105030 | S33: 1000 | T33: =IF(R$8="JALGAON",HLOOKUP($B33,[1]LD!$D$2:$AE$90,6,0)) -> 2286.331392 | U33: =(R33-S33-T33)*12.36% -> 12575.51744 | V33: =R33-S33-T33+U33 -> 114319.186 | W33: =IF(W$8="NAGPUR",HLOOKUP($B33,'[1]PROPOSED EX WORKS'!$D$2:$AE$90,7,0)) -> 106180 | X33: 1000 | Y33: =IF(W$8="NAGPUR",HLOOKUP($B33,[1]LD!$D$2:$AE$90,7,0)) -> 2311.605651 | Z33: =(W33-X33-Y33)*12.36% -> 12714.53354 | AA33: =W33-X33-Y33+Z33 -> 115582.9279 | AB33: =IF(AB$8="AURANGABAD",HLOOKUP($B33,'[1]PROPOSED EX WORKS'!$D$2:$AE$90,8,0)) -> 104660 | AC33: 1000 | AD33: =IF(AB$8="AURANGABAD",HLOOKUP($B33,[1]LD!$D$2:$AE$90,8,0)) -> 2278.199675 | AE33: =(AB33-AC33-AD33)*12.36% -> 12530.79052 | AF33: =AB33-AC33-AD33+AE33 -> 113912.5908 | AG33: =IF(AG$8="SOLAPUR",HLOOKUP($B33,'[1]PROPOSED EX WORKS'!$D$2:$AE$90,9,0)) -> 104020 | AH33: 1000 | AI33: =IF(AG$8="SOLAPUR",HLOOKUP($B33,[1]LD!$D$2:$AE$90,9,0)) -> 2264.134 | AJ33: =(AG33-AH33-AI33)*12.36% -> 12453.42504 | AK33: =AG33-AH33-AI33+AJ33 -> 113209.291
B34: I60A080OG
B35: IM-L-UV
B36: I60U080A | C36: =IF(C$8="Daman",HLOOKUP($B36,'[1]PROPOSED EX WORKS'!$D$2:$AE$90,3,0)) -> 106130 | D36: 1000 | E36: =IF(C$8="Daman",HLOOKUP($B36,[1]LD!$D$2:$AE$90,3,0)) -> 2310.50677 | F36: =(C36-D36-E36)*12.36% -> 12708.48936 | G36: =C36-D36-E36+F36 -> 115527.9826 | H36: =IF(H$8="SILVASSA",HLOOKUP($B36,'[1]PROPOSED EX WORKS'!$D$2:$AE$90,4,0)) -> 106130 | I36: 1000 | J36: =IF(H$8="SILVASSA",HLOOKUP($B36,[1]LD!$D$2:$AE$90,4,0)) -> 2310.50677 | K36: =(H36-I36-J36)*12.36% -> 12708.48936 | L36: =H36-I36-J36+K36 -> 115527.9826 | M36: =IF(M$8="MUMBAI/BHIWANDI/THANE",HLOOKUP($B36,'[1]PROPOSED EX WORKS'!$D$2:$AE$90,5,0)) -> 105470 | N36: 1000 | O36: =IF(M$8="MUMBAI/BHIWANDI/THANE",HLOOKUP($B36,[1]LD!$D$2:$AE$90,5,0)) -> 2296.001544 | P36: =(M36-N36-O36)*12.36% -> 12628.70621 | Q36: =M36-N36-O36+P36 -> 114802.7047 | R36: =IF(R$8="JALGAON",HLOOKUP($B36,'[1]PROPOSED EX WORKS'!$D$2:$AE$90,6,0)) -> 106570 | S36: 1000 | T36: =IF(R$8="JALGAON",HLOOKUP($B36,[1]LD!$D$2:$AE$90,6,0)) -> 2320.176921 | U36: =(R36-S36-T36)*12.36% -> 12761.67813 | V36: =R36-S36-T36+U36 -> 116011.5012 | W36: =IF(W$8="NAGPUR",HLOOKUP($B36,'[1]PROPOSED EX WORKS'!$D$2:$AE$90,7,0)) -> 107710 | X36: 1000 | Y36: =IF(W$8="NAGPUR",HLOOKUP($B36,[1]LD!$D$2:$AE$90,7,0)) -> 2345.231403 | Z36: =(W36-X36-Y36)*12.36% -> 12899.4854 | AA36: =W36-X36-Y36+Z36 -> 117264.254 | AB36: =IF(AB$8="AURANGABAD",HLOOKUP($B36,'[1]PROPOSED EX WORKS'!$D$2:$AE$90,8,0)) -> 106200 | AC36: 1000 | AD36: =IF(AB$8="AURANGABAD",HLOOKUP($B36,[1]LD!$D$2:$AE$90,8,0)) -> 2312.045203 | AE36: =(AB36-AC36-AD36)*12.36% -> 12716.95121 | AF36: =AB36-AC36-AD36+AE36 -> 115604.906 | AG36: =IF(AG$8="SOLAPUR",HLOOKUP($B36,'[1]PROPOSED EX WORKS'!$D$2:$AE$90,9,0)) -> 105560 | AH36: 1000 | AI36: =IF(AG$8="SOLAPUR",HLOOKUP($B36,[1]LD!$D$2:$AE$90,9,0)) -> 2297.979529 | AJ36: =(AG36-AH36-AI36)*12.36% -> 12639.58573 | AK36: =AG36-AH36-AI36+AJ36 -> 114901.6062
B37: I60U080OG
B38: PIPE (PE80)
B39: P54A001A | C39: =IF(C$8="Daman",HLOOKUP($B39,'[1]PROPOSED EX WORKS'!$D$2:$AE$90,3,0)) -> 113610 | D39: 1000 | E39: =IF(C$8="Daman",HLOOKUP($B39,[1]LD!$D$2:$AE$90,3,0)) -> 2419.955298 | F39: =(C39-D39-E39)*12.36% -> 13619.48953 | G39: =C39-D39-E39+F39 -> 123809.5342 | H39: =IF(H$8="SILVASSA",HLOOKUP($B39,'[1]PROPOSED EX WORKS'!$D$2:$AE$90,4,0)) -> 113620 | I39: 1000 | J39: =IF(H$8="SILVASSA",HLOOKUP($B39,[1]LD!$D$2:$AE$90,4,0)) -> 2420.175074 | K39: =(H39-I39-J39)*12.36% -> 13620.69836 | L39: =H39-I39-J39+K39 -> 123820.5233 | M39: =IF(M$8="MUMBAI/BHIWANDI/THANE",HLOOKUP($B39,'[1]PROPOSED EX WORKS'!$D$2:$AE$90,5,0)) -> 113030 | N39: 1000 | O39: =IF(M$8="MUMBAI/BHIWANDI/THANE",HLOOKUP($B39,[1]LD!$D$2:$AE$90,5,0)) -> 2407.20828 | P39: =(M39-N39-O39)*12.36% -> 13549.37706 | Q39: =M39-N39-O39+P39 -> 123172.1688 | R39: =IF(R$8="JALGAON",HLOOKUP($B39,'[1]PROPOSED EX WORKS'!$D$2:$AE$90,6,0)) -> 114060 | S39: 1000 | T39: =IF(R$8="JALGAON",HLOOKUP($B39,[1]LD!$D$2:$AE$90,6,0)) -> 2429.845225 | U39: =(R39-S39-T39)*12.36% -> 13673.88713 | V39: =R39-S39-T39+U39 -> 124304.0419 | W39: =IF(W$8="NAGPUR",HLOOKUP($B39,'[1]PROPOSED EX WORKS'!$D$2:$AE$90,7,0)) -> 115200 | X39: 1000 | Y39: =IF(W$8="NAGPUR",HLOOKUP($B39,[1]LD!$D$2:$AE$90,7,0)) -> 2454.899707 | Z39: =(W39-X39-Y39)*12.36% -> 13811.6944 | AA39: =W39-X39-Y39+Z39 -> 125556.7947 | AB39: =IF(AB$8="AURANGABAD",HLOOKUP($B39,'[1]PROPOSED EX WORKS'!$D$2:$AE$90,8,0)) -> 113670 | AC39: 1000 | AD39: =IF(AB$8="AURANGABAD",HLOOKUP($B39,[1]LD!$D$2:$AE$90,8,0)) -> 2421.273955 | AE39: =(AB39-AC39-AD39)*12.36% -> 13626.74254 | AF39: =AB39-AC39-AD39+AE39 -> 123875.4686 | AG39: =IF(AG$8="SOLAPUR",HLOOKUP($B39,'[1]PROPOSED EX WORKS'!$D$2:$AE$90,9,0)) -> 113150 | AH39: 1000 | AI39: =IF(AG$8="SOLAPUR",HLOOKUP($B39,[1]LD!$D$2:$AE$90,9,0)) -> 2409.845594 | AJ39: =(AG39-AH39-AI39)*12.36% -> 13563.88308 | AK39: =AG39-AH39-AI39+AJ39 -> 123304.0375
B40: PIPE (PE100)
B41: P52A003A | C41: =IF(C$8="Daman",HLOOKUP($B41,'[1]PROPOSED EX WORKS'!$D$2:$AE$90,3,0)) -> 115610 | D41: 1000 | E41: =IF(C$8="Daman",HLOOKUP($B41,[1]LD!$D$2:$AE$90,3,0)) -> 2463.91053 | F41: =(C41-D41-E41)*12.36% -> 13861.25666 | G41: =C41-D41-E41+F41 -> 126007.3461 | H41: =IF(H$8="SILVASSA",HLOOKUP($B41,'[1]PROPOSED EX WORKS'!$D$2:$AE$90,4,0)) -> 115620 | I41: 1000 | J41: =IF(H$8="SILVASSA",HLOOKUP($B41,[1]LD!$D$2:$AE$90,4,0)) -> 2464.130306 | K41: =(H41-I41-J41)*12.36% -> 13862.46549 | L41: =H41-I41-J41+K41 -> 126018.3352 | M41: =IF(M$8="MUMBAI/BHIWANDI/THANE",HLOOKUP($B41,'[1]PROPOSED EX WORKS'!$D$2:$AE$90,5,0)) -> 115030 | N41: 1000 | O41: =IF(M$8="MUMBAI/BHIWANDI/THANE",HLOOKUP($B41,[1]LD!$D$2:$AE$90,5,0)) -> 2451.163512 | P41: =(M41-N41-O41)*12.36% -> 13791.14419 | Q41: =M41-N41-O41+P41 -> 125369.9807 | R41: =IF(R$8="JALGAON",HLOOKUP($B41,'[1]PROPOSED EX WORKS'!$D$2:$AE$90,6,0)) -> 116060 | S41: 1000 | T41: =IF(R$8="JALGAON",HLOOKUP($B41,[1]LD!$D$2:$AE$90,6,0)) -> 2473.800457 | U41: =(R41-S41-T41)*12.36% -> 13915.65426 | V41: =R41-S41-T41+U41 -> 126501.8538 | W41: =IF(W$8="NAGPUR",HLOOKUP($B41,'[1]PROPOSED EX WORKS'!$D$2:$AE$90,7,0)) -> 117200 | X41: 1000 | Y41: =IF(W$8="NAGPUR",HLOOKUP($B41,[1]LD!$D$2:$AE$90,7,0)) -> 2498.854939 | Z41: =(W41-X41-Y41)*12.36% -> 14053.46153 | AA41: =W41-X41-Y41+Z41 -> 127754.6066 | AB41: =IF(AB$8="AURANGABAD",HLOOKUP($B41,'[1]PROPOSED EX WORKS'!$D$2:$AE$90,8,0)) -> 115670 | AC41: 1000 | AD41: =IF(AB$8="AURANGABAD",HLOOKUP($B41,[1]LD!$D$2:$AE$90,8,0)) -> 2465.229187 | AE41: =(AB41-AC41-AD41)*12.36% -> 13868.50967 | AF41: =AB41-AC41-AD41+AE41 -> 126073.2805 | AG41: =IF(AG$8="SOLAPUR",HLOOKUP($B41,'[1]PROPOSED EX WORKS'!$D$2:$AE$90,9,0)) -> 115150 | AH41: 1000 | AI41: =IF(AG$8="SOLAPUR",HLOOKUP($B41,[1]LD!$D$2:$AE$90,9,0)) -> 2453.800826 | AJ41: =(AG41-AH41-AD41)*12.36% -> 13804.23767 | AK41: =AG41-AH41-AD41+AJ41 -> 125489.0085
B42: RAFFIA
B43: W50A009A | C43: =IF(C$8="Daman",HLOOKUP($B43,'[1]PROPOSED EX WORKS'!$D$2:$AE$90,3,0)) -> 107720 | D43: 1000 | E43: =IF(C$8="Daman",HLOOKUP($B43,[1]LD!$D$2:$AE$90,3,0)) -> 2257.540716 | F43: =(C43-D43-E43)*12.36% -> 12911.55997 | G43: =C43-D43-E43+F43 -> 117374.0193 | H43: =IF(H$8="SILVASSA",HLOOKUP($B43,'[1]PROPOSED EX WORKS'!$D$2:$AE$90,4,0)) -> 107720 | I43: 1000 | J43: =IF(H$8="SILVASSA",HLOOKUP($B43,[1]LD!$D$2:$AE$90,4,0)) -> 2257.540716 | K43: =(H43-I43-J43)*12.36% -> 12911.55997 | L43: =H43-I43-J43+K43 -> 117374.0193 | M43: =IF(M$8="MUMBAI/BHIWANDI/THANE",HLOOKUP($B43,'[1]PROPOSED EX WORKS'!$D$2:$AE$90,5,0)) -> 107060 | N43: 1000 | O43: =IF(M$8="MUMBAI/BHIWANDI/THANE",HLOOKUP($B43,[1]LD!$D$2:$AE$90,5,0)) -> 2243.035489 | P43: =(M43-N43-O43)*12.36% -> 12831.77681 | Q43: =M43-N43-O43+P43 -> 116648.7413 | R43: =IF(R$8="JALGAON",HLOOKUP($B43,'[1]PROPOSED EX WORKS'!$D$2:$AE$90,6,0)) -> 108160 | S43: 1000 | T43: =IF(R$8="JALGAON",HLOOKUP($B43,[1]LD!$D$2:$AE$90,6,0)) -> 2267.210867 | U43: =(R43-S43-T43)*12.36% -> 12964.74874 | V43: =IF(T$8="NAGPUR",HLOOKUP($B43,[1]LD!$D$2:$AE$90,7,0)) -> FALSE | W43: =IF(W$8="NAGPUR",HLOOKUP($B43,'[1]PROPOSED EX WORKS'!$D$2:$AE$90,7,0)) -> 109300 | X43: 1000 | Y43: =IF(W$8="NAGPUR",HLOOKUP($B43,[1]LD!$D$2:$AE$90,7,0)) -> 2292.265349 | Z43: =(W43-X43-Y43)*12.36% -> 13102.556 | AA43: =W43-X43-Y43+Z43 -> 119110.2907 | AB43: =IF(AB$8="AURANGABAD",HLOOKUP($B43,'[1]PROPOSED EX WORKS'!$D$2:$AE$90,8,0)) -> 107790 | AC43: 1000 | AD43: =IF(AB$8="AURANGABAD",HLOOKUP($B43,[1]LD!$D$2:$AE$90,8,0)) -> 2259.079149 | AE43: =(AB43-AC43-AD43)*12.36% -> 12920.02182 | AF43: =AB43-AC43-AD43+AE43 -> 117450.9427 | AG43: =IF(AG$8="SOLAPUR",HLOOKUP($B43,'[1]PROPOSED EX WORKS'!$D$2:$AE$90,9,0)) -> 107150 | AH43: 1000 | AI43: =IF(AG$8="SOLAPUR",HLOOKUP($B43,[1]LD!$D$2:$AE$90,9,0)) -> 2245.013474 | AJ43: =(AG43-AH43-AI43)*12.36% -> 12842.65633 | AK43: =AG43-AH43-AI43+AJ43 -> 116747.6429
B44: T50A010A | C44: =IF(C$8="Daman",HLOOKUP($B44,'[1]PROPOSED EX WORKS'!$D$2:$AE$90,3,0)) -> 107720 | D44: 1000 | E44: =IF(C$8="Daman",HLOOKUP($B44,[1]LD!$D$2:$AE$90,3,0)) -> 2257.540716 | F44: =(C44-D44-E44)*12.36% -> 12911.55997 | G44: =C44-D44-E44+F44 -> 117374.0193 | H44: =IF(H$8="SILVASSA",HLOOKUP($B44,'[1]PROPOSED EX WORKS'!$D$2:$AE$90,4,0)) -> 107720 | I44: 1000 | J44: =IF(H$8="SILVASSA",HLOOKUP($B44,[1]LD!$D$2:$AE$90,4,0)) -> 2257.540716 | K44: =(H44-I44-J44)*12.36% -> 12911.55997 | L44: =H44-I44-J44+K44 -> 117374.0193 | M44: =IF(M$8="MUMBAI/BHIWANDI/THANE",HLOOKUP($B44,'[1]PROPOSED EX WORKS'!$D$2:$AE$90,5,0)) -> 107060 | N44: 1000 | O44: =IF(M$8="MUMBAI/BHIWANDI/THANE",HLOOKUP($B44,[1]LD!$D$2:$AE$90,5,0)) -> 2243.035489 | P44: =(M44-N44-O44)*12.36% -> 12831.77681 | Q44: =M44-N44-O44+P44 -> 116648.7413 | R44: =IF(R$8="JALGAON",HLOOKUP($B44,'[1]PROPOSED EX WORKS'!$D$2:$AE$90,6,0)) -> 108160 | S44: 1000 | T44: =IF(R$8="JALGAON",HLOOKUP($B44,[1]LD!$D$2:$AE$90,6,0)) -> 2267.210867 | U44: =(R44-S44-T44)*12.36% -> 12964.74874 | V44: =R44-S44-T44+U44 -> 117857.5379 | W44: =IF(W$8="NAGPUR",HLOOKUP($B44,'[1]PROPOSED EX WORKS'!$D$2:$AE$90,7,0)) -> 109300 | X44: 1000 | Y44: =IF(W$8="NAGPUR",HLOOKUP($B44,[1]LD!$D$2:$AE$90,7,0)) -> 2292.265349 | Z44: =(W44-X44-Y44)*12.36% -> 13102.556 | AA44: =W44-X44-Y44+Z44 -> 119110.2907 | AB44: =IF(AB$8="AURANGABAD",HLOOKUP($B44,'[1]PROPOSED EX WORKS'!$D$2:$AE$90,8,0)) -> 107790 | AC44: 1000 | AD44: =IF(AB$8="AURANGABAD",HLOOKUP($B44,[1]LD!$D$2:$AE$90,8,0)) -> 2259.079149 | AE44: =(AB44-AC44-AD44)*12.36% -> 12920.02182 | AF44: =AB44-AC44-AD44+AE44 -> 117450.9427 | AG44: =IF(AG$8="SOLAPUR",HLOOKUP($B44,'[1]PROPOSED EX WORKS'!$D$2:$AE$90,9,0)) -> 107150 | AH44: 1000 | AI44: =IF(AG$8="SOLAPUR",HLOOKUP($B44,[1]LD!$D$2:$AE$90,9,0)) -> 2245.013474 | AJ44: =(AG44-AH44-AI44)*12.36% -> 12842.65633 | AK44: =AG44-AH44-AI44+AJ44 -> 116747.6429
B45: MF
B46: W52A009A | C46: =IF(C$8="Daman",HLOOKUP($B46,'[1]PROPOSED EX WORKS'!$D$2:$AE$90,3,0)) -> 104220 | D46: 1000 | E46: =IF(C$8="Daman",HLOOKUP($B46,[1]LD!$D$2:$AE$90,3,0)) -> 2268.529524 | F46: =(C46-D46-E46)*12.36% -> 12477.60175 | G46: =C46-D46-E46+F46 -> 113429.0722 | H46: =IF(H$8="SILVASSA",HLOOKUP($B46,'[1]PROPOSED EX WORKS'!$D$2:$AE$90,4,0)) -> 104220 | I46: 1000 | J46: =IF(H$8="SILVASSA",HLOOKUP($B46,[1]LD!$D$2:$AE$90,4,0)) -> 2268.529524 | K46: =(H46-I46-J46)*12.36% -> 12477.60175 | L46: =H46-I46-J46+K46 -> 113429.0722 | M46: =IF(M$8="MUMBAI/BHIWANDI/THANE",HLOOKUP($B46,'[1]PROPOSED EX WORKS'!$D$2:$AE$90,5,0)) -> 103560 | N46: 1000 | O46: =IF(M$8="MUMBAI/BHIWANDI/THANE",HLOOKUP($B46,[1]LD!$D$2:$AE$90,5,0)) -> 2254.024297 | P46: =(M46-N46-O46)*12.36% -> 12397.8186 | Q46: =M46-N46-O46+P46 -> 112703.7943 | R46: =IF(R$8="JALGAON",HLOOKUP($B46,'[1]PROPOSED EX WORKS'!$D$2:$AE$90,6,0)) -> 104660 | S46: 1000 | T46: =IF(R$8="JALGAON",HLOOKUP($B46,[1]LD!$D$2:$AE$90,6,0)) -> 2278.199675 | U46: =(R46-S46-T46)*12.36% -> 12530.79052 | V46: =R46-S46-T46+U46 -> 113912.5908 | W46: =IF(W$8="NAGPUR",HLOOKUP($B46,'[1]PROPOSED EX WORKS'!$D$2:$AE$90,7,0)) -> 105800 | X46: 1000 | Y46: =IF(W$8="NAGPUR",HLOOKUP($B46,[1]LD!$D$2:$AE$90,7,0)) -> 2303.254157 | Z46: =(W46-X46-Y46)*12.36% -> 12668.59779 | AA46: =W46-X46-Y48+Z46 -> 115165.3436 | AB46: =IF(AB$8="AURANGABAD",HLOOKUP($B46,'[1]PROPOSED EX WORKS'!$D$2:$AE$90,8,0)) -> 104290 | AC46: 1000 | AD46: =IF(AB$8="AURANGABAD",HLOOKUP($B46,[1]LD!$D$2:$AE$90,8,0)) -> 2270.067957 | AE46: =(AB46-AC46-AD46)*12.36% -> 12486.0636 | AF46: =AB46-AC46-AD48+AE46 -> 113505.9956 | AG46: =IF(AG$8="SOLAPUR",HLOOKUP($B46,'[1]PROPOSED EX WORKS'!$D$2:$AE$90,9,0)) -> 103650 | AH46: 1000 | AI46: =IF(AG$8="SOLAPUR",HLOOKUP($B46,[1]LD!$D$2:$AE$90,9,0)) -> 2256.002282 | AJ46: =(AG46-AH46-AI46)*12.36% -> 12408.69812 | AK46: =AG46-AH46-AI46+AJ46 -> 112802.6958
B47: W52A009OG
B48: W52ASR009A | C48: =IF(C$8="Daman",HLOOKUP($B48,'[1]PROPOSED EX WORKS'!$D$2:$AE$90,3,0)) -> 104220 | D48: 1000 | E48: =IF(C$8="Daman",HLOOKUP($B48,[1]LD!$D$2:$AE$90,3,0)) -> 2268.529524 | F48: =(C48-D48-E48)*12.36% -> 12477.60175 | G48: =C48-D48-E48+F48 -> 113429.0722 | H48: =IF(H$8="SILVASSA",HLOOKUP($B48,'[1]PROPOSED EX WORKS'!$D$2:$AE$90,4,0)) -> 104220 | I48: 1000 | J48: =IF(H$8="SILVASSA",HLOOKUP($B48,[1]LD!$D$2:$AE$90,4,0)) -> 2268.529524 | K48: =(H48-I48-J48)*12.36% -> 12477.60175 | L48: =H48-I48-J48+K48 -> 113429.0722 | M48: =IF(M$8="MUMBAI/BHIWANDI/THANE",HLOOKUP($B48,'[1]PROPOSED EX WORKS'!$D$2:$AE$90,5,0)) -> 103560 | N48: 1000 | O48: =IF(M$8="MUMBAI/BHIWANDI/THANE",HLOOKUP($B48,[1]LD!$D$2:$AE$90,5,0)) -> 2254.024297 | P48: =(M48-N48-O48)*12.36% -> 12397.8186 | Q48: =M48-N48-O48+P48 -> 112703.7943 | R48: =IF(R$8="JALGAON",HLOOKUP($B48,'[1]PROPOSED EX WORKS'!$D$2:$AE$90,6,0)) -> 104660 | S48: 1000 | T48: =IF(R$8="JALGAON",HLOOKUP($B48,[1]LD!$D$2:$AE$90,6,0)) -> 2278.199675 | U48: =(R48-S48-T48)*12.36% -> 12530.79052 | V48: =R48-S48-T48+U48 -> 113912.5908 | W48: =IF(W$8="NAGPUR",HLOOKUP($B48,'[1]PROPOSED EX WORKS'!$D$2:$AE$90,7,0)) -> 105800 | X48: 1000 | Y48: =IF(W$8="NAGPUR",HLOOKUP($B48,[1]LD!$D$2:$AE$90,7,0)) -> 2303.254157 | Z48: =(W48-X48-Y48)*12.36% -> 12668.59779 | AA48: =W48-X48-Y50+Z48 -> 117468.5978 | AB48: =IF(AB$8="AURANGABAD",HLOOKUP($B48,'[1]PROPOSED EX WORKS'!$D$2:$AE$90,8,0)) -> 104290 | AC48: 1000 | AD48: =IF(AB$8="AURANGABAD",HLOOKUP($B48,[1]LD!$D$2:$AE$90,8,0)) -> 2270.067957 | AE48: =(AB48-AC48-AD48)*12.36% -> 12486.0636 | AF48: =AB48-AC48-AD50+AE48 -> 115776.0636 | AG48: =IF(AG$8="SOLAPUR",HLOOKUP($B48,'[1]PROPOSED EX WORKS'!$D$2:$AE$90,9,0)) -> 103650 | AH48: 1000 | AI48: =IF(AG$8="SOLAPUR",HLOOKUP($B48,[1]LD!$D$2:$AE$90,9,0)) -> 2256.002282 | AJ48: =(AG48-AH48-AI48)*12.36% -> 12408.69812 | AK48: =AG48-AH48-AI48+AJ48 -> 112802.6958
B49: W55A004A | C49: =IF(C$8="Daman",HLOOKUP($B49,'[1]PROPOSED EX WORKS'!$D$2:$AE$90,3,0)) -> 107220 | D49: 1000 | E49: =IF(C$8="Daman",HLOOKUP($B49,[1]LD!$D$2:$AE$90,3,0)) -> 2334.462372 | F49: =(C49-D49-E49)*12.36% -> 12840.25245 | G49: =C49-D49-E49+F49 -> 116725.7901 | H49: =IF(H$8="SILVASSA",HLOOKUP($B49,'[1]PROPOSED EX WORKS'!$D$2:$AE$90,4,0)) -> 107220 | I49: 1000 | J49: =IF(H$8="SILVASSA",HLOOKUP($B49,[1]LD!$D$2:$AE$90,4,0)) -> 2334.462372 | K49: =(H49-I49-J49)*12.36% -> 12840.25245 | L49: =H49-I49-J49+K49 -> 116725.7901 | M49: =IF(M$8="MUMBAI/BHIWANDI/THANE",HLOOKUP($B49,'[1]PROPOSED EX WORKS'!$D$2:$AE$90,5,0)) -> 106560 | N49: 1000 | O49: =IF(M$8="MUMBAI/BHIWANDI/THANE",HLOOKUP($B49,[1]LD!$D$2:$AE$90,5,0)) -> 2319.957145 | P49: =(M49-N49-O49)*12.36% -> 12760.4693 | Q49: =M49-N49-O49+P49 -> 116000.5122 | R49: =IF(R$8="JALGAON",HLOOKUP($B49,'[1]PROPOSED EX WORKS'!$D$2:$AE$90,6,0)) -> 107660 | S49: 1000 | T49: =IF(R$8="JALGAON",HLOOKUP($B49,[1]LD!$D$2:$AE$90,6,0)) -> 2344.132523 | U49: =(R49-S49-T49)*12.36% -> 12893.44122 | V49: =R49-S49-T49+U49 -> 117209.3087 | W49: =IF(W$8="NAGPUR",HLOOKUP($B49,'[1]PROPOSED EX WORKS'!$D$2:$AE$90,7,0)) -> 108800 | X49: 1000 | Y49: =IF(W$8="NAGPUR",HLOOKUP($B49,[1]LD!$D$2:$AE$90,7,0)) -> 2369.187005 | Z49: =(W49-X49-Y49)*12.36% -> 13031.24849 | AA49: =W49-X49-Y49+Z49 -> 118462.0615 | AB49: =IF(AB$8="AURANGABAD",HLOOKUP($B49,'[1]PROPOSED EX WORKS'!$D$2:$AE$90,8,0)) -> 107290 | AC49: 1000 | AD49: =IF(AB$8="AURANGABAD",HLOOKUP($B49,[1]LD!$D$2:$AE$90,8,0)) -> 2336.000805 | AE49: =(AB49-AC49-AD49)*12.36% -> 12848.7143 | AF49: =AB49-AC49-AD51+AE49 -> 116807.9881 | AG49: =IF(AG$8="SOLAPUR",HLOOKUP($B49,'[1]PROPOSED EX WORKS'!$D$2:$AE$90,9,0)) -> 106650 | AH49: 1000 | AI49: =IF(AG$8="SOLAPUR",HLOOKUP($B49,[1]LD!$D$2:$AE$90,9,0)) -> 2321.93513 | AJ49: =(AG49-AH49-AI49)*12.36% -> 12771.34882 | AK49: =AG49-AH49-AI49+AJ49 -> 116099.4137
B50: LLDPE
B51: E20AN009A | C51: =IF(C$8="Daman",HLOOKUP($B51,'[1]PROPOSED EX WORKS'!$D$2:$AE$90,3,0)) -> 106980 | D51: 1000 | E51: =IF(C$8="Daman",HLOOKUP($B51,[1]LD!$D$2:$AE$90,3,0)) -> 2329.187744 | F51: =(C51-D51-E51)*12.36% -> 12811.24039 | G51: =C51-D51-E51+F51 -> 116462.0527 | H51: =IF(H$8="SILVASSA",HLOOKUP($B51,'[1]PROPOSED EX WORKS'!$D$2:$AE$90,4,0)) -> 106980 | I51: 1000 | J51: =IF(H$8="SILVASSA",HLOOKUP($B51,[1]LD!$D$2:$AE$90,4,0)) -> 2329.187744 | K51: =(H51-I51-J51)*12.36% -> 12811.24039 | L51: =H51-I51-J51+K51 -> 116462.0527 | M51: =IF(M$8="MUMBAI/BHIWANDI/THANE",HLOOKUP($B51,'[1]PROPOSED EX WORKS'!$D$2:$AE$90,5,0)) -> 106330 | N51: 1000 | O51: =IF(M$8="MUMBAI/BHIWANDI/THANE",HLOOKUP($B51,[1]LD!$D$2:$AE$90,5,0)) -> 2314.902293 | P51: =(M51-N51-O51)*12.36% -> 12732.66608 | Q51: =M51-N51-O51+P51 -> 115747.7638 | R51: =IF(R$8="JALGAON",HLOOKUP($B51,'[1]PROPOSED EX WORKS'!$D$2:$AE$90,6,0)) -> 107420 | S51: 1000 | T51: =IF(R$8="JALGAON",HLOOKUP($B51,[1]LD!$D$2:$AE$90,6,0)) -> 2338.857895 | U51: =(R51-S51-T51)*12.36% -> 12864.42916 | V51: =R51-S51-T51+U51 -> 116945.5713 | W51: =IF(W$8="NAGPUR",HLOOKUP($B51,'[1]PROPOSED EX WORKS'!$D$2:$AE$90,7,0)) -> 108570 | X51: 1000 | Y51: =IF(W$8="NAGPUR",HLOOKUP($B51,[1]LD!$D$2:$AE$90,7,0)) -> 2364.132153 | Z51: =(W51-X51-Y51)*12.36% -> 13003.44527 | AA51: =W51-X51-Y51+Z51 -> 118209.3131 | AB51: =IF(AB$8="AURANGABAD",HLOOKUP($B51,'[1]PROPOSED EX WORKS'!$D$2:$AE$90,8,0)) -> 107050 | AC51: 1000 | AD51: =IF(AB$8="AURANGABAD",HLOOKUP($B51,[1]LD!$D$2:$AE$90,8,0)) -> 2330.726177 | AE51: =(AB51-AC51-AD51)*12.36% -> 12819.70224 | AF51: =AB51-AC51-AD51+AE51 -> 116538.9761 | AG51: =IF(AG$8="SOLAPUR",HLOOKUP($B51,'[1]PROPOSED EX WORKS'!$D$2:$AE$90,9,0)) -> 106410 | AH51: 1000 | AI51: =IF(AG$8="SOLAPUR",HLOOKUP($B51,[1]LD!$D$2:$AE$90,9,0)) -> 2316.660503 | AJ51: =(AG51-AH51-AI51)*12.36% -> 12742.33676 | AK51: =AG51-AH51-AI51+AJ51 -> 115835.6763
B52: E20AN009OG
B53: E36A060A | C53: =IF(C$8="Daman",HLOOKUP($B53,'[1]PROPOSED EX WORKS'!$D$2:$AE$90,3,0)) -> 111020 | D53: 1000 | E53: =IF(C$8="Daman",HLOOKUP($B53,[1]LD!$D$2:$AE$90,3,0)) -> 2417.977312 | F53: =(C53-D53-E53)*12.36% -> 13299.61 | G53: =C53-D53-E53+F53 -> 120901.6327 | H53: =IF(H$8="SILVASSA",HLOOKUP($B53,'[1]PROPOSED EX WORKS'!$D$2:$AE$90,4,0)) -> 111020 | I53: 1000 | J53: =IF(H$8="SILVASSA",HLOOKUP($B53,[1]LD!$D$2:$AE$90,4,0)) -> 2417.977312 | K53: =(H53-I53-J53)*12.36% -> 13299.61 | L53: =H53-I53-J53+K53 -> 120901.6327 | M53: =IF(M$8="MUMBAI/BHIWANDI/THANE",HLOOKUP($B53,'[1]PROPOSED EX WORKS'!$D$2:$AE$90,5,0)) -> 110370 | N53: 1000 | O53: =IF(M$8="MUMBAI/BHIWANDI/THANE",HLOOKUP($B53,[1]LD!$D$2:$AE$90,5,0)) -> 2403.691862 | P53: =(M53-N53-O53)*12.36% -> 13221.03569 | Q53: =M53-N53-O53+P53 -> 120187.3438 | R53: =IF(R$8="JALGAON",HLOOKUP($B53,'[1]PROPOSED EX WORKS'!$D$2:$AE$90,6,0)) -> 111470 | S53: 1000 | T53: =IF(R$8="JALGAON",HLOOKUP($B53,[1]LD!$D$2:$AE$90,6,0)) -> 2427.86724 | U53: =(R53-S53-T53)*12.36% -> 13354.00761 | V53: =R53-S53-T53+U53 -> 121396.1404 | W53: =IF(W$8="NAGPUR",HLOOKUP($B53,'[1]PROPOSED EX WORKS'!$D$2:$AE$90,7,0)) -> 112610 | X53: 1000 | Y53: =IF(W$8="NAGPUR",HLOOKUP($B53,[1]LD!$D$2:$AE$90,7,0)) -> 2452.921722 | Z53: =(W53-X53-Y53)*12.36% -> 13491.81488 | AA53: =W53-X53-Y53+Z53 -> 122648.8932 | AB53: =IF(AB$8="AURANGABAD",HLOOKUP($B53,'[1]PROPOSED EX WORKS'!$D$2:$AE$90,8,0)) -> 111090 | AC53: 1000 | AD53: =IF(AB$8="AURANGABAD",HLOOKUP($B53,[1]LD!$D$2:$AE$90,8,0)) -> 2419.515745 | AE53: =(AB53-AC53-AD53)*12.36% -> 13308.07185 | AF53: =AB53-AC53-AD53+AE53 -> 120978.5561 | AG53: =IF(AG$8="SOLAPUR",HLOOKUP($B53,'[1]PROPOSED EX WORKS'!$D$2:$AE$90,9,0)) -> 110450 | AH53: 1000 | AI53: =IF(AG$8="SOLAPUR",HLOOKUP($B53,[1]LD!$D$2:$AE$90,9,0)) -> 2405.450071 | AJ53: =(AG53-AH53-AI53)*12.36% -> 13230.70637 | AK53: =AG53-AH53-AI53+AJ53 -> 120275.2563
B54: E36A060OG
B55: FILM
B56: F20S009A | C56: =IF(C$8="Daman",HLOOKUP($B56,'[1]PROPOSED EX WORKS'!$D$2:$AE$90,3,0)) -> 108480 | D56: 1000 | E56: =IF(C$8="Daman",HLOOKUP($B56,[1]LD!$D$2:$AE$90,3,0)) -> 2362.154168 | F56: =(C56-D56-E56)*12.36% -> 12992.56574 | G56: =C56-D56-E56+F56 -> 118110.4116 | H56: =IF(H$8="SILVASSA",HLOOKUP($B56,'[1]PROPOSED EX WORKS'!$D$2:$AE$90,4,0)) -> 108480 | I56: 1000 | J56: =IF(H$8="SILVASSA",HLOOKUP($B56,[1]LD!$D$2:$AE$90,4,0)) -> 2362.154168 | K56: =(H56-I56-J56)*12.36% -> 12992.56574 | L56: =H56-I56-J56+K56 -> 118110.4116 | M56: =IF(M$8="MUMBAI/BHIWANDI/THANE",HLOOKUP($B56,'[1]PROPOSED EX WORKS'!$D$2:$AE$90,5,0)) -> 107830 | N56: 1000 | O56: =IF(M$8="MUMBAI/BHIWANDI/THANE",HLOOKUP($B56,[1]LD!$D$2:$AE$90,5,0)) -> 2347.868717 | P56: =(M56-N56-O56)*12.36% -> 12913.99143 | Q56: =M56-N56-O56+P56 -> 117396.1227 | R56: =IF(R$8="JALGAON",HLOOKUP($B56,'[1]PROPOSED EX WORKS'!$D$2:$AE$90,6,0)) -> 108920 | S56: 1000 | T56: =IF(R$8="JALGAON",HLOOKUP($B56,[1]LD!$D$2:$AE$90,6,0)) -> 2371.824319 | U56: =(R56-S56-T56)*12.36% -> 13045.75451 | V56: =R56-S56-T56+U56 -> 118593.9302 | W56: =IF(W$8="NAGPUR",HLOOKUP($B56,'[1]PROPOSED EX WORKS'!$D$2:$AE$90,7,0)) -> 110070 | X56: 1000 | Y56: =IF(W$8="NAGPUR",HLOOKUP($B56,[1]LD!$D$2:$AE$90,7,0)) -> 2397.098577 | Z56: =(W56-X56-Y56)*12.36% -> 13184.77062 | AA56: =W56-X56-Y56+Z56 -> 119857.672 | AB56: =IF(AB$8="AURANGABAD",HLOOKUP($B56,'[1]PROPOSED EX WORKS'!$D$2:$AE$90,8,0)) -> 108550 | AC56: 1000 | AD56: =IF(AB$8="AURANGABAD",HLOOKUP($B56,[1]LD!$D$2:$AE$90,8,0)) -> 2363.692601 | AE56: =(AB56-AC56-AD56)*12.36% -> 13001.02759 | AF56: =AB56-AC56-AD56+AE56 -> 118187.335 | AG56: =IF(AG$8="SOLAPUR",HLOOKUP($B56,'[1]PROPOSED EX WORKS'!$D$2:$AE$90,9,0)) -> 107910 | AH56: 1000 | AI56: =IF(AG$8="SOLAPUR",HLOOKUP($B56,[1]LD!$D$2:$AE$90,9,0)) -> 2349.626927 | AJ56: =(AG56-AH56-AI56)*12.36% -> 12923.66211 | AK56: =AG56-AH56-AI56+AJ56 -> 117484.0352
B57: F20S009OG
B58: D22S010A | C58: =IF(C$8="Daman",HLOOKUP($B58,'[1]PROPOSED EX WORKS'!$D$2:$AE$90,3,0)) -> 107480 | D58: 1000 | E58: =IF(C$8="Daman",HLOOKUP($B58,[1]LD!$D$2:$AE$90,3,0)) -> 2340.176552 | F58: =(C58-D58-E58)*12.36% -> 12871.68218 | G58: =C58-D58-E58+F58 -> 117011.5056 | H58: =IF(H$8="SILVASSA",HLOOKUP($B58,'[1]PROPOSED EX WORKS'!$D$2:$AE$90,4,0)) -> 107480 | I58: 1000 | J58: =IF(H$8="SILVASSA",HLOOKUP($B58,[1]LD!$D$2:$AE$90,4,0)) -> 2340.176552 | K58: =(H58-I58-J58)*12.36% -> 12871.68218 | L58: =H58-I58-J58+K58 -> 117011.5056 | M58: =IF(M$8="MUMBAI/BHIWANDI/THANE",HLOOKUP($B58,'[1]PROPOSED EX WORKS'!$D$2:$AE$90,5,0)) -> 106830 | N58: 1000 | O58: =IF(M$8="MUMBAI/BHIWANDI/THANE",HLOOKUP($B58,[1]LD!$D$2:$AE$90,5,0)) -> 2325.891101 | P58: =(M58-N58-O58)*12.36% -> 12793.10786 | Q58: =M58-N58-O58+P58 -> 116297.2168 | R58: =IF(R$8="JALGAON",HLOOKUP($B58,'[1]PROPOSED EX WORKS'!$D$2:$AE$90,6,0)) -> 107920 | S58: 1000 | T58: =IF(R$8="JALGAON",HLOOKUP($B58,[1]LD!$D$2:$AE$90,6,0)) -> 2349.846703 | U58: =(R58-S58-T58)*12.36% -> 12924.87095 | V58: =R58-S58-T58+U58 -> 117495.0242 | W58: =IF(W$8="NAGPUR",HLOOKUP($B58,'[1]PROPOSED EX WORKS'!$D$2:$AE$90,7,0)) -> 109070 | X58: 1000 | Y58: =IF(W$8="NAGPUR",HLOOKUP($B58,[1]LD!$D$2:$AE$90,7,0)) -> 2375.120961 | Z58: =(W58-X58-Y58)*12.36% -> 13063.88705 | AA58: =W58-X58-Y58+Z58 -> 118758.7661 | AB58: =IF(AB$8="AURANGABAD",HLOOKUP($B58,'[1]PROPOSED EX WORKS'!$D$2:$AE$90,8,0)) -> 107550 | AC58: 1000 | AD58: =IF(AB$8="AURANGABAD",HLOOKUP($B58,[1]LD!$D$2:$AE$90,8,0)) -> 2341.714985 | AE58: =(AB58-AC58-AD58)*12.36% -> 12880.14403 | AF58: =AB58-AC58-AD58+AE58 -> 117088.429 | AG58: =IF(AG$8="SOLAPUR",HLOOKUP($B58,'[1]PROPOSED EX WORKS'!$D$2:$AE$90,9,0)) -> 106910 | AH58: 1000 | AI58: =IF(AG$8="SOLAPUR",HLOOKUP($B58,[1]LD!$D$2:$AE$90,9,0)) -> 2327.649311 | AJ58: =(AG58-AH58-AI58)*12.36% -> 12802.77855 | AK58: =AG58-AH58-AI58+AJ58 -> 116385.1292
B59: ROTO
B60: R35A042A | C60: =IF(C$8="Daman",HLOOKUP($B60,'[1]PROPOSED EX WORKS'!$D$2:$AE$90,3,0)) -> 108000 | D60: 1000 | E60: =IF(C$8="Daman",HLOOKUP($B60,[1]LD!$D$2:$AE$90,3,0)) -> 2351.604912 | F60: =(C60-D60-E60)*12.36% -> 12934.54163 | G60: =C60-D60-E60+F60 -> 117582.9367 | H60: =IF(H$8="SILVASSA",HLOOKUP($B60,'[1]PROPOSED EX WORKS'!$D$2:$AE$90,4,0)) -> 108010 | I60: 1000 | J60: =IF(H$8="SILVASSA",HLOOKUP($B60,[1]LD!$D$2:$AE$90,4,0)) -> 2351.824688 | K60: =(H60-I60-J60)*12.36% -> 12935.75047 | L60: =H60-I60-J60+K60 -> 117593.9258 | M60: =IF(M$8="MUMBAI/BHIWANDI/THANE",HLOOKUP($B60,'[1]PROPOSED EX WORKS'!$D$2:$AE$90,5,0)) -> 107420 | N60: 1000 | O60: =IF(M$8="MUMBAI/BHIWANDI/THANE",HLOOKUP($B60,[1]LD!$D$2:$AE$90,5,0)) -> 2338.857895 | P60: =(M60-N60-O60)*12.36% -> 12864.42916 | Q60: =M60-N60-O60+P60 -> 116945.5713 | R60: =IF(R$8="JALGAON",HLOOKUP($B60,'[1]PROPOSED EX WORKS'!$D$2:$AE$90,6,0)) -> 108450 | S60: 1000 | T60: =IF(R$8="JALGAON",HLOOKUP($B60,[1]LD!$D$2:$AE$90,6,0)) -> 2361.494839 | U60: =(R60-S60-T60)*12.36% -> 12988.93924 | V60: =R60-S60-T60+U60 -> 118077.4444 | W60: =IF(W$8="NAGPUR",HLOOKUP($B60,'[1]PROPOSED EX WORKS'!$D$2:$AE$90,7,0)) -> 109590 | X60: 1000 | Y60: =IF(W$8="NAGPUR",HLOOKUP($B60,[1]LD!$D$2:$AE$90,7,0)) -> 2386.549321 | Z60: =(W60-X60-Y60)*12.36% -> 13126.7465 | AA60: =W60-X60-Y60+Z60 -> 119330.1972 | AB60: =IF(AB$8="AURANGABAD",HLOOKUP($B60,'[1]PROPOSED EX WORKS'!$D$2:$AE$90,8,0)) -> 108060 | AC60: 1000 | AD60: =IF(AB$8="AURANGABAD",HLOOKUP($B60,[1]LD!$D$2:$AE$90,8,0)) -> 2352.923569 | AE60: =(AB60-AC60-AD60)*12.36% -> 12941.79465 | AF60: =AB60-AC60-AD60+AE60 -> 117648.8711 | AG60: =IF(AG$8="SOLAPUR",HLOOKUP($B60,'[1]PROPOSED EX WORKS'!$D$2:$AE$90,9,0)) -> 107540 | AH60: 1000 | AI60: =IF(AG$8="SOLAPUR",HLOOKUP($B60,[1]LD!$D$2:$AE$90,9,0)) -> 2341.495209 | AJ60: =(AG60-AH60-AI60)*12.36% -> 12878.93519 | AK60: =AG60-AH60-AI60+AJ60 -> 117077.44
B61: R35U042A | C61: =IF(C$8="Daman",HLOOKUP($B61,'[1]PROPOSED EX WORKS'!$D$2:$AE$90,3,0)) -> 108860 | D61: 1000 | E61: =IF(C$8="Daman",HLOOKUP($B61,[1]LD!$D$2:$AE$90,3,0)) -> 2370.505662 | F61: =(C61-D61-E61)*12.36% -> 13038.5015 | G61: =C61-D61-E61+F61 -> 118527.9958 | H61: =IF(H$8="SILVASSA",HLOOKUP($B61,'[1]PROPOSED EX WORKS'!$D$2:$AE$90,4,0)) -> 108870 | I61: 1000 | J61: =IF(H$8="SILVASSA",HLOOKUP($B61,[1]LD!$D$2:$AE$90,4,0)) -> 2370.725438 | K61: =(H61-I61-J61)*12.36% -> 13039.71034 | L61: =H61-I61-J61+K61 -> 118538.9849 | M61: =IF(M$8="MUMBAI/BHIWANDI/THANE",HLOOKUP($B61,'[1]PROPOSED EX WORKS'!$D$2:$AE$90,5,0)) -> 108280 | N61: 1000 | O61: =IF(M$8="MUMBAI/BHIWANDI/THANE",HLOOKUP($B61,[1]LD!$D$2:$AE$90,5,0)) -> 2357.758644 | P61: =(M61-N61-O61)*12.36% -> 12968.38903 | Q61: =M61-N61-O61+P61 -> 117890.6304 | R61: =IF(R$8="JALGAON",HLOOKUP($B61,'[1]PROPOSED EX WORKS'!$D$2:$AE$90,6,0)) -> 109310 | S61: 1000 | T61: =IF(R$8="JALGAON",HLOOKUP($B61,[1]LD!$D$2:$AE$90,6,0)) -> 2380.395589 | U61: =(R61-S61-T61)*12.36% -> 13092.89911 | V61: =R61-S61-T61+U61 -> 119022.5035 | W61: =IF(W$8="NAGPUR",HLOOKUP($B61,'[1]PROPOSED EX WORKS'!$D$2:$AE$90,7,0)) -> 110450 | X61: 1000 | Y61: =IF(W$8="NAGPUR",HLOOKUP($B61,[1]LD!$D$2:$AE$90,7,0)) -> 2405.450071 | Z61: =(W61-X61-Y61)*12.36% -> 13230.70637 | AA61: =W61-X61-Y61+Z61 -> 120275.2563 | AB61: =IF(AB$8="AURANGABAD",HLOOKUP($B61,'[1]PROPOSED EX WORKS'!$D$2:$AE$90,8,0)) -> 108920 | AC61: 1000 | AD61: =IF(AB$8="AURANGABAD",HLOOKUP($B61,[1]LD!$D$2:$AE$90,8,0)) -> 2371.824319 | AE61: =(AB61-AC61-AD61)*12.36% -> 13045.75451 | AF61: =AB61-AC61-AD61+AE61 -> 118593.9302 | AG61: =IF(AG$8="SOLAPUR",HLOOKUP($B61,'[1]PROPOSED EX WORKS'!$D$2:$AE$90,9,0)) -> 108400 | AH61: 1000 | AI61: =IF(AG$8="SOLAPUR",HLOOKUP($B61,[1]LD!$D$2:$AE$90,9,0)) -> 2360.395958 | AJ61: =(AG61-AH61-AI61)*12.36% -> 12982.89506 | AK61: =AG61-AH61-AI61+AJ61 -> 118022.4991
AA62: .
B63: NOTE : | C63: NOTE : | D63: THE PRICES OF OLD PLANT & NEW PLANT ARE SAME FROM DIRECT SALE

Sheet Sheet2
A2: UNITED BROTHERS
A3: CONSIGNMENT STOCKIST OF GAIL (INDIA) LTD
A4: 301,HERITAGE PLAZA, R.S.MAHARAJ MARG,( TELI GALLI CROSS LANE), ANDHERI (E), MUMBAI - 400 069
A5: EL: 26844612(4 LINES) FAX: 26822914 E-MAIL: info@unibrothers.com, prashant@unibrothers.com,jyoti@unibrotehers.com
A6: EX-WORKS PRICE OF HDPE "G-LEX / G-LENE " W.E.F. 3RD APRIL 2014
A7: CASH / ADVANCE PAYMENT FOR MAHARASHTRA & DAMAN
B8: Freight | D8: 3069.18 | G8: Freight | I8: 2016.35 | L8: Freight | N8: 2640.33 | Q8: Freight | S8: 2825.33 | V8: Freight | X8: 2282.96 | AA8: Freight | AC8: 3163.78 | AF8: Freight 1986.51 | AG8: 2446.93 | AK8: FREIGHT | AL8: 2814.81
B9: SANGLI | G9: UMBERGAON | L9: PUNE | Q9: WAI | V9: NASIK | AA9: KOLHAPUR | AF9: AHMEDNAGAR | AK9: ROHA
B10: BASIC | C10: DISC | D10: LOC | E10: EXCISE | F10: EX-WKS | G10: BASIC | H10: DISC | I10: LOC | J10: EXCISE | K10: EX-WKS | L10: BASIC | M10: DISC | N10: LOC | O10: EXCISE | P10: EX-WKS | Q10: BASIC | R10: DISC | S10: LOC | T10: EXCISE | U10: EX-WKS | V10: BASIC | W10: DISC | X10: LOC | Y10: EXCISE | Z10: EX-WKS | AB10: DISC | AC10: LOC | AD10: EXCISE | AE10: EX-WKS | AF10: BASIC | AG10: DISC | AH10: LOC | AI10: EXCISE | AJ10: EX-WKS | AL10: DISC | AM10: LOC | AN10: EXCISE | AO10: EX-WKS
A11: BM
A12: B52A003A | B12: =IF(B$9="SANGLI",HLOOKUP($A12,'[2]PROPOSED EX WORKS'!$D$2:$AE$90,10,0)) -> 106280 | C12: 1000 | D12: =IF(B$9="SANGLI",HLOOKUP($A12,[1]LD!$D$2:$AE$90,10,0)) -> 2313.803412 | E12: =(B12-C12-D12)*12.36% -> 12726.6219 | F12: =B12-C12-D12+E12 -> 115692.8185 | G12: =IF(G$9="UMBERGAON",HLOOKUP($A12,'[2]PROPOSED EX WORKS'!$D$2:$AE$90,11,0)) -> 106720 | H12: 1000 | I12: =IF(G$9="UMBERGAON",HLOOKUP($A12,[1]LD!$D$2:$AE$90,11,0)) -> 2323.473564 | J12: =(G12-H12-I12)*12.36% -> 12779.81067 | K12: =G12-H12-I12+J12 -> 116176.3371 | L12: =IF(L$9="PUNE",HLOOKUP($A12,'[2]PROPOSED EX WORKS'!$D$2:$AE$90,12,0)) -> 106260 | M12: 1000 | N12: =IF(L$9="PUNE",HLOOKUP($A12,[1]LD!$D$2:$AE$90,12,0)) -> 2313.36386 | O12: =(L12-M12-N12)*12.36% -> 12724.20423 | P12: =L12-M12-N12+O12 -> 115670.8404 | Q12: =IF(Q$9="WAI",HLOOKUP($A12,'[2]PROPOSED EX WORKS'!$D$2:$AE$90,13,0)) -> 106260 | R12: 1000 | S12: =IF(Q$9="WAI",HLOOKUP($A12,[1]LD!$D$2:$AE$90,13,0)) -> 2313.36386 | T12: =(Q12-R12-S12)*12.36% -> 12724.20423 | U12: =Q12-R12-S12+T12 -> 115670.8404 | V12: =IF(V$9="NASIK",HLOOKUP($A12,'[2]PROPOSED EX WORKS'!$D$2:$AE$90,14,0)) -> 106690 | W12: 1000 | X12: =IF(V$9="NASIK",HLOOKUP($A12,[1]LD!$D$2:$AE$90,14,0)) -> 2322.814235 | Y12: =(V12-W12-X12)*12.36% -> 12776.18416 | Z12: =V12-W12-X12+Y12 -> 116143.3699 | AA12: =IF(AA$9="KOLHAPUR",HLOOKUP($A12,'[2]PROPOSED EX WORKS'!$D$2:$AE$90,15,0)) -> 106110 | AB12: 1000 | AC12: =IF(AA$9="KOLHAPUR",HLOOKUP($A12,[1]LD!$D$2:$AE$90,15,0)) -> 2310.067218 | AD12: =(AA12-AB12-AC12)*12.36% -> 12706.07169 | AE12: =AA12-AB12-AC12+AD12 -> 115506.0045 | AF12: =IF(AF$9="AHMEDNAGAR",HLOOKUP($A12,'[2]PROPOSED EX WORKS'!$D$2:$AE$90,16,0)) -> 106910 | AG12: 1000 | AH12: =IF(AF$9="AHMEDNAGAR",HLOOKUP($A12,[1]LD!$D$2:$AE$90,16,0)) -> 2327.649311 | AI12: =(AF13-AG12-AH12)*12.36% -> 12802.77855 | AJ12: =AF13-AG12-AH12+AI12 -> 116385.1292 | AK12: =IF(AK$9="ROHA",HLOOKUP($A12,'[2]PROPOSED EX WORKS'!$D$2:$AE$90,17,0)) -> 106690 | AL12: 1000 | AM12: =IF(AK$9="ROHA",HLOOKUP($A12,[1]LD!$D$2:$AE$90,17,0)) -> 2322.814235 | AN12: =(AK12-AL12-AM12)*12.36% -> 12776.18416 | AO12: =AK12-AL12-AM12+AN12 -> 116143.3699
A13: B63A003A | B13: =IF(B$9="SANGLI",HLOOKUP($A13,'[2]PROPOSED EX WORKS'!$D$2:$AE$90,10,0)) -> 106280 | C13: 1000 | D13: =IF(B$9="SANGLI",HLOOKUP($A13,[1]LD!$D$2:$AE$90,10,0)) -> 2313.803412 | E13: =(B13-C13-D13)*12.36% -> 12726.6219 | F13: =B13-C13-D13+E13 -> 115692.8185 | G13: =IF(G$9="UMBERGAON",HLOOKUP($A13,'[2]PROPOSED EX WORKS'!$D$2:$AE$90,11,0)) -> 106720 | H13: 1000 | I13: =IF(G$9="UMBERGAON",HLOOKUP($A13,[1]LD!$D$2:$AE$90,11,0)) -> 2323.473564 | J13: =(G13-H13-I13)*12.36% -> 12779.81067 | K13: =G13-H13-I13+J13 -> 116176.3371 | L13: =IF(L$9="PUNE",HLOOKUP($A13,'[2]PROPOSED EX WORKS'!$D$2:$AE$90,12,0)) -> 106260 | M13: 1000 | N13: =IF(L$9="PUNE",HLOOKUP($A13,[1]LD!$D$2:$AE$90,12,0)) -> 2313.36386 | O13: =(L13-M13-N13)*12.36% -> 12724.20423 | P13: =L13-M13-N13+O13 -> 115670.8404 | Q13: =IF(Q$9="WAI",HLOOKUP($A13,'[2]PROPOSED EX WORKS'!$D$2:$AE$90,13,0)) -> 106260 | R13: 1000 | S13: =IF(Q$9="WAI",HLOOKUP($A13,[1]LD!$D$2:$AE$90,13,0)) -> 2313.36386 | T13: =(Q13-R13-S13)*12.36% -> 12724.20423 | U13: =Q13-R13-S13+T13 -> 115670.8404 | V13: =IF(V$9="NASIK",HLOOKUP($A13,'[2]PROPOSED EX WORKS'!$D$2:$AE$90,14,0)) -> 106690 | W13: 1000 | X13: =IF(V$9="NASIK",HLOOKUP($A13,[1]LD!$D$2:$AE$90,14,0)) -> 2322.814235 | Y13: =(V13-W13-X13)*12.36% -> 12776.18416 | Z13: =V13-W13-X13+Y13 -> 116143.3699 | AA13: =IF(AA$9="KOLHAPUR",HLOOKUP($A13,'[2]PROPOSED EX WORKS'!$D$2:$AE$90,15,0)) -> 106110 | AB13: 1000 | AC13: =IF(AA$9="KOLHAPUR",HLOOKUP($A13,[1]LD!$D$2:$AE$90,15,0)) -> 2310.067218 | AD13: =(AA13-AB13-AC13)*12.36% -> 12706.07169 | AE13: =AA13-AB13-AC13+AD13 -> 115506.0045 | AF13: =IF(AF$9="AHMEDNAGAR",HLOOKUP($A13,'[2]PROPOSED EX WORKS'!$D$2:$AE$90,16,0)) -> 106910 | AG13: 1000 | AH13: =IF(AF$9="AHMEDNAGAR",HLOOKUP($A13,[1]LD!$D$2:$AE$90,16,0)) -> 2327.649311 | AI13: =(AF14-AG13-AH13)*12.36% -> 13297.17855 | AJ13: =AF14-AG13-AH13+AI13 -> 120879.5292 | AK13: =IF(AK$9="ROHA",HLOOKUP($A13,'[2]PROPOSED EX WORKS'!$D$2:$AE$90,17,0)) -> 106690 | AL13: 1000 | AM13: =IF(AK$9="ROHA",HLOOKUP($A13,[1]LD!$D$2:$AE$90,17,0)) -> 2322.814235 | AN13: =(AK13-AL13-AM13)*12.36% -> 12776.18416 | AO13: =AK13-AL13-AM13+AN13 -> 116143.3699
A14: B55HM0003A | B14: =IF(B$9="SANGLI",HLOOKUP($A14,'[2]PROPOSED EX WORKS'!$D$2:$AE$90,10,0)) -> 110390 | C14: 1000 | D14: =IF(B$9="SANGLI",HLOOKUP($A14,[1]LD!$D$2:$AE$90,10,0)) -> 2404.131414 | E14: =(B14-C14-D14)*12.36% -> 13223.45336 | F14: =B14-C14-D14+E14 -> 120209.3219 | G14: =IF(G$9="UMBERGAON",HLOOKUP($A14,'[2]PROPOSED EX WORKS'!$D$2:$AE$90,11,0)) -> 111090 | H14: 1000 | I14: =IF(G$9="UMBERGAON",HLOOKUP($A14,[1]LD!$D$2:$AE$90,11,0)) -> 2419.515745 | J14: =(G14-H14-I14)*12.36% -> 13308.07185 | K14: =G14-H14-I14+J14 -> 120978.5561 | L14: =IF(L$9="PUNE",HLOOKUP($A14,'[2]PROPOSED EX WORKS'!$D$2:$AE$90,12,0)) -> 110290 | M14: 1000 | N14: =IF(L$9="PUNE",HLOOKUP($A14,[1]LD!$D$2:$AE$90,12,0)) -> 2401.933653 | O14: =(L14-M14-N14)*12.36% -> 13211.365 | P14: =L14-M14-N14+O14 -> 120099.4313 | Q14: =IF(Q$9="WAI",HLOOKUP($A14,'[2]PROPOSED EX WORKS'!$D$2:$AE$90,13,0)) -> 110290 | R14: 1000 | S14: =IF(Q$9="WAI",HLOOKUP($A14,[1]LD!$D$2:$AE$90,13,0)) -> 2401.933653 | T14: =(Q14-R14-S14)*12.36% -> 13211.365 | U14: =Q14-R14-S14+T14 -> 120099.4313 | V14: =IF(V$9="NASIK",HLOOKUP($A14,'[2]PROPOSED EX WORKS'!$D$2:$AE$90,14,0)) -> 110640 | W14: 1000 | X14: =IF(V$9="NASIK",HLOOKUP($A14,[1]LD!$D$2:$AE$90,14,0)) -> 2409.625818 | Y14: =(V14-W14-X14)*12.36% -> 13253.67425 | Z14: =V14-W14-X14+Y14 -> 120484.0484 | AA14: =IF(AA$9="KOLHAPUR",HLOOKUP($A14,'[2]PROPOSED EX WORKS'!$D$2:$AE$90,15,0)) -> 110080 | AB14: 1000 | AC14: =IF(AA$9="KOLHAPUR",HLOOKUP($A14,[1]LD!$D$2:$AE$90,15,0)) -> 2397.318353 | AD14: =(AA14-AB14-AC14)*12.36% -> 13185.97945 | AE14: =AA14-AB14-AC14+AD14 -> 119868.6611 | AF14: =IF(AF$9="AHMEDNAGAR",HLOOKUP($A14,'[2]PROPOSED EX WORKS'!$D$2:$AE$90,16,0)) -> 110910 | AG14: 1000 | AH14: =IF(AF$9="AHMEDNAGAR",HLOOKUP($A14,[1]LD!$D$2:$AE$90,16,0)) -> 2415.559775 | AI14: =(AF14-AG14-AH14)*12.36% -> 13286.31281 | AJ14: =AF14-AG14-AH14+AI14 -> 120780.753 | AK14: =IF(AK$9="ROHA",HLOOKUP($A14,'[2]PROPOSED EX WORKS'!$D$2:$AE$90,17,0)) -> 110640 | AL14: 1000 | AM14: =IF(AK$9="ROHA",HLOOKUP($A14,[1]LD!$D$2:$AE$90,17,0)) -> 2409.625818 | AN14: =(AK14-AL14-AM14)*12.36% -> 13253.67425 | AO14: =AK14-AL14-AM14+AN14 -> 120484.0484
A15: B53EA0035A | G15: =IF(G$9="UMBERGAON",HLOOKUP($A15,'[2]PROPOSED EX WORKS'!$D$2:$AE$90,11,0)) -> 107220 | H15: 1000 | I15: =IF(G$9="UMBERGAON",HLOOKUP($A15,[1]LD!$D$2:$AE$90,11,0)) -> 2334.462372 | J15: =(G15-H15-I15)*12.36% -> 12840.25245 | K15: =G15-H15-I15+J15 -> 116725.7901
A16: CABLE-INSUL
A17: C43D006A | B17: =IF(B$9="SANGLI",HLOOKUP($A17,'[2]PROPOSED EX WORKS'!$D$2:$AE$90,10,0)) -> 104313.5 | C17: 1000 | D17: =IF(B$9="SANGLI",HLOOKUP($A17,[1]LD!$D$2:$AE$90,10,0)) -> 2270.584431 | E17: =(B17-C17-D17)*12.36% -> 12488.90436 | F17: =B17-C17-D17+E17 -> 113531.8199 | G17: =IF(G$9="UMBERGAON",HLOOKUP($A17,'[2]PROPOSED EX WORKS'!$D$2:$AE$90,11,0)) -> 104336 | H17: 1000 | I17: =IF(G$9="UMBERGAON",HLOOKUP($A17,[1]LD!$D$2:$AE$90,11,0)) -> 2271.078927 | J17: =(G17-H17-I17)*12.36% -> 12491.62424 | K17: =G17-H17-I17+J17 -> 113556.5453 | L17: =IF(L$9="PUNE",HLOOKUP($A17,'[2]PROPOSED EX WORKS'!$D$2:$AE$90,12,0)) -> 104285 | M17: 1000 | N17: =IF(L$9="PUNE",HLOOKUP($A17,[1]LD!$D$2:$AE$90,12,0)) -> 2269.958069 | O17: =(L17-M17-N17)*12.36% -> 12485.45918 | P17: =L17-M17-N17+O17 -> 113500.5011 | Q17: =IF(Q$9="WAI",HLOOKUP($A17,'[2]PROPOSED EX WORKS'!$D$2:$AE$90,13,0)) -> 104285 | R17: 1000 | S17: =IF(Q$9="WAI",HLOOKUP($A17,[1]LD!$D$2:$AE$90,13,0)) -> 2269.958069 | T17: =(Q17-R17-S17)*12.36% -> 12485.45918 | U17: =Q17-R17-S17+T17 -> 113500.5011 | V17: =IF(V$9="NASIK",HLOOKUP($A17,'[2]PROPOSED EX WORKS'!$D$2:$AE$90,14,0)) -> 104674.5 | W17: 1000 | X17: =IF(V$9="NASIK",HLOOKUP($A17,[1]LD!$D$2:$AE$90,14,0)) -> 2278.51835 | Y17: =(V17-W17-X17)*12.36% -> 12532.54333 | Z17: =V17-W17-X17+Y17 -> 113928.525 | AA17: =IF(AA$9="KOLHAPUR",HLOOKUP($A17,'[2]PROPOSED EX WORKS'!$D$2:$AE$90,15,0)) -> 104123.5 | AB17: 1000 | AC17: =IF(AA$9="KOLHAPUR",HLOOKUP($A17,[1]LD!$D$2:$AE$90,15,0)) -> 2266.408684 | AD17: =(AA17-AB17-AC17)*12.36% -> 12465.93649 | AE17: =AA17-AB17-AC17+AD17 -> 113323.0278 | AF17: =IF(AF$9="AHMEDNAGAR",HLOOKUP($A17,'[2]PROPOSED EX WORKS'!$D$2:$AE$90,16,0)) -> 104921.5 | AG17: 1000 | AH17: =IF(AF$9="AHMEDNAGAR",HLOOKUP($A17,[1]LD!$D$2:$AE$90,16,0)) -> 2283.946821 | AI17: =(AF17-AG17-AH17)*12.36% -> 12562.40157 | AJ17: =AF17-AG17-AH17+AI17 -> 114199.9548 | AK17: =IF(AK$9="ROHA",HLOOKUP($A17,'[2]PROPOSED EX WORKS'!$D$2:$AE$90,17,0)) -> 104674.5 | AL17: 1000 | AM17: =IF(AK$9="ROHA",HLOOKUP($A17,[1]LD!$D$2:$AE$90,17,0)) -> 2278.51835 | AN17: =(AK17-AL17-AM17)*12.36% -> 12532.54333 | AO17: =AK17-AL17-AM17+AN17 -> 113928.525
A19: SHETG
A20: E45A003A | B20: =IF(B$9="SANGLI",HLOOKUP($A20,'[2]PROPOSED EX WORKS'!$D$2:$AE$90,10,0)) -> 105380 | C20: 1000 | D20: =IF(B$9="SANGLI",HLOOKUP($A20,[1]LD!$D$2:$AE$90,10,0)) -> 2294.023558 | E20: =(B20-C20-D20)*12.36% -> 12617.82669 | F20: =B20-C20-D20+E20 -> 114703.8031 | G20: =IF(G$9="UMBERGAON",HLOOKUP($A20,'[2]PROPOSED EX WORKS'!$D$2:$AE$90,11,0)) -> 105580 | H20: 1000 | I20: =IF(G$9="UMBERGAON",HLOOKUP($A20,[1]LD!$D$2:$AE$90,11,0)) -> 2298.419081 | J20: =(G20-H20-I20)*12.36% -> 12642.0034 | K20: =G20-H20-I20+J20 -> 114923.5843 | L20: =IF(L$9="PUNE",HLOOKUP($A20,'[2]PROPOSED EX WORKS'!$D$2:$AE$90,12,0)) -> 105350 | M20: 1000 | N20: =IF(L$9="PUNE",HLOOKUP($A20,[1]LD!$D$2:$AE$90,12,0)) -> 2293.36423 | O20: =(L20-M20-N20)*12.36% -> 12614.20018 | P20: =L20-M20-N20+O20 -> 114670.836 | Q20: =IF(Q$9="WAI",HLOOKUP($A20,'[2]PROPOSED EX WORKS'!$D$2:$AE$90,13,0)) -> 105350 | R20: 1000 | S20: =IF(Q$9="WAI",HLOOKUP($A20,[1]LD!$D$2:$AE$90,13,0)) -> 2293.36423 | T20: =(Q20-R20-S20)*12.36% -> 12614.20018 | U20: =Q20-R20-S20+T20 -> 114670.836 | V20: =IF(V$9="NASIK",HLOOKUP($A20,'[2]PROPOSED EX WORKS'!$D$2:$AE$90,14,0)) -> 105750 | W20: 1000 | X20: =IF(V$9="NASIK",HLOOKUP($A20,[1]LD!$D$2:$AE$90,14,0)) -> 2302.155276 | Y20: =(V20-W20-X20)*12.36% -> 12662.55361 | Z20: =V20-W20-X20+Y20 -> 115110.3983 | AA20: =IF(AA$9="KOLHAPUR",HLOOKUP($A20,'[2]PROPOSED EX WORKS'!$D$2:$AE$90,15,0)) -> 105180 | AB20: 1000 | AC20: =IF(AA$9="KOLHAPUR",HLOOKUP($A20,[1]LD!$D$2:$AE$90,15,0)) -> 2289.628035 | AD20: =(AA20-AB20-AC20)*12.36% -> 12593.64997 | AE20: =AA20-AB20-AC20+AD20 -> 114484.0219 | AF20: =IF(AF$9="AHMEDNAGAR",HLOOKUP($A20,'[2]PROPOSED EX WORKS'!$D$2:$AE$90,16,0)) -> 106020 | AG20: 1000 | AH20: =IF(AF$9="AHMEDNAGAR",HLOOKUP($A20,[1]LD!$D$2:$AE$90,16,0)) -> 2308.089232 | AI20: =(AF20-AG20-AH20)*12.36% -> 12695.19217 | AJ20: =AF20-AG20-AH20+AI20 -> 115407.1029 | AK20: =IF(AK$9="ROHA",HLOOKUP($A20,'[2]PROPOSED EX WORKS'!$D$2:$AE$90,17,0)) -> 105750 | AL20: 1000 | AM20: =IF(AK$9="ROHA",HLOOKUP($A20,[1]LD!$D$2:$AE$90,17,0)) -> 2302.155276 | AN20: =(AK20-AL20-AM20)*12.36% -> 12662.55361 | AO20: =AK20-AL20-AM20+AN20 -> 115110.3983
A21: E45A003OG
A22: EXTR
A23: E52A003A | B23: =IF(B$9="SANGLI",HLOOKUP($A23,'[2]PROPOSED EX WORKS'!$D$2:$AE$90,10,0)) -> 107050 | C23: 1000 | D23: =IF(B$9="SANGLI",HLOOKUP($A23,[1]LD!$D$2:$AE$90,10,0)) -> 2330.726177 | E23: =(B23-C23-D23)*12.36% -> 12819.70224 | F23: =B23-C23-D23+E23 -> 116538.9761 | G23: =IF(G$9="UMBERGAON",HLOOKUP($A23,'[2]PROPOSED EX WORKS'!$D$2:$AE$90,11,0)) -> 107680 | H23: 1000 | I23: =IF(G$9="UMBERGAON",HLOOKUP($A23,[1]LD!$D$2:$AE$90,11,0)) -> 2344.572075 | J23: =(G23-H23-I23)*12.36% -> 12895.85889 | K23: =G23-H23-I23+J23 -> 117231.2868 | L23: =IF(L$9="PUNE",HLOOKUP($A23,'[2]PROPOSED EX WORKS'!$D$2:$AE$90,12,0)) -> 107020 | M23: 1000 | N23: =IF(L$9="PUNE",HLOOKUP($A23,[1]LD!$D$2:$AE$90,12,0)) -> 2330.066848 | O23: =(L23-M23-N23)*12.36% -> 12816.07574 | P23: =L23-M23-N23+O23 -> 116506.0089 | Q23: =IF(Q$9="WAI",HLOOKUP($A23,'[2]PROPOSED EX WORKS'!$D$2:$AE$90,13,0)) -> 107020 | R23: 1000 | S23: =IF(Q$9="WAI",HLOOKUP($A23,[1]LD!$D$2:$AE$90,13,0)) -> 2330.066848 | T23: =(Q23-R23-S23)*12.36% -> 12816.07574 | U23: =Q23-R23-S23+T23 -> 116506.0089 | V23: =IF(V$9="NASIK",HLOOKUP($A23,'[2]PROPOSED EX WORKS'!$D$2:$AE$90,14,0)) -> 107420 | W23: 1000 | X23: =IF(V$9="NASIK",HLOOKUP($A23,[1]LD!$D$2:$AE$90,14,0)) -> 2338.857895 | Y23: =(V23-W23-X23)*12.36% -> 12864.42916 | Z23: =V23-W23-X23+Y23 -> 116945.5713 | AA23: =IF(AA$9="KOLHAPUR",HLOOKUP($A23,'[2]PROPOSED EX WORKS'!$D$2:$AE$90,15,0)) -> 106850 | AB23: 1000 | AC23: =IF(AA$9="KOLHAPUR",HLOOKUP($A23,[1]LD!$D$2:$AE$90,15,0)) -> 2326.330654 | AD23: =(AA23-AB23-AC23)*12.36% -> 12795.52553 | AE23: =AA23-AB23-AC23+AD23 -> 116319.1949 | AF23: =IF(AF$9="AHMEDNAGAR",HLOOKUP($A23,'[2]PROPOSED EX WORKS'!$D$2:$AE$90,16,0)) -> 107680 | AG23: 1000 | AH23: =IF(AF$9="AHMEDNAGAR",HLOOKUP($A23,[1]LD!$D$2:$AE$90,16,0)) -> 2344.572075 | AI23: =(AF23-AG23-AH23)*12.36% -> 12895.85889 | AJ23: =AF23-AG23-AH23+AI23 -> 117231.2868 | AK23: =IF(AK$9="ROHA",HLOOKUP($A23,'[2]PROPOSED EX WORKS'!$D$2:$AE$90,17,0)) -> 107420 | AL23: 1000 | AM23: =IF(AK$9="ROHA",HLOOKUP($A23,[1]LD!$D$2:$AE$90,17,0)) -> 2338.857895 | AN23: =(AK23-AL23-AM23)*12.36% -> 12864.42916 | AO23: =AK23-AL23-AM23+AN23 -> 116945.5713
A24: E52A003OG
A25: E52U003A | B25: =IF(B$9="SANGLI",HLOOKUP($A25,'[2]PROPOSED EX WORKS'!$D$2:$AE$90,10,0)) -> 110830 | C25: 1000 | D25: =IF(B$9="SANGLI",HLOOKUP($A25,[1]LD!$D$2:$AE$90,10,0)) -> 2358.857525 | E25: =(B25-C25-D25)*12.36% -> 13283.43321 | F25: =B25-C25-D25+E25 -> 120754.5757 | G25: =IF(G$9="UMBERGAON",HLOOKUP($A25,'[2]PROPOSED EX WORKS'!$D$2:$AE$90,11,0)) -> 111460 | H25: 1000 | I25: =IF(G$9="UMBERGAON",HLOOKUP($A25,[1]LD!$D$2:$AE$90,11,0)) -> 2372.703423 | J25: =(G25-H25-I25)*12.36% -> 13359.58986 | K25: =G25-H25-I25+J25 -> 121446.8864 | L25: =IF(L$9="PUNE",HLOOKUP($A25,'[2]PROPOSED EX WORKS'!$D$2:$AE$90,12,0)) -> 110800 | M25: 1000 | N25: =IF(L$9="PUNE",HLOOKUP($A25,[1]LD!$D$2:$AE$90,12,0)) -> 2358.198197 | O25: =(L25-M25-N25)*12.36% -> 13279.8067 | P25: =L25-M25-N25+O25 -> 120721.6085 | Q25: =IF(Q$9="WAI",HLOOKUP($A25,'[2]PROPOSED EX WORKS'!$D$2:$AE$90,13,0)) -> 110800 | R25: 1000 | S25: =IF(Q$9="WAI",HLOOKUP($A25,[1]LD!$D$2:$AE$90,13,0)) -> 2358.198197 | T25: =(Q25-R25-S25)*12.36% -> 13279.8067 | U25: =Q25-R25-S25+T25 -> 120721.6085 | V25: =IF(V$9="NASIK",HLOOKUP($A25,'[2]PROPOSED EX WORKS'!$D$2:$AE$90,14,0)) -> 111200 | W25: 1000 | X25: =IF(V$9="NASIK",HLOOKUP($A25,[1]LD!$D$2:$AE$90,14,0)) -> 2366.989243 | Y25: =(V25-W25-X25)*12.36% -> 13328.16013 | Z25: =V25-W25-X25+Y25 -> 121161.1709 | AA25: =IF(AA$9="KOLHAPUR",HLOOKUP($A25,'[2]PROPOSED EX WORKS'!$D$2:$AE$90,15,0)) -> 110630 | AB25: 1000 | AC25: =IF(AA$9="KOLHAPUR",HLOOKUP($A25,[1]LD!$D$2:$AE$90,15,0)) -> 2354.462002 | AD25: =(AA25-AB25-AC25)*12.36% -> 13259.2565 | AE25: =AA25-AB25-AC25+AD25 -> 120534.7945 | AF25: =IF(AF$9="AHMEDNAGAR",HLOOKUP($A25,'[2]PROPOSED EX WORKS'!$D$2:$AE$90,16,0)) -> 111460 | AG25: 1000 | AH25: =IF(AF$9="AHMEDNAGAR",HLOOKUP($A25,[1]LD!$D$2:$AE$90,16,0)) -> 2372.703423 | AI25: =(AF25-AG25-AH25)*12.36% -> 13359.58986 | AJ25: =AF25-AG25-AH25+AI25 -> 121446.8864 | AK25: =IF(AK$9="ROHA",HLOOKUP($A25,'[2]PROPOSED EX WORKS'!$D$2:$AE$90,17,0)) -> 111200 | AL25: 1000 | AM25: =IF(AK$9="ROHA",HLOOKUP($A25,[1]LD!$D$2:$AE$90,17,0)) -> 2366.989243 | AN25: =(AK25-AL25-AM25)*12.36% -> 13328.16013 | AO25: =AK25-AL25-AM25+AN25 -> 121161.1709
A26: E52U003OG
A27: HM FILM
A28: F55HM0003A | B28: =IF(B$9="SANGLI",HLOOKUP($A28,'[2]PROPOSED EX WORKS'!$D$2:$AE$90,10,0)) -> 106440 | C28: 1000 | D28: =IF(B$9="SANGLI",HLOOKUP($A28,[1]LD!$D$2:$AE$90,10,0)) -> 2317.319831 | E28: =(B28-C28-D28)*12.36% -> 12745.96327 | F28: =B28-C28-D28+E28 -> 115868.6434 | G28: =IF(G$9="UMBERGAON",HLOOKUP($A28,'[2]PROPOSED EX WORKS'!$D$2:$AE$90,11,0)) -> 106640 | H28: 1000 | I28: =IF(G$9="UMBERGAON",HLOOKUP($A28,[1]LD!$D$2:$AE$90,11,0)) -> 2321.715354 | J28: =(G28-H28-I28)*12.36% -> 12770.13998 | K28: =G28-H28-I28+J28 -> 116088.4246 | L28: =IF(L$9="PUNE",HLOOKUP($A28,'[2]PROPOSED EX WORKS'!$D$2:$AE$90,12,0)) -> 106340 | M28: 1000 | N28: =IF(L$9="PUNE",HLOOKUP($A28,[1]LD!$D$2:$AE$90,12,0)) -> 2315.122069 | O28: =(L28-M28-N28)*12.36% -> 12733.87491 | P28: =L28-M28-N28+O28 -> 115758.7528 | Q28: =IF(Q$9="WAI",HLOOKUP($A28,'[2]PROPOSED EX WORKS'!$D$2:$AE$90,13,0)) -> 106340 | R28: 1000 | S28: =IF(Q$9="WAI",HLOOKUP($A28,[1]LD!$D$2:$AE$90,13,0)) -> 2315.122069 | T28: =(Q28-R28-S28)*12.36% -> 12733.87491 | U28: =Q28-R28-S28+T28 -> 115758.7528 | V28: =IF(V$9="NASIK",HLOOKUP($A28,'[2]PROPOSED EX WORKS'!$D$2:$AE$90,14,0)) -> 106690 | W28: 1000 | X28: =IF(V$9="NASIK",HLOOKUP($A28,[1]LD!$D$2:$AE$90,14,0)) -> 2322.814235 | Y28: =(V28-W28-X28)*12.36% -> 12776.18416 | Z28: =V28-W28-X28+Y28 -> 116143.3699 | AA28: =IF(AA$9="KOLHAPUR",HLOOKUP($A28,'[2]PROPOSED EX WORKS'!$D$2:$AE$90,15,0)) -> 106130 | AB28: 1000 | AC28: =IF(AA$9="KOLHAPUR",HLOOKUP($A28,[1]LD!$D$2:$AE$90,15,0)) -> 2310.50677 | AD28: =(AA28-AB28-AC28)*12.36% -> 12708.48936 | AE28: =AA28-AB28-AC28+AD28 -> 115527.9826 | AF28: =IF(AF$9="AHMEDNAGAR",HLOOKUP($A28,'[2]PROPOSED EX WORKS'!$D$2:$AE$90,16,0)) -> 106960 | AG28: 1000 | AH28: =IF(AF$9="AHMEDNAGAR",HLOOKUP($A28,[1]LD!$D$2:$AE$90,16,0)) -> 2328.748191 | AI28: =(AF28-AG28-AH28)*12.36% -> 12808.82272 | AJ28: =AF28-AG28-AH28+AI28 -> 116440.0745 | AK28: =IF(AK$9="ROHA",HLOOKUP($A28,'[2]PROPOSED EX WORKS'!$D$2:$AE$90,17,0)) -> 106690 | AL28: 1000 | AM28: =IF(AK$9="ROHA",HLOOKUP($A28,[1]LD!$D$2:$AE$90,17,0)) -> 2322.814235 | AN28: =(AK28-AL28-AM28)*12.36% -> 12776.18416 | AO28: =AK28-AL28-AM28+AN28 -> 116143.3699
A29: F55HM0003OG
A30: IM HIGH
A31: I50A180A | B31: =IF(B$9="SANGLI",HLOOKUP($A31,'[2]PROPOSED EX WORKS'!$D$2:$AE$90,10,0)) -> 102840 | C31: 1000 | D31: =IF(B$9="SANGLI",HLOOKUP($A31,[1]LD!$D$2:$AE$90,10,0)) -> 2238.200413 | E31: =(B31-C31-D31)*12.36% -> 12310.78243 | F31: =B31-C31-D31+E31 -> 111912.582 | G31: =IF(G$9="UMBERGAON",HLOOKUP($A31,'[2]PROPOSED EX WORKS'!$D$2:$AE$90,11,0)) -> 102940 | H31: 1000 | I31: =IF(G$9="UMBERGAON",HLOOKUP($A31,[1]LD!$D$2:$AE$90,11,0)) -> 2240.398175 | J31: =(G31-H31-I31)*12.36% -> 12322.87079 | K31: =G31-H31-I31+J31 -> 112022.4726 | L31: =IF(L$9="PUNE",HLOOKUP($A31,'[2]PROPOSED EX WORKS'!$D$2:$AE$90,12,0)) -> 102720 | M31: 1000 | N31: =IF(L$9="PUNE",HLOOKUP($A31,[1]LD!$D$2:$AE$90,12,0)) -> 2235.5631 | O31: =(L31-M31-N31)*12.36% -> 12296.2764 | P31: =L31-M31-N31+O31 -> 111780.7133 | Q31: =IF(Q$9="WAI",HLOOKUP($A31,'[2]PROPOSED EX WORKS'!$D$2:$AE$90,13,0)) -> 102720 | R31: 1000 | S31: =IF(Q$9="WAI",HLOOKUP($A31,[1]LD!$D$2:$AE$90,13,0)) -> 2235.5631 | T31: =(Q31-R31-S31)*12.36% -> 12296.2764 | U31: =Q31-R31-S31+T31 -> 111780.7133 | V31: =IF(V$9="NASIK",HLOOKUP($A31,'[2]PROPOSED EX WORKS'!$D$2:$AE$90,14,0)) -> 103040 | W31: 1000 | X31: =IF(V$9="NASIK",HLOOKUP($A31,[1]LD!$D$2:$AE$90,14,0)) -> 2242.595937 | Y31: =(V31-W31-X31)*12.36% -> 12334.95914 | Z31: =V31-W31-X31+Y31 -> 112132.3632 | AA31: =IF(AA$9="KOLHAPUR",HLOOKUP($A31,'[2]PROPOSED EX WORKS'!$D$2:$AE$90,15,0)) -> 102560 | AB31: 1000 | AC31: =IF(AA$9="KOLHAPUR",HLOOKUP($A31,[1]LD!$D$2:$AE$90,15,0)) -> 2232.046681 | AD31: =(AA31-AB31-AC31)*12.36% -> 12276.93503 | AE31: =AA31-AB31-AC31+AD31 -> 111604.8883 | AF31: =IF(AF$9="AHMEDNAGAR",HLOOKUP($A31,'[2]PROPOSED EX WORKS'!$D$2:$AE$90,16,0)) -> 103300 | AG31: 1000 | AH31: =IF(AF$9="AHMEDNAGAR",HLOOKUP($A31,[1]LD!$D$2:$AE$90,16,0)) -> 2248.310117 | AI31: =(AF31-AG31-AH31)*12.36% -> 12366.38887 | AJ31: =AF31-AG31-AH31+AI31 -> 112418.0788 | AK31: =IF(AK$9="ROHA",HLOOKUP($A31,'[2]PROPOSED EX WORKS'!$D$2:$AE$90,17,0)) -> 103040 | AL31: 1000 | AM31: =IF(AK$9="ROHA",HLOOKUP($A31,[1]LD!$D$2:$AE$90,17,0)) -> 2242.595937 | AN31: =(AK31-AL31-AM31)*12.36% -> 12334.95914 | AO31: =AK31-AL31-AM31+AN31 -> 112132.3632
A32: I50A180OG
A33: IM LOW
A34: I60A080A | B34: =IF(B$9="SANGLI",HLOOKUP($A34,'[2]PROPOSED EX WORKS'!$D$2:$AE$90,10,0)) -> 104020 | C34: 1000 | D34: =IF(B$9="SANGLI",HLOOKUP($A34,[1]LD!$D$2:$AE$90,10,0)) -> 2264.134 | E34: =(B34-C34-D34)*12.36% -> 12453.42504 | F34: =B34-C34-D34+E34 -> 113209.291 | G34: =IF(G$9="UMBERGAON",HLOOKUP($A34,'[2]PROPOSED EX WORKS'!$D$2:$AE$90,11,0)) -> 104180 | H34: 1000 | I34: =IF(G$9="UMBERGAON",HLOOKUP($A34,[1]LD!$D$2:$AE$90,11,0)) -> 2267.650419 | J34: =(G34-H34-I34)*12.36% -> 12472.76641 | K34: =G34-H34-I34+J34 -> 113385.116 | L34: =IF(L$9="PUNE",HLOOKUP($A34,'[2]PROPOSED EX WORKS'!$D$2:$AE$90,12,0)) -> 104000 | M34: 1000 | N34: =IF(L$9="PUNE",HLOOKUP($A34,[1]LD!$D$2:$AE$90,12,0)) -> 2263.694448 | O34: =(L34-M34-N34)*12.36% -> 12451.00737 | P34: =L34-M34-N34+O34 -> 113187.3129 | Q34: =IF(Q$9="WAI",HLOOKUP($A34,'[2]PROPOSED EX WORKS'!$D$2:$AE$90,13,0)) -> 104000 | R34: 1000 | S34: =IF(Q$9="WAI",HLOOKUP($A34,[1]LD!$D$2:$AE$90,13,0)) -> 2263.694448 | T34: =(Q34-R34-S34)*12.36% -> 12451.00737 | U34: =Q34-R34-S34+T34 -> 113187.3129 | V34: =IF(V$9="NASIK",HLOOKUP($A34,'[2]PROPOSED EX WORKS'!$D$2:$AE$90,14,0)) -> 104400 | W34: 1000 | X34: =IF(V$9="NASIK",HLOOKUP($A34,[1]LD!$D$2:$AE$90,14,0)) -> 2272.485494 | Y34: =(V34-W34-X34)*12.36% -> 12499.36079 | Z34: =V34-W34-X34+Y34 -> 113626.8753 | AA34: =IF(AA$9="KOLHAPUR",HLOOKUP($A34,'[2]PROPOSED EX WORKS'!$D$2:$AE$90,15,0)) -> 103830 | AB34: 1000 | AC34: =IF(AA$9="KOLHAPUR",HLOOKUP($A34,[1]LD!$D$2:$AE$90,15,0)) -> 2259.958253 | AD34: =(AA34-AB34-AC34)*12.36% -> 12430.45716 | AE34: =AA34-AB34-AC34+AD34 -> 113000.4989 | AF34: =IF(AF$9="AHMEDNAGAR",HLOOKUP($A34,'[2]PROPOSED EX WORKS'!$D$2:$AE$90,16,0)) -> 104660 | AG34: 1000 | AH34: =IF(AF$9="AHMEDNAGAR",HLOOKUP($A34,[1]LD!$D$2:$AE$90,16,0)) -> 2278.199675 | AI34: =(AF34-AG34-AH34)*12.36% -> 12530.79052 | AJ34: =AF34-AG34-AH34+AI34 -> 113912.5908 | AK34: =IF(AK$9="ROHA",HLOOKUP($A34,'[2]PROPOSED EX WORKS'!$D$2:$AE$90,17,0)) -> 104400 | AL34: 1000 | AM34: =IF(AK$9="ROHA",HLOOKUP($A34,[1]LD!$D$2:$AE$90,17,0)) -> 2272.485494 | AN34: =(AK34-AL34-AM34)*12.36% -> 12499.36079 | AO34: =AK34-AL34-AM34+AN34 -> 113626.8753
A35: I60A080OG
A36: IM-L-UV
A37: I60U080A | B37: =IF(B$9="SANGLI",HLOOKUP($A37,'[2]PROPOSED EX WORKS'!$D$2:$AE$90,10,0)) -> 105560 | C37: 1000 | D37: =IF(B$9="SANGLI",HLOOKUP($A37,[1]LD!$D$2:$AE$90,10,0)) -> 2297.979529 | E37: =(B37-C37-D37)*12.36% -> 12639.58573 | F37: =B37-C37-D37+E37 -> 114901.6062 | G37: =IF(G$9="UMBERGAON",HLOOKUP($A37,'[2]PROPOSED EX WORKS'!$D$2:$AE$90,11,0)) -> 105680 | H37: 1000 | I37: =IF(G$9="UMBERGAON",HLOOKUP($A37,[1]LD!$D$2:$AE$90,11,0)) -> 2300.616843 | J37: =(G37-H37-I37)*12.36% -> 12654.09176 | K37: =G37-H37-I37+J37 -> 115033.4749 | L37: =IF(L$9="PUNE",HLOOKUP($A37,'[2]PROPOSED EX WORKS'!$D$2:$AE$90,12,0)) -> 105530 | M37: 1000 | N37: =IF(L$9="PUNE",HLOOKUP($A37,[1]LD!$D$2:$AE$90,12,0)) -> 2297.3202 | O37: =(L37-M37-N37)*12.36% -> 12635.95922 | P37: =L37-M37-N37+O37 -> 114868.639 | Q37: =IF(Q$9="WAI",HLOOKUP($A37,'[2]PROPOSED EX WORKS'!$D$2:$AE$90,13,0)) -> 105530 | R37: 1000 | S37: =IF(Q$9="WAI",HLOOKUP($A37,[1]LD!$D$2:$AE$90,13,0)) -> 2297.3202 | T37: =(Q37-R37-S37)*12.36% -> 12635.95922 | U37: =Q37-R37-S37+T37 -> 114868.639 | V37: =IF(V$9="NASIK",HLOOKUP($A37,'[2]PROPOSED EX WORKS'!$D$2:$AE$90,14,0)) -> 105930 | W37: 1000 | X37: =IF(V$9="NASIK",HLOOKUP($A37,[1]LD!$D$2:$AE$90,14,0)) -> 2306.111247 | Y37: =(V37-W37-X37)*12.36% -> 12684.31265 | Z37: =V37-W37-X37+Y37 -> 115308.2014 | AA37: =IF(AA$9="KOLHAPUR",HLOOKUP($A37,'[2]PROPOSED EX WORKS'!$D$2:$AE$90,15,0)) -> 105360 | AB37: 1000 | AC37: =IF(AA$9="KOLHAPUR",HLOOKUP($A37,[1]LD!$D$2:$AE$90,15,0)) -> 2293.584006 | AD37: =(AA37-AB37-AC37)*12.36% -> 12615.40902 | AE37: =AA37-AB37-AC37+AD37 -> 114681.825 | AF37: =IF(AF$9="AHMEDNAGAR",HLOOKUP($A37,'[2]PROPOSED EX WORKS'!$D$2:$AE$90,16,0)) -> 106200 | AG37: 1000 | AH37: =IF(AF$9="AHMEDNAGAR",HLOOKUP($A37,[1]LD!$D$2:$AE$90,16,0)) -> 2312.045203 | AI37: =(AF37-AG37-AH37)*12.36% -> 12716.95121 | AJ37: =AF37-AG37-AH37+AI37 -> 115604.906 | AK37: =IF(AK$9="ROHA",HLOOKUP($A37,'[2]PROPOSED EX WORKS'!$D$2:$AE$90,17,0)) -> 105930 | AL37: 1000 | AM37: =IF(AK$9="ROHA",HLOOKUP($A37,[1]LD!$D$2:$AE$90,17,0)) -> 2306.111247 | AN37: =(AK37-AL37-AM37)*12.36% -> 12684.31265 | AO37: =AK37-AL37-AM37+AN37 -> 115308.2014
A38: I60U080OG
A39: PIPE (PE80)
A40: P54A001A | B40: =IF(B$9="SANGLI",HLOOKUP($A40,'[2]PROPOSED EX WORKS'!$D$2:$AE$90,10,0)) -> 113150 | C40: 1000 | D40: =IF(B$9="SANGLI",HLOOKUP($A40,[1]LD!$D$2:$AE$90,10,0)) -> 2409.845594 | E40: =(B40-C40-D40)*12.36% -> 13563.88308 | F40: =B40-C40-D40+E40 -> 123304.0375 | G40: =IF(G$9="UMBERGAON",HLOOKUP($A40,'[2]PROPOSED EX WORKS'!$D$2:$AE$90,11,0)) -> 113850 | H40: 1000 | I40: =IF(G$9="UMBERGAON",HLOOKUP($A40,[1]LD!$D$2:$AE$90,11,0)) -> 2425.229926 | J40: =(G40-H40-I40)*12.36% -> 13648.50158 | K40: =G40-H40-I40+J40 -> 124073.2717 | L40: =IF(L$9="PUNE",HLOOKUP($A40,'[2]PROPOSED EX WORKS'!$D$2:$AE$90,12,0)) -> 113050 | M40: 1000 | N40: =IF(L$9="PUNE",HLOOKUP($A40,[1]LD!$D$2:$AE$90,12,0)) -> 2407.647833 | O40: =(L40-M40-N40)*12.36% -> 13551.79473 | P40: =L40-M40-N40+O40 -> 123194.1469 | Q40: =IF(Q$9="WAI",HLOOKUP($A40,'[2]PROPOSED EX WORKS'!$D$2:$AE$90,13,0)) -> 113050 | R40: 1000 | S40: =IF(Q$9="WAI",HLOOKUP($A40,[1]LD!$D$2:$AE$90,13,0)) -> 2407.647833 | T40: =(Q40-R40-S40)*12.36% -> 13551.79473 | U40: =Q40-R40-S40+T40 -> 123194.1469 | V40: =IF(V$9="NASIK",HLOOKUP($A40,'[2]PROPOSED EX WORKS'!$D$2:$AE$90,14,0)) -> 113400 | W40: 1000 | X40: =IF(V$9="NASIK",HLOOKUP($A40,[1]LD!$D$2:$AE$90,14,0)) -> 2415.339998 | Y40: =(V40-W40-X40)*12.36% -> 13594.10398 | Z40: =V40-W40-X40+Y40 -> 123578.764 | AA40: =IF(AA$9="KOLHAPUR",HLOOKUP($A40,'[2]PROPOSED EX WORKS'!$D$2:$AE$90,15,0)) -> 112840 | AB40: 1000 | AC40: =IF(AA$9="KOLHAPUR",HLOOKUP($A40,[1]LD!$D$2:$AE$90,15,0)) -> 2403.032533 | AD40: =(AA40-AB40-AC40)*12.36% -> 13526.40918 | AE40: =AA40-AB40-AC40+AD40 -> 122963.3766 | AF40: =IF(AF$9="AHMEDNAGAR",HLOOKUP($A40,'[2]PROPOSED EX WORKS'!$D$2:$AE$90,16,0)) -> 113670 | AG40: 1000 | AH40: =IF(AF$9="AHMEDNAGAR",HLOOKUP($A40,[1]LD!$D$2:$AE$90,16,0)) -> 2421.273955 | AI40: =(AF40-AG40-AH40)*12.36% -> 13626.74254 | AJ40: =AF40-AG40-AH40+AI40 -> 123875.4686 | AK40: =IF(AK$9="ROHA",HLOOKUP($A40,'[2]PROPOSED EX WORKS'!$D$2:$AE$90,17,0)) -> 113400 | AL40: 1000 | AM40: =IF(AK$9="ROHA",HLOOKUP($A40,[1]LD!$D$2:$AE$90,17,0)) -> 2415.339998 | AN40: =(AK40-AL40-AM40)*12.36% -> 13594.10398 | AO40: =AK40-AL40-AM40+AN40 -> 123578.764
A41: PIPE (PE100)
A42: P52A003A | B42: =IF(B$9="SANGLI",HLOOKUP($A42,'[2]PROPOSED EX WORKS'!$D$2:$AE$90,10,0)) -> 115150 | C42: 1000 | D42: =IF(B$9="SANGLI",HLOOKUP($A42,[1]LD!$D$2:$AE$90,10,0)) -> 2453.800826 | E42: =(B42-C42-D42)*12.36% -> 13805.65022 | F42: =B42-C42-D42+E42 -> 125501.8494 | G42: =IF(G$9="UMBERGAON",HLOOKUP($A42,'[2]PROPOSED EX WORKS'!$D$2:$AE$90,11,0)) -> 115850 | H42: 1000 | I42: =IF(G$9="UMBERGAON",HLOOKUP($A42,[1]LD!$D$2:$AE$90,11,0)) -> 2469.185158 | J42: =(G42-H42-I42)*12.36% -> 13890.26871 | K42: =G42-H42-I42+J42 -> 126271.0836 | L42: =IF(L$9="PUNE",HLOOKUP($A42,'[2]PROPOSED EX WORKS'!$D$2:$AE$90,12,0)) -> 115050 | M42: 1000 | N42: =IF(L$9="PUNE",HLOOKUP($A42,[1]LD!$D$2:$AE$90,12,0)) -> 2451.603065 | O42: =(L42-M42-N42)*12.36% -> 13793.56186 | P42: =L42-M42-N42+O42 -> 125391.9588 | Q42: =IF(Q$9="WAI",HLOOKUP($A42,'[2]PROPOSED EX WORKS'!$D$2:$AE$90,13,0)) -> 115050 | R42: 1000 | S42: =IF(Q$9="WAI",HLOOKUP($A42,[1]LD!$D$2:$AE$90,13,0)) -> 2451.603065 | T42: =(Q42-R42-S42)*12.36% -> 13793.56186 | U42: =Q42-R42-S42+T42 -> 125391.9588 | V42: =IF(V$9="NASIK",HLOOKUP($A42,'[2]PROPOSED EX WORKS'!$D$2:$AE$90,14,0)) -> 115400 | W42: 1000 | X42: =IF(V$9="NASIK",HLOOKUP($A42,[1]LD!$D$2:$AE$90,14,0)) -> 2459.29523 | Y42: =(V42-W42-X42)*12.36% -> 13835.87111 | Z42: =V42-W42-X42+Y42 -> 125776.5759 | AA42: =IF(AA$9="KOLHAPUR",HLOOKUP($A42,'[2]PROPOSED EX WORKS'!$D$2:$AE$90,15,0)) -> 114840 | AB42: 1000 | AC42: =IF(AA$9="KOLHAPUR",HLOOKUP($A42,[1]LD!$D$2:$AE$90,15,0)) -> 2446.987765 | AD42: =(AA42-AB42-AC42)*12.36% -> 13768.17631 | AE42: =AA42-AB42-AC42+AD42 -> 125161.1885 | AF42: =IF(AF$9="AHMEDNAGAR",HLOOKUP($A42,'[2]PROPOSED EX WORKS'!$D$2:$AE$90,16,0)) -> 115670 | AG42: 1000 | AH42: =IF(AF$9="AHMEDNAGAR",HLOOKUP($A42,[1]LD!$D$2:$AE$90,16,0)) -> 2465.229187 | AI42: =(AF42-AG42-AH42)*12.36% -> 13868.50967 | AJ42: =AF42-AG42-AH42+AI42 -> 126073.2805 | AK42: =IF(AK$9="ROHA",HLOOKUP($A42,'[2]PROPOSED EX WORKS'!$D$2:$AE$90,17,0)) -> 115400 | AL42: 1000 | AM42: =IF(AK$9="ROHA",HLOOKUP($A42,[1]LD!$D$2:$AE$90,17,0)) -> 2459.29523 | AN42: =(AK42-AL42-AM42)*12.36% -> 13835.87111 | AO42: =AK42-AL42-AM42+AN42 -> 125776.5759
A43: RAFFIA
A44: W50A009A | B44: =IF(B$9="SANGLI",HLOOKUP($A44,'[2]PROPOSED EX WORKS'!$D$2:$AE$90,10,0)) -> 107150 | C44: 1000 | D44: =IF(B$9="SANGLI",HLOOKUP($A44,[1]LD!$D$2:$AE$90,10,0)) -> 2245.013474 | E44: =(B44-C44-D44)*12.36% -> 12842.65633 | F44: =B44-C44-D44+E44 -> 116747.6429 | G44: =IF(G$9="UMBERGAON",HLOOKUP($A44,'[2]PROPOSED EX WORKS'!$D$2:$AE$90,11,0)) -> 107180 | H44: 1000 | I44: =IF(G$9="UMBERGAON",HLOOKUP($A44,[1]LD!$D$2:$AE$90,11,0)) -> 2245.672803 | J44: =(G44-H44-I44)*12.36% -> 12846.28284 | K44: =G44-H44-I44+J44 -> 116780.61 | L44: =IF(L$9="PUNE",HLOOKUP($A44,'[2]PROPOSED EX WORKS'!$D$2:$AE$90,12,0)) -> 107120 | M44: 1000 | N44: =IF(L$9="PUNE",HLOOKUP($A44,[1]LD!$D$2:$AE$90,12,0)) -> 2244.354146 | O44: =(L44-M44-N44)*12.36% -> 12839.02983 | P44: =L44-M44-N44+O44 -> 116714.6757 | Q44: =IF(Q$9="WAI",HLOOKUP($A44,'[2]PROPOSED EX WORKS'!$D$2:$AE$90,13,0)) -> 107120 | R44: 1000 | S44: =IF(Q$9="WAI",HLOOKUP($A44,[1]LD!$D$2:$AE$90,13,0)) -> 2244.354146 | T44: =(Q44-R44-S44)*12.36% -> 12839.02983 | U44: =Q44-R44-S44+T44 -> 116714.6757 | V44: =IF(V$9="NASIK",HLOOKUP($A44,'[2]PROPOSED EX WORKS'!$D$2:$AE$90,14,0)) -> 107520 | W44: 1000 | X44: =IF(V$9="NASIK",HLOOKUP($A44,[1]LD!$D$2:$AE$90,14,0)) -> 2253.145192 | Y44: =(V44-W44-X44)*12.36% -> 12887.38325 | Z44: =V44-W44-X44+Y44 -> 117154.2381 | AA44: =IF(AA$9="KOLHAPUR",HLOOKUP($A44,'[2]PROPOSED EX WORKS'!$D$2:$AE$90,15,0)) -> 106950 | AB44: 1000 | AC44: =IF(AA$9="KOLHAPUR",HLOOKUP($A44,[1]LD!$D$2:$AE$90,15,0)) -> 2240.617951 | AD44: =(AA44-AB44-AC44)*12.36% -> 12818.47962 | AE44: =AA44-AB44-AC44+AD44 -> 116527.8617 | AF44: =IF(AF$9="AHMEDNAGAR",HLOOKUP($A44,'[2]PROPOSED EX WORKS'!$D$2:$AE$90,16,0)) -> 107790 | AG44: 1000 | AH44: =IF(AF$9="AHMEDNAGAR",HLOOKUP($A44,[1]LD!$D$2:$AE$90,16,0)) -> 2259.079149 | AI44: =(AF44-AG44-AH44)*12.36% -> 12920.02182 | AJ44: =AF44-AG44-AH44+AI44 -> 117450.9427 | AK44: =IF(AK$9="ROHA",HLOOKUP($A44,'[2]PROPOSED EX WORKS'!$D$2:$AE$90,17,0)) -> 107520 | AL44: 1000 | AM44: =IF(AK$9="ROHA",HLOOKUP($A44,[1]LD!$D$2:$AE$90,17,0)) -> 2253.145192 | AN44: =(AK44-AL44-AM44)*12.36% -> 12887.38325 | AO44: =AK44-AL44-AM44+AN44 -> 117154.2381
A45: T50A010A | B45: =IF(B$9="SANGLI",HLOOKUP($A45,'[2]PROPOSED EX WORKS'!$D$2:$AE$90,10,0)) -> 107150 | C45: 1000 | D45: =IF(B$9="SANGLI",HLOOKUP($A45,[1]LD!$D$2:$AE$90,10,0)) -> 2245.013474 | E45: =(B45-C45-D45)*12.36% -> 12842.65633 | F45: =B45-C45-D45+E45 -> 116747.6429 | G45: =IF(G$9="UMBERGAON",HLOOKUP($A45,'[2]PROPOSED EX WORKS'!$D$2:$AE$90,11,0)) -> 107180 | H45: 1000 | I45: =IF(G$9="UMBERGAON",HLOOKUP($A45,[1]LD!$D$2:$AE$90,11,0)) -> 2245.672803 | J45: =(G45-H45-I45)*12.36% -> 12846.28284 | K45: =G45-H45-I45+J45 -> 116780.61 | L45: =IF(L$9="PUNE",HLOOKUP($A45,'[2]PROPOSED EX WORKS'!$D$2:$AE$90,12,0)) -> 107120 | M45: 1000 | N45: =IF(L$9="PUNE",HLOOKUP($A45,[1]LD!$D$2:$AE$90,12,0)) -> 2244.354146 | O45: =(L45-M45-N45)*12.36% -> 12839.02983 | P45: =L45-M45-N45+O45 -> 116714.6757 | Q45: =IF(Q$9="WAI",HLOOKUP($A45,'[2]PROPOSED EX WORKS'!$D$2:$AE$90,13,0)) -> 107120 | R45: 1000 | S45: =IF(Q$9="WAI",HLOOKUP($A45,[1]LD!$D$2:$AE$90,13,0)) -> 2244.354146 | T45: =(Q45-R45-S45)*12.36% -> 12839.02983 | U45: =Q45-R45-S45+T45 -> 116714.6757 | V45: =IF(V$9="NASIK",HLOOKUP($A45,'[2]PROPOSED EX WORKS'!$D$2:$AE$90,14,0)) -> 107520 | W45: 1000 | X45: =IF(V$9="NASIK",HLOOKUP($A45,[1]LD!$D$2:$AE$90,14,0)) -> 2253.145192 | Y45: =(V45-W45-X45)*12.36% -> 12887.38325 | Z45: =V45-W45-X45+Y45 -> 117154.2381 | AA45: =IF(AA$9="KOLHAPUR",HLOOKUP($A45,'[2]PROPOSED EX WORKS'!$D$2:$AE$90,15,0)) -> 106950 | AB45: 1000 | AC45: =IF(AA$9="KOLHAPUR",HLOOKUP($A45,[1]LD!$D$2:$AE$90,15,0)) -> 2240.617951 | AD45: =(AA45-AB45-AC45)*12.36% -> 12818.47962 | AE45: =AA45-AB45-AC45+AD45 -> 116527.8617 | AF45: =IF(AF$9="AHMEDNAGAR",HLOOKUP($A45,'[2]PROPOSED EX WORKS'!$D$2:$AE$90,16,0)) -> 107790 | AG45: 1000 | AH45: =IF(AF$9="AHMEDNAGAR",HLOOKUP($A45,[1]LD!$D$2:$AE$90,16,0)) -> 2259.079149 | AI45: =(AF45-AG45-AH45)*12.36% -> 12920.02182 | AJ45: =AF45-AG45-AH45+AI45 -> 117450.9427 | AK45: =IF(AK$9="ROHA",HLOOKUP($A45,'[2]PROPOSED EX WORKS'!$D$2:$AE$90,17,0)) -> 107520 | AL45: 1000 | AM45: =IF(AK$9="ROHA",HLOOKUP($A45,[1]LD!$D$2:$AE$90,17,0)) -> 2253.145192 | AN45: =(AK45-AL45-AM45)*12.36% -> 12887.38325 | AO45: =AK45-AL45-AM45+AN45 -> 117154.2381
A46: MF
A47: W52A009A | B47: =IF(B$9="SANGLI",HLOOKUP($A47,'[2]PROPOSED EX WORKS'!$D$2:$AE$90,10,0)) -> 103650 | C47: 1000 | D47: =IF(B$9="SANGLI",HLOOKUP($A47,[1]LD!$D$2:$AE$90,10,0)) -> 2256.002282 | E47: =(B47-C47-D47)*12.36% -> 12408.69812 | F47: =B47-C47-D47+E47 -> 112802.6958 | G47: =IF(G$9="UMBERGAON",HLOOKUP($A47,'[2]PROPOSED EX WORKS'!$D$2:$AE$90,11,0)) -> 103680 | H47: 1000 | I47: =IF(G$9="UMBERGAON",HLOOKUP($A47,[1]LD!$D$2:$AE$90,11,0)) -> 2256.661611 | J47: =(G47-H47-I47)*12.36% -> 12412.32462 | K47: =G47-H47-I47+J47 -> 112835.663 | L47: =IF(L$9="PUNE",HLOOKUP($A47,'[2]PROPOSED EX WORKS'!$D$2:$AE$90,12,0)) -> 103620 | M47: 1000 | N47: =IF(L$9="PUNE",HLOOKUP($A47,[1]LD!$D$2:$AE$90,12,0)) -> 2255.342954 | O47: =(L47-M47-N47)*12.36% -> 12405.07161 | P47: =L47-M47-N47+O47 -> 112769.7287 | Q47: =IF(Q$9="WAI",HLOOKUP($A47,'[2]PROPOSED EX WORKS'!$D$2:$AE$90,13,0)) -> 103620 | R47: 1000 | S47: =IF(Q$9="WAI",HLOOKUP($A47,[1]LD!$D$2:$AE$90,13,0)) -> 2255.342954 | T47: =(Q47-R47-S47)*12.36% -> 12405.07161 | U47: =Q47-R47-S47+T47 -> 112769.7287 | V47: =IF(V$9="NASIK",HLOOKUP($A47,'[2]PROPOSED EX WORKS'!$D$2:$AE$90,14,0)) -> 104020 | W47: 1000 | X47: =IF(V$9="NASIK",HLOOKUP($A47,[1]LD!$D$2:$AE$90,14,0)) -> 2264.134 | Y47: =(V47-W47-X47)*12.36% -> 12453.42504 | Z47: =V47-W47-X47+Y47 -> 113209.291 | AA47: =IF(AA$9="KOLHAPUR",HLOOKUP($A47,'[2]PROPOSED EX WORKS'!$D$2:$AE$90,15,0)) -> 103450 | AB47: 1000 | AC47: =IF(AA$9="KOLHAPUR",HLOOKUP($A47,[1]LD!$D$2:$AE$90,15,0)) -> 2251.606759 | AD47: =(AA47-AB47-AC47)*12.36% -> 12384.5214 | AE47: =AA47-AB47-AC47+AD47 -> 112582.9146 | AF47: =IF(AF$9="AHMEDNAGAR",HLOOKUP($A47,'[2]PROPOSED EX WORKS'!$D$2:$AE$90,16,0)) -> 104290 | AG47: 1000 | AH47: =IF(AF$9="AHMEDNAGAR",HLOOKUP($A47,[1]LD!$D$2:$AE$90,16,0)) -> 2270.067957 | AI47: =(AF47-AG47-AH47)*12.36% -> 12486.0636 | AJ47: =AF47-AG47-AH47+AI47 -> 113505.9956 | AK47: =IF(AK$9="ROHA",HLOOKUP($A47,'[2]PROPOSED EX WORKS'!$D$2:$AE$90,17,0)) -> 104020 | AL47: 1000 | AM47: =IF(AK$9="ROHA",HLOOKUP($A47,[1]LD!$D$2:$AE$90,17,0)) -> 2264.134 | AN47: =(AK47-AL47-AM47)*12.36% -> 12453.42504 | AO47: =AK47-AL47-AM47+AN47 -> 113209.291
A48: W52A009OG
A49: W52ASR009A | B49: =IF(B$9="SANGLI",HLOOKUP($A49,'[2]PROPOSED EX WORKS'!$D$2:$AE$90,10,0)) -> 103650 | C49: 1000 | D49: =IF(B$9="SANGLI",HLOOKUP($A49,[1]LD!$D$2:$AE$90,10,0)) -> 2256.002282 | E49: =(B49-C49-D49)*12.36% -> 12408.69812 | F49: =B49-C49-D49+E49 -> 112802.6958 | G49: =IF(G$9="UMBERGAON",HLOOKUP($A49,'[2]PROPOSED EX WORKS'!$D$2:$AE$90,11,0)) -> 103680 | H49: 1000 | I49: =IF(G$9="UMBERGAON",HLOOKUP($A49,[1]LD!$D$2:$AE$90,11,0)) -> 2256.661611 | J49: =(G49-H49-I49)*12.36% -> 12412.32462 | K49: =G49-H49-I49+J49 -> 112835.663 | L49: =IF(L$9="PUNE",HLOOKUP($A49,'[2]PROPOSED EX WORKS'!$D$2:$AE$90,12,0)) -> 103620 | M49: 1000 | N49: =IF(L$9="PUNE",HLOOKUP($A49,[1]LD!$D$2:$AE$90,12,0)) -> 2255.342954 | O49: =(L49-M49-N49)*12.36% -> 12405.07161 | P49: =L49-M49-N49+O49 -> 112769.7287 | Q49: =IF(Q$9="WAI",HLOOKUP($A49,'[2]PROPOSED EX WORKS'!$D$2:$AE$90,13,0)) -> 103620 | R49: 1000 | S49: =IF(Q$9="WAI",HLOOKUP($A49,[1]LD!$D$2:$AE$90,13,0)) -> 2255.342954 | T49: =(Q49-R49-S49)*12.36% -> 12405.07161 | U49: =Q49-R49-S49+T49 -> 112769.7287 | V49: =IF(V$9="NASIK",HLOOKUP($A49,'[2]PROPOSED EX WORKS'!$D$2:$AE$90,14,0)) -> 104020 | W49: 1000 | X49: =IF(V$9="NASIK",HLOOKUP($A49,[1]LD!$D$2:$AE$90,14,0)) -> 2264.134 | Y49: =(V49-W49-X49)*12.36% -> 12453.42504 | Z49: =V49-W49-X49+Y49 -> 113209.291 | AA49: =IF(AA$9="KOLHAPUR",HLOOKUP($A49,'[2]PROPOSED EX WORKS'!$D$2:$AE$90,15,0)) -> 103450 | AB49: 1000 | AC49: =IF(AA$9="KOLHAPUR",HLOOKUP($A49,[1]LD!$D$2:$AE$90,15,0)) -> 2251.606759 | AD49: =(AA49-AB49-AC49)*12.36% -> 12384.5214 | AE49: =AA49-AB49-AC49+AD49 -> 112582.9146 | AF49: =IF(AF$9="AHMEDNAGAR",HLOOKUP($A49,'[2]PROPOSED EX WORKS'!$D$2:$AE$90,16,0)) -> 104290 | AG49: 1000 | AH49: =IF(AF$9="AHMEDNAGAR",HLOOKUP($A49,[1]LD!$D$2:$AE$90,16,0)) -> 2270.067957 | AI49: =(AF49-AG49-AH49)*12.36% -> 12486.0636 | AJ49: =AF49-AG49-AH49+AI49 -> 113505.9956 | AK49: =IF(AK$9="ROHA",HLOOKUP($A49,'[2]PROPOSED EX WORKS'!$D$2:$AE$90,17,0)) -> 104020 | AL49: 1000 | AM49: =IF(AK$9="ROHA",HLOOKUP($A49,[1]LD!$D$2:$AE$90,17,0)) -> 2264.134 | AN49: =(AK49-AL49-AM49)*12.36% -> 12453.42504 | AO49: =AK49-AL49-AM49+AN49 -> 113209.291
A50: W55A004A | B50: =IF(B$9="SANGLI",HLOOKUP($A50,'[2]PROPOSED EX WORKS'!$D$2:$AE$90,10,0)) -> 106650 | C50: 1000 | D50: =IF(B$9="SANGLI",HLOOKUP($A50,[1]LD!$D$2:$AE$90,10,0)) -> 2321.93513 | E50: =(B50-C50-D50)*12.36% -> 12771.34882 | F50: =B50-C50-D50+E50 -> 116099.4137 | G50: =IF(G$9="UMBERGAON",HLOOKUP($A50,'[2]PROPOSED EX WORKS'!$D$2:$AE$90,11,0)) -> 107180 | H50: 1000 | I50: =IF(G$9="UMBERGAON",HLOOKUP($A50,[1]LD!$D$2:$AE$90,11,0)) -> 2333.583267 | J50: =(G50-H50-I50)*12.36% -> 12835.41711 | K50: =G50-H50-I50+J50 -> 116681.8338 | L50: =IF(L$9="PUNE",HLOOKUP($A50,'[2]PROPOSED EX WORKS'!$D$2:$AE$90,12,0)) -> 106620 | M50: 1000 | N50: =IF(L$9="PUNE",HLOOKUP($A50,[1]LD!$D$2:$AE$90,12,0)) -> 2321.275802 | O50: =(L50-M50-N50)*12.36% -> 12767.72231 | P50: =L50-M50-N50+O50 -> 116066.4465 | Q50: =IF(Q$9="WAI",HLOOKUP($A50,'[2]PROPOSED EX WORKS'!$D$2:$AE$90,13,0)) -> 106620 | R50: 1000 | S50: =IF(Q$9="WAI",HLOOKUP($A50,[1]LD!$D$2:$AE$90,13,0)) -> 2321.275802 | T50: =(Q50-R50-S50)*12.36% -> 12767.72231 | U50: =Q50-R50-S50+T50 -> 116066.4465 | V50: =IF(V$9="NASIK",HLOOKUP($A50,'[2]PROPOSED EX WORKS'!$D$2:$AE$90,14,0)) -> 107020 | W50: 1000 | X50: =IF(V$9="NASIK",HLOOKUP($A50,[1]LD!$D$2:$AE$90,14,0)) -> 2330.066848 | Y50: =(V50-W50-X50)*12.36% -> 12816.07574 | Z50: =V50-W50-X50+Y50 -> 116506.0089 | AA50: =IF(AA$9="KOLHAPUR",HLOOKUP($A50,'[2]PROPOSED EX WORKS'!$D$2:$AE$90,15,0)) -> 106450 | AB50: 1000 | AC50: =IF(AA$9="KOLHAPUR",HLOOKUP($A50,[1]LD!$D$2:$AE$90,15,0)) -> 2317.539607 | AD50: =(AA50-AB50-AC50)*12.36% -> 12747.1721 | AE50: =AA50-AB50-AC50+AD50 -> 115879.6325 | AF50: =IF(AF$9="AHMEDNAGAR",HLOOKUP($A50,'[2]PROPOSED EX WORKS'!$D$2:$AE$90,16,0)) -> 107290 | AG50: 1000 | AH50: =IF(AF$9="AHMEDNAGAR",HLOOKUP($A50,[1]LD!$D$2:$AE$90,16,0)) -> 2336.000805 | AI50: =(AF50-AG50-AH50)*12.36% -> 12848.7143 | AJ50: =AF50-AG50-AH50+AI50 -> 116802.7135 | AK50: =IF(AK$9="ROHA",HLOOKUP($A50,'[2]PROPOSED EX WORKS'!$D$2:$AE$90,17,0)) -> 107020 | AL50: 1000 | AM50: =IF(AK$9="ROHA",HLOOKUP($A50,[1]LD!$D$2:$AE$90,17,0)) -> 2330.066848 | AN50: =(AK50-AL50-AM50)*12.36% -> 12816.07574 | AO50: =AK50-AL50-AM50+AN50 -> 116506.0089
A51: LLDPE
A52: E20AN009A | B52: =IF(B$9="SANGLI",HLOOKUP($A52,'[2]PROPOSED EX WORKS'!$D$2:$AE$90,10,0)) -> 106410 | C52: 1000 | D52: =IF(B$9="SANGLI",HLOOKUP($A52,[1]LD!$D$2:$AE$90,10,0)) -> 2316.660503 | E52: =(B52-C52-D52)*12.36% -> 12742.33676 | F52: =B52-C52-D52+E52 -> 115835.6763 | G52: =IF(G$9="UMBERGAON",HLOOKUP($A52,'[2]PROPOSED EX WORKS'!$D$2:$AE$90,11,0)) -> 107080 | H52: 1000 | I52: =IF(G$9="UMBERGAON",HLOOKUP($A52,[1]LD!$D$2:$AE$90,11,0)) -> 2331.385505 | J52: =(G52-H52-I52)*12.36% -> 12823.32875 | K52: =G52-H52-I52+J52 -> 116571.9432 | L52: =IF(L$9="PUNE",HLOOKUP($A52,'[2]PROPOSED EX WORKS'!$D$2:$AE$90,12,0)) -> 106380 | M52: 1000 | N52: =IF(L$9="PUNE",HLOOKUP($A52,[1]LD!$D$2:$AE$90,12,0)) -> 2316.001174 | O52: =(L52-M52-N52)*12.36% -> 12738.71025 | P52: =L52-M52-N52+O52 -> 115802.7091 | Q52: =IF(Q$9="WAI",HLOOKUP($A52,'[2]PROPOSED EX WORKS'!$D$2:$AE$90,13,0)) -> 106380 | R52: 1000 | S52: =IF(Q$9="WAI",HLOOKUP($A52,[1]LD!$D$2:$AE$90,13,0)) -> 2316.001174 | T52: =(Q52-R52-S52)*12.36% -> 12738.71025 | U52: =Q52-R52-S52+T52 -> 115802.7091 | V52: =IF(V$9="NASIK",HLOOKUP($A52,'[2]PROPOSED EX WORKS'!$D$2:$AE$90,14,0)) -> 106790 | W52: 1000 | X52: =IF(V$9="NASIK",HLOOKUP($A52,[1]LD!$D$2:$AE$90,14,0)) -> 2325.011997 | Y52: =(V52-W52-X52)*12.36% -> 12788.27252 | Z52: =V52-W52-X52+Y52 -> 116253.2605 | AA52: =IF(AA$9="KOLHAPUR",HLOOKUP($A52,'[2]PROPOSED EX WORKS'!$D$2:$AE$90,15,0)) -> 106210 | AB52: 1000 | AC52: =IF(AA$9="KOLHAPUR",HLOOKUP($A52,[1]LD!$D$2:$AE$90,15,0)) -> 2312.264979 | AD52: =(AA52-AB52-AC52)*12.36% -> 12718.16005 | AE52: =AA52-AB52-AC52+AD52 -> 115615.8951 | AF52: =IF(AF$9="AHMEDNAGAR",HLOOKUP($A52,'[2]PROPOSED EX WORKS'!$D$2:$AE$90,16,0)) -> 107050 | AG52: 1000 | AH52: =IF(AF$9="AHMEDNAGAR",HLOOKUP($A52,[1]LD!$D$2:$AE$90,16,0)) -> 2330.726177 | AI52: =(AF52-AG52-AH52)*12.36% -> 12819.70224 | AJ52: =AF52-AG52-AH52+AI52 -> 116538.9761 | AK52: =IF(AK$9="ROHA",HLOOKUP($A52,'[2]PROPOSED EX WORKS'!$D$2:$AE$90,17,0)) -> 106790 | AL52: 1000 | AM52: =IF(AK$9="ROHA",HLOOKUP($A52,[1]LD!$D$2:$AE$90,17,0)) -> 2325.011997 | AN52: =(AK52-AL52-AM52)*12.36% -> 12788.27252 | AO52: =AK52-AL52-AM52+AN52 -> 116253.2605
A53: E20AN009OG
A54: E36A060A | B54: =IF(B$9="SANGLI",HLOOKUP($A54,'[2]PROPOSED EX WORKS'!$D$2:$AE$90,10,0)) -> 110450 | C54: 1000 | D54: =IF(B$9="SANGLI",HLOOKUP($A54,[1]LD!$D$2:$AE$90,10,0)) -> 2405.450071 | E54: =(B54-C54-D54)*12.36% -> 13230.70637 | F54: =B54-C54-D54+E54 -> 120275.2563 | G54: =IF(G$9="UMBERGAON",HLOOKUP($A54,'[2]PROPOSED EX WORKS'!$D$2:$AE$90,11,0)) -> 111080 | H54: 1000 | I54: =IF(G$9="UMBERGAON",HLOOKUP($A54,[1]LD!$D$2:$AE$90,11,0)) -> 2419.295969 | J54: =(G54-H54-I54)*12.36% -> 13306.86302 | K54: =G54-H54-I54+J54 -> 120967.567 | L54: =IF(L$9="PUNE",HLOOKUP($A54,'[2]PROPOSED EX WORKS'!$D$2:$AE$90,12,0)) -> 110430 | M54: 1000 | N54: =IF(L$9="PUNE",HLOOKUP($A54,[1]LD!$D$2:$AE$90,12,0)) -> 2405.010519 | O54: =(L54-M54-N54)*12.36% -> 13228.2887 | P54: =L54-M54-N54+O54 -> 120253.2782 | Q54: =IF(Q$9="WAI",HLOOKUP($A54,'[2]PROPOSED EX WORKS'!$D$2:$AE$90,13,0)) -> 110430 | R54: 1000 | S54: =IF(Q$9="WAI",HLOOKUP($A54,[1]LD!$D$2:$AE$90,13,0)) -> 2405.010519 | T54: =(Q54-R54-S54)*12.36% -> 13228.2887 | U54: =Q54-R54-S54+T54 -> 120253.2782 | V54: =IF(V$9="NASIK",HLOOKUP($A54,'[2]PROPOSED EX WORKS'!$D$2:$AE$90,14,0)) -> 110830 | W54: 1000 | X54: =IF(V$9="NASIK",HLOOKUP($A54,[1]LD!$D$2:$AE$90,14,0)) -> 2413.801565 | Y54: =(V54-W54-X54)*12.36% -> 13276.64213 | Z54: =V54-W54-X54+Y54 -> 120692.8406 | AA54: =IF(AA$9="KOLHAPUR",HLOOKUP($A54,'[2]PROPOSED EX WORKS'!$D$2:$AE$90,15,0)) -> 110260 | AB54: 1000 | AC54: =IF(AA$9="KOLHAPUR",HLOOKUP($A54,[1]LD!$D$2:$AE$90,15,0)) -> 2401.274324 | AD54: =(AA54-AB54-AC54)*12.36% -> 13207.73849 | AE54: =AA54-AB54-AC54+AD54 -> 120066.4642 | AF54: =IF(AF$9="AHMEDNAGAR",HLOOKUP($A54,'[2]PROPOSED EX WORKS'!$D$2:$AE$90,16,0)) -> 111090 | AG54: 1000 | AH54: =IF(AF$9="AHMEDNAGAR",HLOOKUP($A54,[1]LD!$D$2:$AE$90,16,0)) -> 2419.515745 | AI54: =(AF54-AG54-AH54)*12.36% -> 13308.07185 | AJ54: =AF54-AG54-AH54+AI54 -> 120978.5561 | AK54: =IF(AK$9="ROHA",HLOOKUP($A54,'[2]PROPOSED EX WORKS'!$D$2:$AE$90,17,0)) -> 110830 | AL54: 1000 | AM54: =IF(AK$9="ROHA",HLOOKUP($A54,[1]LD!$D$2:$AE$90,17,0)) -> 2413.801565 | AN54: =(AK54-AL54-AM54)*12.36% -> 13276.64213 | AO54: =AK54-AL54-AM54+AN54 -> 120692.8406
A55: E36A060OG
A56: FILM
A57: F20S009A | B57: =IF(B$9="SANGLI",HLOOKUP($A57,'[2]PROPOSED EX WORKS'!$D$2:$AE$90,10,0)) -> 107910 | C57: 1000 | D57: =IF(B$9="SANGLI",HLOOKUP($A57,[1]LD!$D$2:$AE$90,10,0)) -> 2349.626927 | E57: =(B57-C57-D57)*12.36% -> 12923.66211 | F57: =B57-C57-D57+E57 -> 117484.0352 | G57: =IF(G$9="UMBERGAON",HLOOKUP($A57,'[2]PROPOSED EX WORKS'!$D$2:$AE$90,11,0)) -> 108580 | H57: 1000 | I57: =IF(G$9="UMBERGAON",HLOOKUP($A57,[1]LD!$D$2:$AE$90,11,0)) -> 2364.351929 | J57: =(G57-H57-I57)*12.36% -> 13004.6541 | K57: =G57-H57-I57+J57 -> 118220.3022 | L57: =IF(L$9="PUNE",HLOOKUP($A57,'[2]PROPOSED EX WORKS'!$D$2:$AE$90,12,0)) -> 107880 | M57: 1000 | N57: =IF(L$9="PUNE",HLOOKUP($A57,[1]LD!$D$2:$AE$90,12,0)) -> 2348.967598 | O57: =(L57-M57-N57)*12.36% -> 12920.0356 | P57: =L57-M57-N57+O57 -> 117451.068 | Q57: =IF(Q$9="WAI",HLOOKUP($A57,'[2]PROPOSED EX WORKS'!$D$2:$AE$90,13,0)) -> 107880 | R57: 1000 | S57: =IF(Q$9="WAI",HLOOKUP($A57,[1]LD!$D$2:$AE$90,13,0)) -> 2348.967598 | T57: =(Q57-R57-S57)*12.36% -> 12920.0356 | U57: =Q57-R57-S57+T57 -> 117451.068 | V57: =IF(V$9="NASIK",HLOOKUP($A57,'[2]PROPOSED EX WORKS'!$D$2:$AE$90,14,0)) -> 108290 | W57: 1000 | X57: =IF(V$9="NASIK",HLOOKUP($A57,[1]LD!$D$2:$AE$90,14,0)) -> 2357.978421 | Y57: =(V57-W57-X57)*12.36% -> 12969.59787 | Z57: =V57-W57-X57+Y57 -> 117901.6194 | AA57: =IF(AA$9="KOLHAPUR",HLOOKUP($A57,'[2]PROPOSED EX WORKS'!$D$2:$AE$90,15,0)) -> 107710 | AB57: 1000 | AC57: =IF(AA$9="KOLHAPUR",HLOOKUP($A57,[1]LD!$D$2:$AE$90,15,0)) -> 2345.231403 | AD57: =(AA57-AB57-AC57)*12.36% -> 12899.4854 | AE57: =AA57-AB57-AC57+AD57 -> 117264.254 | AF57: =IF(AF$9="AHMEDNAGAR",HLOOKUP($A57,'[2]PROPOSED EX WORKS'!$D$2:$AE$90,16,0)) -> 108550 | AG57: 1000 | AH57: =IF(AF$9="AHMEDNAGAR",HLOOKUP($A57,[1]LD!$D$2:$AE$90,16,0)) -> 2363.692601 | AI57: =(AF57-AG57-AH57)*12.36% -> 13001.02759 | AJ57: =AF57-AG57-AH57+AI57 -> 118187.335 | AK57: =IF(AK$9="ROHA",HLOOKUP($A57,'[2]PROPOSED EX WORKS'!$D$2:$AE$90,17,0)) -> 108290 | AL57: 1000 | AM57: =IF(AK$9="ROHA",HLOOKUP($A57,[1]LD!$D$2:$AE$90,17,0)) -> 2357.978421 | AN57: =(AK57-AL57-AM57)*12.36% -> 12969.59787 | AO57: =AK57-AL57-AM57+AN57 -> 117901.6194
A58: F20S009OG
A59: D22S010A | B59: =IF(B$9="SANGLI",HLOOKUP($A59,'[2]PROPOSED EX WORKS'!$D$2:$AE$90,10,0)) -> 106910 | C59: 1000 | D59: =IF(B$9="SANGLI",HLOOKUP($A59,[1]LD!$D$2:$AE$90,10,0)) -> 2327.649311 | E59: =(B59-C59-D59)*12.36% -> 12802.77855 | F59: =B59-C59-D59+E59 -> 116385.1292 | G59: =IF(G$9="UMBERGAON",HLOOKUP($A59,'[2]PROPOSED EX WORKS'!$D$2:$AE$90,11,0)) -> 107580 | H59: 1000 | I59: =IF(G$9="UMBERGAON",HLOOKUP($A59,[1]LD!$D$2:$AE$90,11,0)) -> 2342.374313 | J59: =(G59-H59-I59)*12.36% -> 12883.77053 | K59: =G59-H59-I59+J59 -> 117121.3962 | L59: =IF(L$9="PUNE",HLOOKUP($A59,'[2]PROPOSED EX WORKS'!$D$2:$AE$90,12,0)) -> 106880 | M59: 1000 | N59: =IF(L$9="PUNE",HLOOKUP($A59,[1]LD!$D$2:$AE$90,12,0)) -> 2326.989982 | O59: =(L59-M59-N59)*12.36% -> 12799.15204 | P59: =L59-M59-N59+O59 -> 116352.1621 | Q59: =IF(Q$9="WAI",HLOOKUP($A59,'[2]PROPOSED EX WORKS'!$D$2:$AE$90,13,0)) -> 106880 | R59: 1000 | S59: =IF(Q$9="WAI",HLOOKUP($A59,[1]LD!$D$2:$AE$90,13,0)) -> 2326.989982 | T59: =(Q59-R59-S59)*12.36% -> 12799.15204 | U59: =Q59-R59-S59+T59 -> 116352.1621 | V59: =IF(V$9="NASIK",HLOOKUP($A59,'[2]PROPOSED EX WORKS'!$D$2:$AE$90,14,0)) -> 107290 | W59: 1000 | X59: =IF(V$9="NASIK",HLOOKUP($A59,[1]LD!$D$2:$AE$90,14,0)) -> 2336.000805 | Y59: =(V59-W59-X59)*12.36% -> 12848.7143 | Z59: =V59-W59-X59+Y59 -> 116802.7135 | AA59: =IF(AA$9="KOLHAPUR",HLOOKUP($A59,'[2]PROPOSED EX WORKS'!$D$2:$AE$90,15,0)) -> 106710 | AB59: 1000 | AC59: =IF(AA$9="KOLHAPUR",HLOOKUP($A59,[1]LD!$D$2:$AE$90,15,0)) -> 2323.253787 | AD59: =(AA59-AB59-AC59)*12.36% -> 12778.60183 | AE59: =AA59-AB59-AC59+AD59 -> 116165.348 | AF59: =IF(AF$9="AHMEDNAGAR",HLOOKUP($A59,'[2]PROPOSED EX WORKS'!$D$2:$AE$90,16,0)) -> 107550 | AG59: 1000 | AH59: =IF(AF$9="AHMEDNAGAR",HLOOKUP($A59,[1]LD!$D$2:$AE$90,16,0)) -> 2341.714985 | AI59: =(AF59-AG59-AH59)*12.36% -> 12880.14403 | AJ59: =AF59-AG59-AH59+AI59 -> 117088.429 | AK59: =IF(AK$9="ROHA",HLOOKUP($A59,'[2]PROPOSED EX WORKS'!$D$2:$AE$90,17,0)) -> 107290 | AL59: 1000 | AM59: =IF(AK$9="ROHA",HLOOKUP($A59,[1]LD!$D$2:$AE$90,17,0)) -> 2336.000805 | AN59: =(AK59-AL59-AM59)*12.36% -> 12848.7143 | AO59: =AK59-AL59-AM59+AN59 -> 116802.7135
A60: ROTO
A61: R35A042A | B61: =IF(B$9="SANGLI",HLOOKUP($A61,'[2]PROPOSED EX WORKS'!$D$2:$AE$90,10,0)) -> 107540 | C61: 1000 | D61: =IF(B$9="SANGLI",HLOOKUP($A61,[1]LD!$D$2:$AE$90,10,0)) -> 2341.495209 | E61: =(B61-C61-D61)*12.36% -> 12878.93519 | F61: =B61-C61-D61+E61 -> 117077.44 | G61: =IF(G$9="UMBERGAON",HLOOKUP($A61,'[2]PROPOSED EX WORKS'!$D$2:$AE$90,11,0)) -> 108240 | H61: 1000 | I61: =IF(G$9="UMBERGAON",HLOOKUP($A61,[1]LD!$D$2:$AE$90,11,0)) -> 2356.87954 | J61: =(G61-H61-I61)*12.36% -> 12963.55369 | K61: =G61-H61-I61+J61 -> 117846.6741 | L61: =IF(L$9="PUNE",HLOOKUP($A61,'[2]PROPOSED EX WORKS'!$D$2:$AE$90,12,0)) -> 107440 | M61: 1000 | N61: =IF(L$9="PUNE",HLOOKUP($A61,[1]LD!$D$2:$AE$90,12,0)) -> 2339.297447 | O61: =(L61-M61-N61)*12.36% -> 12866.84684 | P61: =L61-M61-N61+O61 -> 116967.5494 | Q61: =IF(Q$9="WAI",HLOOKUP($A61,'[2]PROPOSED EX WORKS'!$D$2:$AE$90,13,0)) -> 107440 | R61: 1000 | S61: =IF(Q$9="WAI",HLOOKUP($A61,[1]LD!$D$2:$AE$90,13,0)) -> 2339.297447 | T61: =(Q61-R61-S61)*12.36% -> 12866.84684 | U61: =Q61-R61-S61+T61 -> 116967.5494 | V61: =IF(V$9="NASIK",HLOOKUP($A61,'[2]PROPOSED EX WORKS'!$D$2:$AE$90,14,0)) -> 107790 | W61: 1000 | X61: =IF(V$9="NASIK",HLOOKUP($A61,[1]LD!$D$2:$AE$90,14,0)) -> 2346.989613 | Y61: =(V61-W61-X61)*12.36% -> 12909.15608 | Z61: =V61-W61-X61+Y61 -> 117352.1665 | AA61: =IF(AA$9="KOLHAPUR",HLOOKUP($A61,'[2]PROPOSED EX WORKS'!$D$2:$AE$90,15,0)) -> 107230 | AB61: 1000 | AC61: =IF(AA$9="KOLHAPUR",HLOOKUP($A61,[1]LD!$D$2:$AE$90,15,0)) -> 2334.682148 | AD61: =(AA61-AB61-AC61)*12.36% -> 12841.46129 | AE61: =AA61-AB61-AC61+AD61 -> 116736.7791 | AF61: =IF(AF$9="AHMEDNAGAR",HLOOKUP($A61,'[2]PROPOSED EX WORKS'!$D$2:$AE$90,16,0)) -> 108060 | AG61: 1000 | AH61: =IF(AF$9="AHMEDNAGAR",HLOOKUP($A61,[1]LD!$D$2:$AE$90,16,0)) -> 2352.923569 | AI61: =(AF61-AG61-AH61)*12.36% -> 12941.79465 | AJ61: =AF61-AG61-AH61+AI61 -> 117648.8711 | AK61: =IF(AK$9="ROHA",HLOOKUP($A61,'[2]PROPOSED EX WORKS'!$D$2:$AE$90,17,0)) -> 107790 | AL61: 1000 | AM61: =IF(AK$9="ROHA",HLOOKUP($A61,[1]LD!$D$2:$AE$90,17,0)) -> 2346.989613 | AN61: =(AK61-AL61-AM61)*12.36% -> 12909.15608 | AO61: =AK61-AL61-AM61+AN61 -> 117352.1665
A62: R35U042A | B62: =IF(B$9="SANGLI",HLOOKUP($A62,'[2]PROPOSED EX WORKS'!$D$2:$AE$90,10,0)) -> 108400 | C62: 1000 | D62: =IF(B$9="SANGLI",HLOOKUP($A62,[1]LD!$D$2:$AE$90,10,0)) -> 2360.395958 | E62: =(B62-C62-D62)*12.36% -> 12982.89506 | F62: =B62-C62-D62+E62 -> 118022.4991 | G62: =IF(G$9="UMBERGAON",HLOOKUP($A62,'[2]PROPOSED EX WORKS'!$D$2:$AE$90,11,0)) -> 109100 | H62: 1000 | I62: =IF(G$9="UMBERGAON",HLOOKUP($A62,[1]LD!$D$2:$AE$90,11,0)) -> 2375.78029 | J62: =(G62-H62-I62)*12.36% -> 13067.51356 | K62: =G62-H62-I62+J62 -> 118791.7333 | L62: =IF(L$9="PUNE",HLOOKUP($A62,'[2]PROPOSED EX WORKS'!$D$2:$AE$90,12,0)) -> 108300 | M62: 1000 | N62: =IF(L$9="PUNE",HLOOKUP($A62,[1]LD!$D$2:$AE$90,12,0)) -> 2358.198197 | O62: =(L62-M62-N62)*12.36% -> 12970.8067 | P62: =L62-M62-N62+O62 -> 117912.6085 | Q62: =IF(Q$9="WAI",HLOOKUP($A62,'[2]PROPOSED EX WORKS'!$D$2:$AE$90,13,0)) -> 108300 | R62: 1000 | S62: =IF(Q$9="WAI",HLOOKUP($A62,[1]LD!$D$2:$AE$90,13,0)) -> 2358.198197 | T62: =(Q62-R62-S62)*12.36% -> 12970.8067 | U62: =Q62-R62-S62+T62 -> 117912.6085 | V62: =IF(V$9="NASIK",HLOOKUP($A62,'[2]PROPOSED EX WORKS'!$D$2:$AE$90,14,0)) -> 108650 | W62: 1000 | X62: =IF(V$9="NASIK",HLOOKUP($A62,[1]LD!$D$2:$AE$90,14,0)) -> 2365.890362 | Y62: =(V62-W62-X62)*12.36% -> 13013.11595 | Z62: =V62-W62-X62+Y62 -> 118297.2256 | AA62: =IF(AA$9="KOLHAPUR",HLOOKUP($A62,'[2]PROPOSED EX WORKS'!$D$2:$AE$90,15,0)) -> 108090 | AB62: 1000 | AC62: =IF(AA$9="KOLHAPUR",HLOOKUP($A62,[1]LD!$D$2:$AE$90,15,0)) -> 2353.582897 | AD62: =(AA62-AB62-AC62)*12.36% -> 12945.42115 | AE62: =AA62-AB62-AC62+AD62 -> 117681.8383 | AF62: =IF(AF$9="AHMEDNAGAR",HLOOKUP($A62,'[2]PROPOSED EX WORKS'!$D$2:$AE$90,16,0)) -> 108920 | AG62: 1000 | AH62: =IF(AF$9="AHMEDNAGAR",HLOOKUP($A62,[1]LD!$D$2:$AE$90,16,0)) -> 2371.824319 | AI62: =(AF62-AG62-AH62)*12.36% -> 13045.75451 | AJ62: =AF62-AG62-AH62+AI62 -> 118593.9302 | AK62: =IF(AK$9="ROHA",HLOOKUP($A62,'[2]PROPOSED EX WORKS'!$D$2:$AE$90,17,0)) -> 108650 | AL62: 1000 | AM62: =IF(AK$9="ROHA",HLOOKUP($A62,[1]LD!$D$2:$AE$90,17,0)) -> 2365.890362 | AN62: =(AK62-AL62-AM62)*12.36% -> 13013.11595 | AO62: =AK62-AL62-AM62+AN62 -> 118297.2256
A64: NOTE : | B64: THE PRICES OF OLD PLANT & NEW PLANT ARE SAME FROM DIRECT SALE

Sheet Sheet3
A2: UNITED BROTHERS
A4: 301,HERITAGE PLAZA, R.S.MAHARAJ MARG,( TELI GALLI CROSS LANE), ANDHERI (E), MUMBAI - 400 069
A5: EL: 26844612(4 LINES) FAX: 26822914 E-MAIL: info@unibrothers.com , prashant@unibrothers.com, jyoti@unibrothers.com
A6: EX-WORKS PRICE OF HDPE "G-LEX / G-LENE " W.E.F. 3RD APRIL 2014
A7: CASH / ADVANCE PAYMENT FOR MAHARASHTRA & DAMAN
B8: Freight | D8: 2507.05 | G8: Freight | I8: 4749.82 | L8: Freight | N8: 2573.77 | Q8: Freight 1210.75 | V8: Freight | X8: 5162.96 | AA8: Freight
D9: BARJORA | G9: HOSUR | L9: JAMMU | Q9: NOIDA | V9: PONDICHERRY | AA9: BARODA
B10: BASIC | C10: DISC | D10: LOC | E10: EXCISE | F10: EX-WKS | G10: BASIC | H10: DISC | I10: LOC | J10: EXCISE | K10: EX-WKS | L10: BASIC | M10: DISC | N10: LOC | O10: EXCISE | P10: EX-WKS | Q10: BASIC | R10: DISC | S10: LOC | T10: EXCISE | U10: EX-WKS | W10: DISC | X10: LOC | Y10: EXCISE | Z10: EX-WKS | AB10: DISC | AC10: LOC | AD10: EXCISE | AE10: EX-WKS
A11: BM
A12: B52A003A | B12: =IF(D$9="BARJORA",HLOOKUP($A12,'[2]PROPOSED EX WORKS'!$D$2:$AE$90,18,0)) -> 105880 | C12: 1000 | D12: =IF(D$9="BARJORA",HLOOKUP($A12,[1]LD!$D$2:$AE$90,18,0)) -> 2305.012366 | E12: =(B12-C12-D12)*12.36% -> 12678.26847 | F12: =B12-C12-D12+E12 -> 115253.2561 | G12: =IF(G$9="HOSUR",HLOOKUP($A12,'[2]PROPOSED EX WORKS'!$D$2:$AE$90,19,0)) -> 104160 | H12: 1000 | I12: =IF(G$9="HOSUR",HLOOKUP($A12,[1]LD!$D$2:$AE$90,19,0)) -> 2267.210867 | J12: =(G12-H12-I12)*12.36% -> 12470.34874 | K12: =G12-H12-I12+J12 -> 113363.1379 | L12: =IF(L$9="JAMMU",HLOOKUP($A12,'[2]PROPOSED EX WORKS'!$D$2:$AE$90,20,0)) -> 109280 | M12: 1000 | N12: =IF(L$9="JAMMU",HLOOKUP($A12,[1]LD!$D$2:$AE$90,20,0)) -> 2379.73626 | O12: =(L12-M12-N12)*12.36% -> 13089.2726 | P12: =L12-M12-N12+O12 -> 118989.5363 | Q12: =IF(Q$9="NOIDA",HLOOKUP($A12,'[2]PROPOSED EX WORKS'!$D$2:$AE$90,21,0)) -> 107140 | R12: 1000 | S12: 0 | T12: =(Q12-R12-S12)*12.36% -> 13118.904 | U12: =Q12-R12-S12+T12 -> 119258.904 | V12: =IF(V$9="PONDICHERRY",HLOOKUP($A12,'[2]PROPOSED EX WORKS'!$D$2:$AE$90,22,0)) -> 104290 | W12: 1000 | X12: =IF(V$9="PONDICHERRY",HLOOKUP($A12,[1]LD!$D$2:$AE$90,22,0)) -> 2270.067957 | Y12: =(V12-W12-X12)*12.36% -> 12486.0636 | Z12: =V12-W12-X12+Y12 -> 113505.9956 | AA12: =IF(AA$9="BARODA",HLOOKUP($A12,'[2]PROPOSED EX WORKS'!$D$2:$AE$90,23,0)) -> 107200 | AB12: 1000 | AC12: =IF(AA$9="BARODA",HLOOKUP($A12,[1]LD!$D$2:$AE$90,23,0)) -> 2334.022819 | AD12: =(AA12-AB12-AC12)*12.36% -> 12837.83478 | AE12: =AA12-AB12-AC12+AD12 -> 116703.812
A13: B63A003A | B13: =IF(D$9="BARJORA",HLOOKUP($A13,'[2]PROPOSED EX WORKS'!$D$2:$AE$90,18,0)) -> 105880 | C13: 1000 | D13: =IF(D$9="BARJORA",HLOOKUP($A13,[1]LD!$D$2:$AE$90,18,0)) -> 2305.012366 | E13: =(B13-C13-D13)*12.36% -> 12678.26847 | F13: =B13-C13-D13+E13 -> 115253.2561 | G13: =IF(G$9="HOSUR",HLOOKUP($A13,'[2]PROPOSED EX WORKS'!$D$2:$AE$90,19,0)) -> 104160 | H13: 1000 | I13: =IF(G$9="HOSUR",HLOOKUP($A13,[1]LD!$D$2:$AE$90,19,0)) -> 2267.210867 | J13: =(G13-H13-I13)*12.36% -> 12470.34874 | K13: =G13-H13-I13+J13 -> 113363.1379 | L13: =IF(L$9="JAMMU",HLOOKUP($A13,'[2]PROPOSED EX WORKS'!$D$2:$AE$90,20,0)) -> 109280 | M13: 1000 | N13: =IF(L$9="JAMMU",HLOOKUP($A13,[1]LD!$D$2:$AE$90,20,0)) -> 2379.73626 | O13: =(L13-M13-N13)*12.36% -> 13089.2726 | P13: =L13-M13-N13+O13 -> 118989.5363 | Q13: =IF(Q$9="NOIDA",HLOOKUP($A13,'[2]PROPOSED EX WORKS'!$D$2:$AE$90,21,0)) -> 107140 | R13: 1000 | S13: 0 | T13: =(Q13-R13-S13)*12.36% -> 13118.904 | U13: =Q13-R13-S13+T13 -> 119258.904 | V13: =IF(V$9="PONDICHERRY",HLOOKUP($A13,'[2]PROPOSED EX WORKS'!$D$2:$AE$90,22,0)) -> 104290 | W13: 1000 | X13: =IF(V$9="PONDICHERRY",HLOOKUP($A13,[1]LD!$D$2:$AE$90,22,0)) -> 2270.067957 | Y13: =(V13-W13-X13)*12.36% -> 12486.0636 | Z13: =V13-W13-X13+Y13 -> 113505.9956 | AA13: =IF(AA$9="BARODA",HLOOKUP($A13,'[2]PROPOSED EX WORKS'!$D$2:$AE$90,23,0)) -> 107200 | AB13: 1000 | AC13: =IF(AA$9="BARODA",HLOOKUP($A13,[1]LD!$D$2:$AE$90,23,0)) -> 2334.022819 | AD13: =(AA13-AB13-AC13)*12.36% -> 12837.83478 | AE13: =AA13-AB13-AC13+AD13 -> 116703.812
A14: B55HM0003A | B14: =IF(D$9="BARJORA",HLOOKUP($A14,'[2]PROPOSED EX WORKS'!$D$2:$AE$90,18,0)) -> 112170 | C14: 1000 | D14: =IF(D$9="BARJORA",HLOOKUP($A14,[1]LD!$D$2:$AE$90,18,0)) -> 2443.251571 | E14: =(B14-C14-D14)*12.36% -> 13438.62611 | F14: =B14-C14-D14+E14 -> 122165.3745 | G14: =IF(G$9="HOSUR",HLOOKUP($A14,'[2]PROPOSED EX WORKS'!$D$2:$AE$90,19,0)) -> 108400 | H14: 1000 | I14: =IF(G$9="HOSUR",HLOOKUP($A14,[1]LD!$D$2:$AE$90,19,0)) -> 2360.395958 | J14: =(G14-H14-I14)*12.36% -> 12982.89506 | K14: =G14-H14-I14+J14 -> 118022.4991 | L14: =IF(L$9="JAMMU",HLOOKUP($A14,'[2]PROPOSED EX WORKS'!$D$2:$AE$90,20,0)) -> 113420 | M14: 1000 | N14: =IF(L$9="JAMMU",HLOOKUP($A14,[1]LD!$D$2:$AE$90,20,0)) -> 2470.723591 | O14: =(L14-M14-N14)*12.36% -> 13589.73056 | P14: =L14-M14-N14+O14 -> 123539.007 | Q14: =IF(Q$9="NOIDA",HLOOKUP($A14,'[2]PROPOSED EX WORKS'!$D$2:$AE$90,21,0)) -> 111370 | R14: 1000 | S14: 0 | T14: =(Q14-R14-S14)*12.36% -> 13641.732 | U14: =Q14-R14-S14+T14 -> 124011.732 | V14: =IF(V$9="PONDICHERRY",HLOOKUP($A14,'[2]PROPOSED EX WORKS'!$D$2:$AE$90,22,0)) -> 109430 | W14: 1000 | X14: =IF(V$9="PONDICHERRY",HLOOKUP($A14,[1]LD!$D$2:$AE$90,22,0)) -> 2383.032903 | Y14: =(V14-W14-X14)*12.36% -> 13107.40513 | Z14: =V14-W14-X14+Y14 -> 119154.3722 | AA14: =IF(AA$9="BARODA",HLOOKUP($A14,'[2]PROPOSED EX WORKS'!$D$2:$AE$90,23,0)) -> 111560 | AB14: 1000 | AC14: =IF(AA$9="BARODA",HLOOKUP($A14,[1]LD!$D$2:$AE$90,23,0)) -> 2429.845225 | AD14: =(AA14-AB14-AC14)*12.36% -> 13364.88713 | AE14: =AA14-AB14-AC14+AD14 -> 121495.0419
A15: CABLE-INSUL
A16: C43D006A | B16: =IF(D$9="BARJORA",HLOOKUP($A16,'[2]PROPOSED EX WORKS'!$D$2:$AE$90,18,0)) -> 104959.5 | C16: 1000 | D16: =IF(D$9="BARJORA",HLOOKUP($A16,[1]LD!$D$2:$AE$90,18,0)) -> 2284.781971 | E16: =(B16-C16-D16)*12.36% -> 12566.99515 | F16: =B16-C16-D16+E16 -> 114241.7132 | G16: =IF(G$9="HOSUR",HLOOKUP($A16,'[2]PROPOSED EX WORKS'!$D$2:$AE$90,19,0)) -> 102223.5 | H16: 1000 | I16: =IF(G$9="HOSUR",HLOOKUP($A16,[1]LD!$D$2:$AE$90,19,0)) -> 2224.651213 | J16: =(G16-H16-I16)*12.36% -> 12236.25771 | K16: =G16-H16-I16+J16 -> 111235.1065 | L16: =IF(L$9="JAMMU",HLOOKUP($A16,'[2]PROPOSED EX WORKS'!$D$2:$AE$90,20,0)) -> 107306 | M16: 1000 | N16: =IF(L$9="JAMMU",HLOOKUP($A16,[1]LD!$D$2:$AE$90,20,0)) -> 2336.352446 | O16: =(L16-M16-N16)*12.36% -> 12850.64844 | P16: =L16-M16-N16+O16 -> 116820.296 | Q16: =IF(Q$9="NOIDA",HLOOKUP($A16,'[2]PROPOSED EX WORKS'!$D$2:$AE$90,21,0)) -> 105349 | R16: 1000 | S16: 0 | T16: =(Q16-R16-S16)*12.36% -> 12897.5364 | U16: =Q16-R16-S16+T16 -> 117246.5364 | V16: =IF(V$9="PONDICHERRY",HLOOKUP($A16,'[2]PROPOSED EX WORKS'!$D$2:$AE$90,22,0)) -> 102366 | W16: 1000 | X16: =IF(V$9="PONDICHERRY",HLOOKUP($A16,[1]LD!$D$2:$AE$90,22,0)) -> 2227.783023 | Y16: =(V16-W16-X16)*12.36% -> 12253.48362 | Z16: =V16-W16-X16+Y16 -> 111391.7006 | AA16: =IF(AA$9="BARODA",HLOOKUP($A16,'[2]PROPOSED EX WORKS'!$D$2:$AE$90,23,0)) -> 104820.5 | AB16: 1000 | AC16: =IF(AA$9="BARODA",HLOOKUP($A16,[1]LD!$D$2:$AE$90,23,0)) -> 2281.727082 | AD16: =(AA16-AB16-AC16)*12.36% -> 12550.19233 | AE16: =AA16-AB16-AC16+AD16 -> 114088.9653
A18: SHETG
A19: E45A003A | B19: =IF(D$9="BARJORA",HLOOKUP($A19,'[2]PROPOSED EX WORKS'!$D$2:$AE$90,18,0)) -> 106060 | C19: 1000 | D19: =IF(D$9="BARJORA",HLOOKUP($A19,[1]LD!$D$2:$AE$90,18,0)) -> 2308.968337 | E19: =(B19-C19-D19)*12.36% -> 12700.02751 | F19: =B19-C19-D19+E19 -> 115451.0592 | G19: =IF(G$9="HOSUR",HLOOKUP($A19,'[2]PROPOSED EX WORKS'!$D$2:$AE$90,19,0)) -> 103170 | H19: 1000 | I19: =IF(G$9="HOSUR",HLOOKUP($A19,[1]LD!$D$2:$AE$90,19,0)) -> 2245.453027 | J19: =(G19-H19-I19)*12.36% -> 12350.67401 | K19: =G19-H19-I19+J19 -> 112275.221 | L19: =IF(L$9="JAMMU",HLOOKUP($A19,'[2]PROPOSED EX WORKS'!$D$2:$AE$90,20,0)) -> 108520 | M19: 1000 | N19: =IF(L$9="JAMMU",HLOOKUP($A19,[1]LD!$D$2:$AE$90,20,0)) -> 2363.033272 | O19: =(L19-M19-N19)*12.36% -> 12997.40109 | P19: =L19-M19-N19+O19 -> 118154.3678 | Q19: =IF(Q$9="NOIDA",HLOOKUP($A19,'[2]PROPOSED EX WORKS'!$D$2:$AE$90,21,0)) -> 106460 | R19: 1000 | S19: 0 | T19: =(Q19-R19-S19)*12.36% -> 13034.856 | U19: =Q19-R19-S19+T19 -> 118494.856 | V19: =IF(V$9="PONDICHERRY",HLOOKUP($A19,'[2]PROPOSED EX WORKS'!$D$2:$AE$90,22,0)) -> 103320 | W19: 1000 | X19: =IF(V$9="PONDICHERRY",HLOOKUP($A19,[1]LD!$D$2:$AE$90,22,0)) -> 2248.749669 | Y19: =(V19-W19-X19)*12.36% -> 12368.80654 | Z19: =V19-W19-X19+Y19 -> 112440.0569 | AA19: =IF(AA$9="BARODA",HLOOKUP($A19,'[2]PROPOSED EX WORKS'!$D$2:$AE$90,23,0)) -> 106090 | AB19: 1000 | AC19: =IF(AA$9="BARODA",HLOOKUP($A19,[1]LD!$D$2:$AE$90,23,0)) -> 2309.627665 | AD19: =(AA19-AB19-AC19)*12.36% -> 12703.65402 | AE19: =AA19-AB19-AC19+AD19 -> 115484.0264
A20: E45A003OG
A21: EXTR
A22: E52A003A | B22: =IF(D$9="BARJORA",HLOOKUP($A22,'[2]PROPOSED EX WORKS'!$D$2:$AE$90,18,0)) -> 106580 | C22: 1000 | D22: =IF(D$9="BARJORA",HLOOKUP($A22,[1]LD!$D$2:$AE$90,18,0)) -> 2320.396697 | E22: =(B22-C22-D22)*12.36% -> 12762.88697 | F22: =B22-C22-D22+E22 -> 116022.4903 | G22: =IF(G$9="HOSUR",HLOOKUP($A22,'[2]PROPOSED EX WORKS'!$D$2:$AE$90,19,0)) -> 104840 | H22: 1000 | I22: =IF(G$9="HOSUR",HLOOKUP($A22,[1]LD!$D$2:$AE$90,19,0)) -> 2282.155645 | J22: =(G22-H22-I22)*12.36% -> 12552.54956 | K22: =G22-H22-I22+J22 -> 114110.3939 | L22: =IF(L$9="JAMMU",HLOOKUP($A22,'[2]PROPOSED EX WORKS'!$D$2:$AE$90,20,0)) -> 110190 | M22: 1000 | N22: =IF(L$9="JAMMU",HLOOKUP($A22,[1]LD!$D$2:$AE$90,20,0)) -> 2399.735891 | O22: =(L22-M22-N22)*12.36% -> 13199.27664 | P22: =L22-M22-N22+O22 -> 119989.5408 | Q22: =IF(Q$9="NOIDA",HLOOKUP($A22,'[2]PROPOSED EX WORKS'!$D$2:$AE$90,21,0)) -> 108130 | R22: 1000 | S22: 0 | T22: =(Q22-R22-S22)*12.36% -> 13241.268 | U22: =Q22-R22-S22+T22 -> 120371.268 | V22: =IF(V$9="PONDICHERRY",HLOOKUP($A22,'[2]PROPOSED EX WORKS'!$D$2:$AE$90,22,0)) -> 104990 | W22: 1000 | X22: =IF(V$9="PONDICHERRY",HLOOKUP($A22,[1]LD!$D$2:$AE$90,22,0)) -> 2285.452288 | Y22: =(V22-W22-X22)*12.36% -> 12570.6821 | Z22: =V22-W22-X22+Y22 -> 114275.2298 | AA22: =IF(AA$9="BARODA",HLOOKUP($A22,'[2]PROPOSED EX WORKS'!$D$2:$AE$90,23,0)) -> 108190 | AB22: 1000 | AC22: =IF(AA$9="BARODA",HLOOKUP($A22,[1]LD!$D$2:$AE$90,23,0)) -> 2355.780659 | AD22: =(AA22-AB22-AC22)*12.36% -> 12957.50951 | AE22: =AA22-AB22-AC22+AD22 -> 117791.7289
A23: E52A003OG
A24: E52U003A | B24: =IF(D$9="BARJORA",HLOOKUP($A24,'[2]PROPOSED EX WORKS'!$D$2:$AE$90,18,0)) -> 110360 | C24: 1000 | D24: =IF(D$9="BARJORA",HLOOKUP($A24,[1]LD!$D$2:$AE$90,18,0)) -> 2348.528046 | E24: =(B24-C24-D24)*12.36% -> 13226.61793 | F24: =B24-C24-D24+E24 -> 120238.0899 | G24: =IF(G$9="HOSUR",HLOOKUP($A24,'[2]PROPOSED EX WORKS'!$D$2:$AE$90,19,0)) -> 108620 | H24: 1000 | I24: =IF(G$9="HOSUR",HLOOKUP($A24,[1]LD!$D$2:$AE$90,19,0)) -> 2310.286994 | J24: =(G24-H24-I24)*12.36% -> 13016.28053 | K24: =G24-H24-I24+J24 -> 118325.9935 | L24: =IF(L$9="JAMMU",HLOOKUP($A24,'[2]PROPOSED EX WORKS'!$D$2:$AE$90,20,0)) -> 113970 | M24: 1000 | N24: =IF(L$9="JAMMU",HLOOKUP($A24,[1]LD!$D$2:$AE$90,20,0)) -> 2427.86724 | O24: =(L24-M24-N24)*12.36% -> 13663.00761 | P24: =L24-M24-N24+O24 -> 124205.1404 | Q24: =IF(Q$9="NOIDA",HLOOKUP($A24,'[2]PROPOSED EX WORKS'!$D$2:$AE$90,21,0)) -> 111910 | R24: 1000 | S24: 0 | T24: =(Q24-R24-S24)*12.36% -> 13708.476 | U24: =Q24-R24-S24+T24 -> 124618.476 | V24: =IF(V$9="PONDICHERRY",HLOOKUP($A24,'[2]PROPOSED EX WORKS'!$D$2:$AE$90,22,0)) -> 108770 | W24: 1000 | X24: =IF(V$9="PONDICHERRY",HLOOKUP($A24,[1]LD!$D$2:$AE$90,22,0)) -> 2313.583636 | Y24: =(V24-W24-X24)*12.36% -> 13034.41306 | Z24: =V24-W24-X24+Y24 -> 118490.8294 | AA24: =IF(AA$9="BARODA",HLOOKUP($A24,'[2]PROPOSED EX WORKS'!$D$2:$AE$90,23,0)) -> 111970 | AB24: 1000 | AC24: =IF(AA$9="BARODA",HLOOKUP($A24,[1]LD!$D$2:$AE$90,23,0)) -> 2383.912008 | AD24: =(AA24-AB24-AC24)*12.36% -> 13421.24048 | AE24: =AA24-AB24-AC24+AD24 -> 122007.3285
A25: E52U003OG
A26: HM FILM
A27: F55HM0003A | B27: =IF(D$9="BARJORA",HLOOKUP($A27,'[2]PROPOSED EX WORKS'!$D$2:$AE$90,18,0)) -> 105850 | C27: 1000 | D27: =IF(D$9="BARJORA",HLOOKUP($A27,[1]LD!$D$2:$AE$90,18,0)) -> 2304.353038 | E27: =(B27-C27-D27)*12.36% -> 12674.64196 | F27: =B27-C27-D27+E27 -> 115220.2889 | G27: =IF(G$9="HOSUR",HLOOKUP($A27,'[2]PROPOSED EX WORKS'!$D$2:$AE$90,19,0)) -> 104450 | H27: 1000 | I27: =IF(G$9="HOSUR",HLOOKUP($A27,[1]LD!$D$2:$AE$90,19,0)) -> 2273.584375 | J27: =(G27-H27-I27)*12.36% -> 12505.40497 | K27: =G27-H27-I27+J27 -> 113681.8206 | L27: =IF(L$9="JAMMU",HLOOKUP($A27,'[2]PROPOSED EX WORKS'!$D$2:$AE$90,20,0)) -> 109470 | M27: 1000 | N27: =IF(L$9="JAMMU",HLOOKUP($A27,[1]LD!$D$2:$AE$90,20,0)) -> 2383.912008 | O27: =(L27-M27-N27)*12.36% -> 13112.24048 | P27: =L27-M27-N27+O27 -> 119198.3285 | Q27: =IF(Q$9="NOIDA",HLOOKUP($A27,'[2]PROPOSED EX WORKS'!$D$2:$AE$90,21,0)) -> 107420 | R27: 1000 | S27: 0 | T27: =(Q27-R27-S27)*12.36% -> 13153.512 | U27: =Q27-R27-S27+T27 -> 119573.512 | V27: =IF(V$9="PONDICHERRY",HLOOKUP($A27,'[2]PROPOSED EX WORKS'!$D$2:$AE$90,22,0)) -> 105460 | W27: 1000 | X27: =IF(V$9="PONDICHERRY",HLOOKUP($A27,[1]LD!$D$2:$AE$90,22,0)) -> 2295.781767 | Y27: =(V27-W27-X27)*12.36% -> 12627.49737 | Z27: =V27-W27-X27+Y27 -> 114791.7156 | AA27: =IF(AA$9="BARODA",HLOOKUP($A27,'[2]PROPOSED EX WORKS'!$D$2:$AE$90,23,0)) -> 107110 | AB27: 1000 | AC27: =IF(AA$9="BARODA",HLOOKUP($A27,[1]LD!$D$2:$AE$90,23,0)) -> 2332.044834 | AD27: =(AA27-AB27-AC27)*12.36% -> 12826.95526 | AE27: =AA27-AB27-AC27+AD27 -> 116604.9104
A28: F55HM0003OG
A29: IM HIGH
A30: I50A180A | B30: =IF(D$9="BARJORA",HLOOKUP($A30,'[2]PROPOSED EX WORKS'!$D$2:$AE$90,18,0)) -> 102660 | C30: 1000 | D30: =IF(D$9="BARJORA",HLOOKUP($A30,[1]LD!$D$2:$AE$90,18,0)) -> 2234.244443 | E30: =(B30-C30-D30)*12.36% -> 12289.02339 | F30: =B30-C30-D30+E30 -> 111714.7789 | G30: =IF(G$9="HOSUR",HLOOKUP($A30,'[2]PROPOSED EX WORKS'!$D$2:$AE$90,19,0)) -> 100760 | H30: 1000 | I30: =IF(G$9="HOSUR",HLOOKUP($A30,[1]LD!$D$2:$AE$90,19,0)) -> 2192.486972 | J30: =(G30-H30-I30)*12.36% -> 12059.34461 | K30: =G30-H30-I30+J30 -> 109626.8576 | L30: =IF(L$9="JAMMU",HLOOKUP($A30,'[2]PROPOSED EX WORKS'!$D$2:$AE$90,20,0)) -> 105840 | M30: 1000 | N30: =IF(L$9="JAMMU",HLOOKUP($A30,[1]LD!$D$2:$AE$90,20,0)) -> 2304.133261 | O30: =(L30-M30-N30)*12.36% -> 12673.43313 | P30: =L30-M30-N30+O30 -> 115209.2999 | Q30: =IF(Q$9="NOIDA",HLOOKUP($A30,'[2]PROPOSED EX WORKS'!$D$2:$AE$90,21,0)) -> 103660 | R30: 1000 | S30: 0 | T30: =(Q30-R30-S30)*12.36% -> 12688.776 | U30: =Q30-R30-S30+T30 -> 115348.776 | V30: =IF(V$9="PONDICHERRY",HLOOKUP($A30,'[2]PROPOSED EX WORKS'!$D$2:$AE$90,22,0)) -> 101280 | W30: 1000 | X30: =IF(V$9="PONDICHERRY",HLOOKUP($A30,[1]LD!$D$2:$AE$90,22,0)) -> 2203.915332 | Y30: =(V30-W30-X30)*12.36% -> 12122.20406 | Z30: =V30-W30-X30+Y30 -> 110198.2887 | AA30: =IF(AA$9="BARODA",HLOOKUP($A30,'[2]PROPOSED EX WORKS'!$D$2:$AE$90,23,0)) -> 103390 | AB30: 1000 | AC30: =IF(AA$9="BARODA",HLOOKUP($A30,[1]LD!$D$2:$AE$90,23,0)) -> 2250.288102 | AD30: =(AA30-AB30-AC30)*12.36% -> 12377.26839 | AE30: =AA30-AB30-AC30+AD30 -> 112516.9803
A31: I50A180OG
A32: IM LOW
A33: I60A080A | B33: =IF(D$9="BARJORA",HLOOKUP($A33,'[2]PROPOSED EX WORKS'!$D$2:$AE$90,18,0)) -> 104710 | C33: 1000 | D33: =IF(D$9="BARJORA",HLOOKUP($A33,[1]LD!$D$2:$AE$90,18,0)) -> 2279.298555 | E33: =(B33-C33-D33)*12.36% -> 12536.8347 | F33: =B33-C33-D33+E33 -> 113967.5361 | G33: =IF(G$9="HOSUR",HLOOKUP($A33,'[2]PROPOSED EX WORKS'!$D$2:$AE$90,19,0)) -> 101820 | H33: 1000 | I33: =IF(G$9="HOSUR",HLOOKUP($A33,[1]LD!$D$2:$AE$90,19,0)) -> 2215.783245 | J33: =(G33-H33-I33)*12.36% -> 12187.48119 | K33: =G33-H33-I33+J33 -> 110791.6979 | L33: =IF(L$9="JAMMU",HLOOKUP($A33,'[2]PROPOSED EX WORKS'!$D$2:$AE$90,20,0)) -> 107170 | M33: 1000 | N33: =IF(L$9="JAMMU",HLOOKUP($A33,[1]LD!$D$2:$AE$90,20,0)) -> 2333.363491 | O33: =(L33-M33-N33)*12.36% -> 12834.20827 | P33: =L33-M33-N33+O33 -> 116670.8448 | Q33: =IF(Q$9="NOIDA",HLOOKUP($A33,'[2]PROPOSED EX WORKS'!$D$2:$AE$90,21,0)) -> 105110 | R33: 1000 | S33: 0 | T33: =(Q33-R33-S33)*12.36% -> 12867.996 | U33: =Q33-R33-S33+T33 -> 116977.996 | V33: =IF(V$9="PONDICHERRY",HLOOKUP($A33,'[2]PROPOSED EX WORKS'!$D$2:$AE$90,22,0)) -> 101970 | W33: 1000 | X33: =IF(V$9="PONDICHERRY",HLOOKUP($A33,[1]LD!$D$2:$AE$90,22,0)) -> 2219.079888 | Y33: =(V33-W33-X33)*12.36% -> 12205.61373 | Z33: =V33-W33-X33+Y33 -> 110956.5338 | AA33: =IF(AA$9="BARODA",HLOOKUP($A33,'[2]PROPOSED EX WORKS'!$D$2:$AE$90,23,0)) -> 104690 | AB33: 1000 | AC33: =IF(AA$9="BARODA",HLOOKUP($A33,[1]LD!$D$2:$AE$90,23,0)) -> 2278.859003 | AD33: =(AA33-AB33-AC33)*12.36% -> 12534.41703 | AE33: =AA33-AB33-AC33+AD33 -> 113945.558
A34: I60A080OG
A35: IM-L-UV
A36: I60U080A | B36: =IF(D$9="BARJORA",HLOOKUP($A36,'[2]PROPOSED EX WORKS'!$D$2:$AE$90,18,0)) -> 106240 | C36: 1000 | D36: =IF(D$9="BARJORA",HLOOKUP($A36,[1]LD!$D$2:$AE$90,18,0)) -> 2312.924308 | E36: =(B36-C36-D36)*12.36% -> 12721.78656 | F36: =B36-C36-D36+E36 -> 115648.8622 | G36: =IF(G$9="HOSUR",HLOOKUP($A36,'[2]PROPOSED EX WORKS'!$D$2:$AE$90,19,0)) -> 103350 | H36: 1000 | I36: =IF(G$9="HOSUR",HLOOKUP($A36,[1]LD!$D$2:$AE$90,19,0)) -> 2249.408998 | J36: =(G36-H36-I36)*12.36% -> 12372.43305 | K36: =G36-H36-I36+J36 -> 112473.0241 | L36: =IF(L$9="JAMMU",HLOOKUP($A36,'[2]PROPOSED EX WORKS'!$D$2:$AE$90,20,0)) -> 108700 | M36: 1000 | N36: =IF(L$9="JAMMU",HLOOKUP($A36,[1]LD!$D$2:$AE$90,20,0)) -> 2366.989243 | O36: =(L36-M36-N36)*12.36% -> 13019.16013 | P36: =L36-M36-N36+O36 -> 118352.1709 | Q36: =IF(Q$9="NOIDA",HLOOKUP($A36,'[2]PROPOSED EX WORKS'!$D$2:$AE$90,21,0)) -> 106640 | R36: 1000 | S36: 0 | T36: =(Q36-R36-S36)*12.36% -> 13057.104 | U36: =Q36-R36-S36+T36 -> 118697.104 | V36: =IF(V$9="PONDICHERRY",HLOOKUP($A36,'[2]PROPOSED EX WORKS'!$D$2:$AE$90,22,0)) -> 103500 | W36: 1000 | X36: =IF(V$9="PONDICHERRY",HLOOKUP($A36,[1]LD!$D$2:$AE$90,22,0)) -> 2252.70564 | Y36: =(V36-W36-X36)*12.36% -> 12390.56558 | Z36: =V36-W36-X36+Y36 -> 112637.8599 | AA36: =IF(AA$9="BARODA",HLOOKUP($A36,'[2]PROPOSED EX WORKS'!$D$2:$AE$90,23,0)) -> 106190 | AB36: 1000 | AC36: =IF(AA$9="BARODA",HLOOKUP($A36,[1]LD!$D$2:$AE$90,23,0)) -> 2311.825427 | AD36: =(AA36-AB36-AC36)*12.36% -> 12715.74238 | AE36: =AA36-AB36-AC36+AD36 -> 115593.917
A37: I60U080OG
A38: PIPE (PE80)
A39: P54A001A | B39: =IF(D$9="BARJORA",HLOOKUP($A39,'[2]PROPOSED EX WORKS'!$D$2:$AE$90,18,0)) -> 114570 | C39: 1000 | D39: =IF(D$9="BARJORA",HLOOKUP($A39,[1]LD!$D$2:$AE$90,18,0)) -> 2441.053809 | E39: =(B39-C39-D39)*12.36% -> 13735.53775 | F39: =B39-C39-D39+E39 -> 124864.4839 | G39: =IF(G$9="HOSUR",HLOOKUP($A39,'[2]PROPOSED EX WORKS'!$D$2:$AE$90,19,0)) -> 111160 | H39: 1000 | I39: =IF(G$9="HOSUR",HLOOKUP($A39,[1]LD!$D$2:$AE$90,19,0)) -> 2366.110139 | J39: =(G39-H39-I39)*12.36% -> 13323.32479 | K39: =G39-H39-I39+J39 -> 121117.2146 | L39: =IF(L$9="JAMMU",HLOOKUP($A39,'[2]PROPOSED EX WORKS'!$D$2:$AE$90,20,0)) -> 116180 | M39: 1000 | N39: =IF(L$9="JAMMU",HLOOKUP($A39,[1]LD!$D$2:$AE$90,20,0)) -> 2476.437771 | O39: =(L39-M39-N39)*12.36% -> 13930.16029 | P39: =L39-M39-N39+O39 -> 126633.7225 | Q39: =IF(Q$9="NOIDA",HLOOKUP($A39,'[2]PROPOSED EX WORKS'!$D$2:$AE$90,21,0)) -> 114130 | R39: 1000 | S39: 0 | T39: =(Q39-R39-S39)*12.36% -> 13982.868 | U39: =Q39-R39-S39+T39 -> 127112.868 | V39: =IF(V$9="PONDICHERRY",HLOOKUP($A39,'[2]PROPOSED EX WORKS'!$D$2:$AE$90,22,0)) -> 112230 | W39: 1000 | X39: =IF(V$9="PONDICHERRY",HLOOKUP($A39,[1]LD!$D$2:$AE$90,22,0)) -> 2389.626188 | Y39: =(V39-W39-X39)*12.36% -> 13452.6702 | Z39: =V39-W39-X39+Y39 -> 122293.044 | AA39: =IF(AA$9="BARODA",HLOOKUP($A39,'[2]PROPOSED EX WORKS'!$D$2:$AE$90,23,0)) -> 114320 | AB39: 1000 | AC39: =IF(AA$9="BARODA",HLOOKUP($A39,[1]LD!$D$2:$AE$90,23,0)) -> 2435.559405 | AD39: =(AA39-AB39-AC39)*12.36% -> 13705.31686 | AE39: =AA39-AB39-AC39+AD39 -> 124589.7575
A40: P54A001OG
A41: PIPE (PE100)
A42: P52A003A | B42: =IF(D$9="BARJORA",HLOOKUP($A42,'[2]PROPOSED EX WORKS'!$D$2:$AE$90,18,0)) -> 116580 | C42: 1000 | D42: =IF(D$9="BARJORA",HLOOKUP($A42,[1]LD!$D$2:$AE$90,18,0)) -> 2485.228817 | E42: =(B42-C42-D42)*12.36% -> 13978.51372 | F42: =B42-C42-D42+E42 -> 127073.2849 | G42: =IF(G$9="HOSUR",HLOOKUP($A42,'[2]PROPOSED EX WORKS'!$D$2:$AE$90,19,0)) -> 113160 | H42: 1000 | I42: =IF(G$9="HOSUR",HLOOKUP($A42,[1]LD!$D$2:$AE$90,19,0)) -> 2410.065371 | J42: =(G42-H42-I42)*12.36% -> 13565.09192 | K42: =G42-H42-I42+J42 -> 123315.0265 | L42: =IF(L$9="JAMMU",HLOOKUP($A42,'[2]PROPOSED EX WORKS'!$D$2:$AE$90,20,0)) -> 118180 | M42: 1000 | N42: =IF(L$9="JAMMU",HLOOKUP($A42,[1]LD!$D$2:$AE$90,20,0)) -> 2520.393003 | O42: =(L42-M42-N42)*12.36% -> 14171.92742 | P42: =L42-M42-N42+O42 -> 128831.5344 | Q42: =IF(Q$9="NOIDA",HLOOKUP($A42,'[2]PROPOSED EX WORKS'!$D$2:$AE$90,21,0)) -> 116130 | R42: 1000 | S42: 0 | T42: =(Q42-R42-S42)*12.36% -> 14230.068 | U42: =Q42-R42-S42+T42 -> 129360.068 | V42: =IF(V$9="PONDICHERRY",HLOOKUP($A42,'[2]PROPOSED EX WORKS'!$D$2:$AE$90,22,0)) -> 114240 | W42: 1000 | X42: =IF(V$9="PONDICHERRY",HLOOKUP($A42,[1]LD!$D$2:$AE$90,22,0)) -> 2433.801196 | Y42: =(V42-W42-X42)*12.36% -> 13695.64617 | Z42: =V42-W42-X42+Y42 -> 124501.845 | AA42: =IF(AA$9="BARODA",HLOOKUP($A42,'[2]PROPOSED EX WORKS'!$D$2:$AE$90,23,0)) -> 116320 | AB42: 1000 | AC42: =IF(AA$9="BARODA",HLOOKUP($A42,[1]LD!$D$2:$AE$90,23,0)) -> 2479.514637 | AD42: =(AA42-AB42-AC42)*12.36% -> 13947.08399 | AE42: =AA42-AB42-AC42+AD42 -> 126787.5694
A43: RAFFIA
A44: W50A009A | B44: =IF(D$9="BARJORA",HLOOKUP($A44,'[2]PROPOSED EX WORKS'!$D$2:$AE$90,18,0)) -> 107430 | C44: 1000 | D44: =IF(D$9="BARJORA",HLOOKUP($A44,[1]LD!$D$2:$AE$90,18,0)) -> 2251.167207 | E44: =(B44-C44-D44)*12.36% -> 12876.50373 | F44: =B44-C44-D44+E44 -> 117055.3365 | G44: =IF(G$9="HOSUR",HLOOKUP($A44,'[2]PROPOSED EX WORKS'!$D$2:$AE$90,19,0)) -> 104940 | H44: 1000 | I44: =IF(G$9="HOSUR",HLOOKUP($A44,[1]LD!$D$2:$AE$90,19,0)) -> 2196.442943 | J44: =(G44-H44-I44)*12.36% -> 12575.50365 | K44: =G44-H44-I44+J44 -> 114319.0607 | L44: =IF(L$9="JAMMU",HLOOKUP($A44,'[2]PROPOSED EX WORKS'!$D$2:$AE$90,20,0)) -> 110290 | M44: 1000 | N44: =IF(L$9="JAMMU",HLOOKUP($A44,[1]LD!$D$2:$AE$90,20,0)) -> 2314.023189 | O44: =(L44-M44-N44)*12.36% -> 13222.23073 | P44: =L44-M44-N44+O44 -> 120198.2075 | Q44: =IF(Q$9="NOIDA",HLOOKUP($A44,'[2]PROPOSED EX WORKS'!$D$2:$AE$90,21,0)) -> 108230 | R44: 1000 | S44: 0 | T44: =(Q44-R44-S44)*12.36% -> 13253.628 | U44: =Q44-R44-S44+T44 -> 120483.628 | V44: =IF(V$9="PONDICHERRY",HLOOKUP($A44,'[2]PROPOSED EX WORKS'!$D$2:$AE$90,22,0)) -> 104590 | W44: 1000 | X44: =IF(V$9="PONDICHERRY",HLOOKUP($A44,[1]LD!$D$2:$AE$90,22,0)) -> 2188.750777 | Y44: =(V44-W44-X44)*12.36% -> 12533.1944 | Z44: =V44-W44-X44+Y44 -> 113934.4436 | AA44: =IF(AA$9="BARODA",HLOOKUP($A44,'[2]PROPOSED EX WORKS'!$D$2:$AE$90,23,0)) -> 107690 | AB44: 1000 | AC44: =IF(AA$9="BARODA",HLOOKUP($A44,[1]LD!$D$2:$AE$90,23,0)) -> 2256.881387 | AD44: =(AA44-AB44-AC44)*12.36% -> 12907.93346 | AE44: =AA44-AB44-AC44+AD44 -> 117341.0521
A45: T50A010A | B45: =IF(D$9="BARJORA",HLOOKUP($A45,'[2]PROPOSED EX WORKS'!$D$2:$AE$90,18,0)) -> 107430 | C45: 1000 | D45: =IF(D$9="BARJORA",HLOOKUP($A45,[1]LD!$D$2:$AE$90,18,0)) -> 2251.167207 | E45: =(B45-C45-D45)*12.36% -> 12876.50373 | F45: =B45-C45-D45+E45 -> 117055.3365 | G45: =IF(G$9="HOSUR",HLOOKUP($A45,'[2]PROPOSED EX WORKS'!$D$2:$AE$90,19,0)) -> 104940 | H45: 1000 | I45: =IF(G$9="HOSUR",HLOOKUP($A45,[1]LD!$D$2:$AE$90,19,0)) -> 2196.442943 | J45: =(G45-H45-I45)*12.36% -> 12575.50365 | K45: =G45-H45-I45+J45 -> 114319.0607 | L45: =IF(L$9="JAMMU",HLOOKUP($A45,'[2]PROPOSED EX WORKS'!$D$2:$AE$90,20,0)) -> 110290 | M45: 1000 | N45: =IF(L$9="JAMMU",HLOOKUP($A45,[1]LD!$D$2:$AE$90,20,0)) -> 2314.023189 | O45: =(L45-M45-N45)*12.36% -> 13222.23073 | P45: =L45-M45-N45+O45 -> 120198.2075 | Q45: =IF(Q$9="NOIDA",HLOOKUP($A45,'[2]PROPOSED EX WORKS'!$D$2:$AE$90,21,0)) -> 108230 | R45: 1000 | S45: 0 | T45: =(Q45-R45-S45)*12.36% -> 13253.628 | U45: =Q45-R45-S45+T45 -> 120483.628 | V45: =IF(V$9="PONDICHERRY",HLOOKUP($A45,'[2]PROPOSED EX WORKS'!$D$2:$AE$90,22,0)) -> 105090 | W45: 1000 | X45: =IF(V$9="PONDICHERRY",HLOOKUP($A45,[1]LD!$D$2:$AE$90,22,0)) -> 2199.739585 | Y45: =(V45-W45-X45)*12.36% -> 12593.63619 | Z45: =V45-W45-X45+Y45 -> 114483.8966 | AA45: =IF(AA$9="BARODA",HLOOKUP($A45,'[2]PROPOSED EX WORKS'!$D$2:$AE$90,23,0)) -> 107690 | AB45: 1000 | AC45: =IF(AA$9="BARODA",HLOOKUP($A45,[1]LD!$D$2:$AE$90,23,0)) -> 2256.881387 | AD45: =(AA45-AB45-AC45)*12.36% -> 12907.93346 | AE45: =AA45-AB45-AC45+AD45 -> 117341.0521
A46: MF
A47: W52A009A | B47: =IF(D$9="BARJORA",HLOOKUP($A47,'[2]PROPOSED EX WORKS'!$D$2:$AE$90,18,0)) -> 104330 | C47: 1000 | D47: =IF(D$9="BARJORA",HLOOKUP($A47,[1]LD!$D$2:$AE$90,18,0)) -> 2270.947061 | E47: =(B47-C47-D47)*12.36% -> 12490.89894 | F47: =B47-C47-D47+E47 -> 113549.9519 | G47: =IF(G$9="HOSUR",HLOOKUP($A47,'[2]PROPOSED EX WORKS'!$D$2:$AE$90,19,0)) -> 101440 | H47: 1000 | I47: =IF(G$9="HOSUR",HLOOKUP($A47,[1]LD!$D$2:$AE$90,19,0)) -> 2207.431751 | J47: =(G47-H47-I47)*12.36% -> 12141.54544 | K47: =G47-H47-I47+J47 -> 110374.1137 | L47: =IF(L$9="JAMMU",HLOOKUP($A47,'[2]PROPOSED EX WORKS'!$D$2:$AE$90,20,0)) -> 106790 | M47: 1000 | N47: =IF(L$9="JAMMU",HLOOKUP($A47,[1]LD!$D$2:$AE$90,20,0)) -> 2325.011997 | O47: =(L47-M47-N47)*12.36% -> 12788.27252 | P47: =L47-M47-N47+O47 -> 116253.2605 | Q47: =IF(Q$9="NOIDA",HLOOKUP($A47,'[2]PROPOSED EX WORKS'!$D$2:$AE$90,21,0)) -> 104730 | R47: 1000 | S47: 0 | T47: =(Q47-R47-S47)*12.36% -> 12821.028 | U47: =Q47-R47-S47+T47 -> 116551.028 | V47: =IF(V$9="PONDICHERRY",HLOOKUP($A47,'[2]PROPOSED EX WORKS'!$D$2:$AE$90,22,0)) -> 101590 | W47: 1000 | X47: =IF(V$9="PONDICHERRY",HLOOKUP($A47,[1]LD!$D$2:$AE$90,22,0)) -> 2210.728393 | Y47: =(V47-W47-X47)*12.36% -> 12159.67797 | Z47: =V47-W47-X47+Y47 -> 110538.9496 | AA47: =IF(AA$9="BARODA",HLOOKUP($A47,'[2]PROPOSED EX WORKS'!$D$2:$AE$90,23,0)) -> 104190 | AB47: 1000 | AC47: =IF(AA$9="BARODA",HLOOKUP($A47,[1]LD!$D$2:$AE$90,23,0)) -> 2267.870195 | AD47: =(AA47-AB47-AC47)*12.36% -> 12473.97524 | AE47: =AA47-AB47-AC47+AD47 -> 113396.105
A48: W52A009OG
A49: W52ASR009A | B49: =IF(D$9="BARJORA",HLOOKUP($A49,'[2]PROPOSED EX WORKS'!$D$2:$AE$90,18,0)) -> 104330 | C49: 1000 | D49: =IF(D$9="BARJORA",HLOOKUP($A49,[1]LD!$D$2:$AE$90,18,0)) -> 2270.947061 | E49: =(B49-C49-D49)*12.36% -> 12490.89894 | F49: =B49-C49-D49+E49 -> 113549.9519 | G49: =IF(G$9="HOSUR",HLOOKUP($A49,'[2]PROPOSED EX WORKS'!$D$2:$AE$90,19,0)) -> 101440 | H49: 1000 | I49: =IF(G$9="HOSUR",HLOOKUP($A49,[1]LD!$D$2:$AE$90,19,0)) -> 2207.431751 | J49: =(G49-H49-I49)*12.36% -> 12141.54544 | K49: =G49-H49-I49+J49 -> 110374.1137 | L49: =IF(L$9="JAMMU",HLOOKUP($A49,'[2]PROPOSED EX WORKS'!$D$2:$AE$90,20,0)) -> 106790 | M49: 1000 | N49: =IF(L$9="JAMMU",HLOOKUP($A49,[1]LD!$D$2:$AE$90,20,0)) -> 2325.011997 | O49: =(L49-M49-N49)*12.36% -> 12788.27252 | P49: =L49-M49-N49+O49 -> 116253.2605 | Q49: =IF(Q$9="NOIDA",HLOOKUP($A49,'[2]PROPOSED EX WORKS'!$D$2:$AE$90,21,0)) -> 104730 | R49: 1000 | S49: 0 | T49: =(Q49-R49-S49)*12.36% -> 12821.028 | U49: =Q49-R49-S49+T49 -> 116551.028 | V49: =IF(V$9="PONDICHERRY",HLOOKUP($A49,'[2]PROPOSED EX WORKS'!$D$2:$AE$90,22,0)) -> 101590 | W49: 1000 | X49: =IF(V$9="PONDICHERRY",HLOOKUP($A49,[1]LD!$D$2:$AE$90,22,0)) -> 2210.728393 | Y49: =(V49-W49-X49)*12.36% -> 12159.67797 | Z49: =V49-W49-X49+Y49 -> 110538.9496 | AA49: =IF(AA$9="BARODA",HLOOKUP($A49,'[2]PROPOSED EX WORKS'!$D$2:$AE$90,23,0)) -> 104190 | AB49: 1000 | AC49: =IF(AA$9="BARODA",HLOOKUP($A49,[1]LD!$D$2:$AE$90,23,0)) -> 2267.870195 | AD49: =(AA49-AB49-AC49)*12.36% -> 12473.97524 | AE49: =AA49-AB49-AC49+AD49 -> 113396.105
A50: W55A004A | B50: =IF(D$9="BARJORA",HLOOKUP($A50,'[2]PROPOSED EX WORKS'!$D$2:$AE$90,18,0)) -> 107330 | C50: 1000 | D50: =IF(D$9="BARJORA",HLOOKUP($A50,[1]LD!$D$2:$AE$90,18,0)) -> 2336.879909 | E50: =(B50-C50-D50)*12.36% -> 12853.54964 | F50: =B50-C50-D50+E50 -> 116846.6697 | G50: =IF(G$9="HOSUR",HLOOKUP($A50,'[2]PROPOSED EX WORKS'!$D$2:$AE$90,19,0)) -> 104440 | H50: 1000 | I50: =IF(G$9="HOSUR",HLOOKUP($A50,[1]LD!$D$2:$AE$90,19,0)) -> 2273.364599 | J50: =(G50-H50-I50)*12.36% -> 12504.19614 | K50: =G50-H50-I50+J50 -> 113670.8315 | L50: =IF(L$9="JAMMU",HLOOKUP($A50,'[2]PROPOSED EX WORKS'!$D$2:$AE$90,20,0)) -> 109790 | M50: 1000 | N50: =IF(L$9="JAMMU",HLOOKUP($A50,[1]LD!$D$2:$AE$90,20,0)) -> 2390.944845 | O50: =(L50-M50-N50)*12.36% -> 13150.92322 | P50: =L50-M50-N50+O50 -> 119549.9784 | Q50: =IF(Q$9="NOIDA",HLOOKUP($A50,'[2]PROPOSED EX WORKS'!$D$2:$AE$90,21,0)) -> 107730 | R50: 1000 | S50: 0 | T50: =(Q50-R50-S50)*12.36% -> 13191.828 | U50: =Q50-R50-S50+T50 -> 119921.828 | V50: =IF(V$9="PONDICHERRY",HLOOKUP($A50,'[2]PROPOSED EX WORKS'!$D$2:$AE$90,22,0)) -> 104590 | W50: 1000 | X50: =IF(V$9="PONDICHERRY",HLOOKUP($A50,[1]LD!$D$2:$AE$90,22,0)) -> 2276.661241 | Y50: =(V50-W50-X50)*12.36% -> 12522.32867 | Z50: =V50-W50-X50+Y50 -> 113835.6674 | AA50: =IF(AA$9="BARODA",HLOOKUP($A50,'[2]PROPOSED EX WORKS'!$D$2:$AE$90,23,0)) -> 107690 | AB50: 1000 | AC50: =IF(AA$9="BARODA",HLOOKUP($A50,[1]LD!$D$2:$AE$90,23,0)) -> 2344.791851 | AD50: =(AA50-AB50-AC50)*12.36% -> 12897.06773 | AE50: =AA50-AB50-AC50+AD50 -> 117242.2759
A51: LLDPE
A52: E20AN009A | B52: =IF(D$9="BARJORA",HLOOKUP($A52,'[2]PROPOSED EX WORKS'!$D$2:$AE$90,18,0)) -> 105800 | C52: 1000 | D52: =IF(D$9="BARJORA",HLOOKUP($A52,[1]LD!$D$2:$AE$90,18,0)) -> 2303.254157 | E52: =(B52-C52-D52)*12.36% -> 12668.59779 | F52: =B52-C52-D52+E52 -> 115165.3436 | G52: =IF(G$9="HOSUR",HLOOKUP($A52,'[2]PROPOSED EX WORKS'!$D$2:$AE$90,19,0)) -> 104210 | H52: 1000 | I52: =IF(G$9="HOSUR",HLOOKUP($A52,[1]LD!$D$2:$AE$90,19,0)) -> 2268.309747 | J52: =(G52-H52-I52)*12.36% -> 12476.39292 | K52: =G52-H52-I52+J52 -> 113418.0832 | L52: =IF(L$9="JAMMU",HLOOKUP($A52,'[2]PROPOSED EX WORKS'!$D$2:$AE$90,20,0)) -> 109560 | M52: 1000 | N52: =IF(L$9="JAMMU",HLOOKUP($A52,[1]LD!$D$2:$AE$90,20,0)) -> 2385.889993 | O52: =(L52-M52-N52)*12.36% -> 13123.12 | P52: =L52-M52-N52+O52 -> 119297.23 | Q52: =IF(Q$9="NOIDA",HLOOKUP($A52,'[2]PROPOSED EX WORKS'!$D$2:$AE$90,21,0)) -> 107500 | R52: 1000 | S52: 0 | T52: =(Q52-R52-S52)*12.36% -> 13163.4 | U52: =Q52-R52-S52+T52 -> 119663.4 | V52: =IF(V$9="PONDICHERRY",HLOOKUP($A52,'[2]PROPOSED EX WORKS'!$D$2:$AE$90,22,0)) -> 104360 | W52: 1000 | X52: =IF(V$9="PONDICHERRY",HLOOKUP($A52,[1]LD!$D$2:$AE$90,22,0)) -> 2271.60639 | Y52: =(V52-W52-X52)*12.36% -> 12494.52545 | Z52: =V52-W52-X52+Y52 -> 113582.9191 | AA52: =IF(AA$9="BARODA",HLOOKUP($A52,'[2]PROPOSED EX WORKS'!$D$2:$AE$90,23,0)) -> 107590 | AB52: 1000 | AC52: =IF(AA$9="BARODA",HLOOKUP($A52,[1]LD!$D$2:$AE$90,23,0)) -> 2342.594089 | AD52: =(AA52-AB52-AC52)*12.36% -> 12884.97937 | AE52: =AA52-AB52-AC52+AD52 -> 117132.3853
A53: E20AN009OG
A54: E36A060A | B54: =IF(D$9="BARJORA",HLOOKUP($A54,'[2]PROPOSED EX WORKS'!$D$2:$AE$90,18,0)) -> 111440 | C54: 1000 | D54: =IF(D$9="BARJORA",HLOOKUP($A54,[1]LD!$D$2:$AE$90,18,0)) -> 2427.207911 | E54: =(B54-C54-D54)*12.36% -> 13350.3811 | F54: =B54-C54-D54+E54 -> 121363.1732 | G54: =IF(G$9="HOSUR",HLOOKUP($A54,'[2]PROPOSED EX WORKS'!$D$2:$AE$90,19,0)) -> 108250 | H54: 1000 | I54: =IF(G$9="HOSUR",HLOOKUP($A54,[1]LD!$D$2:$AE$90,19,0)) -> 2357.099316 | J54: =(G54-H54-I54)*12.36% -> 12964.76252 | K54: =G54-H54-I54+J54 -> 117857.6632 | L54: =IF(L$9="JAMMU",HLOOKUP($A54,'[2]PROPOSED EX WORKS'!$D$2:$AE$90,20,0)) -> 113600 | M54: 1000 | N54: =IF(L$9="JAMMU",HLOOKUP($A54,[1]LD!$D$2:$AE$90,20,0)) -> 2474.679562 | O54: =(L54-M54-N54)*12.36% -> 13611.48961 | P54: =L54-M54-N54+O54 -> 123736.81 | Q54: =IF(Q$9="NOIDA",HLOOKUP($A54,'[2]PROPOSED EX WORKS'!$D$2:$AE$90,21,0)) -> 111540 | R54: 1000 | S54: 0 | T54: =(Q54-R54-S54)*12.36% -> 13662.744 | U54: =Q54-R54-S54+T54 -> 124202.744 | V54: =IF(V$9="PONDICHERRY",HLOOKUP($A54,'[2]PROPOSED EX WORKS'!$D$2:$AE$90,22,0)) -> 108400 | W54: 1000 | X54: =IF(V$9="PONDICHERRY",HLOOKUP($A54,[1]LD!$D$2:$AE$90,22,0)) -> 2360.395958 | Y54: =(V54-W54-X54)*12.36% -> 12982.89506 | Z54: =V54-W54-X54+Y54 -> 118022.4991 | AA54: =IF(AA$9="BARODA",HLOOKUP($A54,'[2]PROPOSED EX WORKS'!$D$2:$AE$90,23,0)) -> 111590 | AB54: 1000 | AC54: =IF(AA$9="BARODA",HLOOKUP($A54,[1]LD!$D$2:$AE$90,23,0)) -> 2430.504553 | AD54: =(AA54-AB54-AC54)*12.36% -> 13368.51364 | AE54: =AA54-AB54-AC54+AD54 -> 121528.0091
A55: E36A060OG
A56: FILM
A57: F20S009A | B57: =IF(D$9="BARJORA",HLOOKUP($A57,'[2]PROPOSED EX WORKS'!$D$2:$AE$90,18,0)) -> 107300 | C57: 1000 | D57: =IF(D$9="BARJORA",HLOOKUP($A57,[1]LD!$D$2:$AE$90,18,0)) -> 2336.220581 | E57: =(B57-C57-D57)*12.36% -> 12849.92314 | F57: =B57-C57-D57+E57 -> 116813.7026 | G57: =IF(G$9="HOSUR",HLOOKUP($A57,'[2]PROPOSED EX WORKS'!$D$2:$AE$90,19,0)) -> 105710 | H57: 1000 | I57: =IF(G$9="HOSUR",HLOOKUP($A57,[1]LD!$D$2:$AE$90,19,0)) -> 2301.276171 | J57: =(G57-H57-I57)*12.36% -> 12657.71827 | K57: =G57-H57-I57+J57 -> 115066.4421 | L57: =IF(L$9="JAMMU",HLOOKUP($A57,'[2]PROPOSED EX WORKS'!$D$2:$AE$90,20,0)) -> 111060 | M57: 1000 | N57: =IF(L$9="JAMMU",HLOOKUP($A57,[1]LD!$D$2:$AE$90,20,0)) -> 2418.856417 | O57: =(L57-M57-N57)*12.36% -> 13304.44535 | P57: =L57-M57-N57+O57 -> 120945.5889 | Q57: =IF(Q$9="NOIDA",HLOOKUP($A57,'[2]PROPOSED EX WORKS'!$D$2:$AE$90,21,0)) -> 109000 | R57: 1000 | S57: 0 | T57: =(Q57-R57-S57)*12.36% -> 13348.8 | U57: =Q57-R57-S57+T57 -> 121348.8 | V57: =IF(V$9="PONDICHERRY",HLOOKUP($A57,'[2]PROPOSED EX WORKS'!$D$2:$AE$90,22,0)) -> 105860 | W57: 1000 | X57: =IF(V$9="PONDICHERRY",HLOOKUP($A57,[1]LD!$D$2:$AE$90,22,0)) -> 2304.572814 | Y57: =(V57-W57-X57)*12.36% -> 12675.8508 | Z57: =V57-W57-X57+Y57 -> 115231.278 | AA57: =IF(AA$9="BARODA",HLOOKUP($A57,'[2]PROPOSED EX WORKS'!$D$2:$AE$90,23,0)) -> 109090 | AB57: 1000 | AC57: =IF(AA$9="BARODA",HLOOKUP($A57,[1]LD!$D$2:$AE$90,23,0)) -> 2375.560513 | AD57: =(AA57-AB57-AC57)*12.36% -> 13066.30472 | AE57: =AA57-AB57-AC57+AD57 -> 118780.7442
A58: F20S009OG
A59: D22S010A | B59: =IF(D$9="BARJORA",HLOOKUP($A59,'[2]PROPOSED EX WORKS'!$D$2:$AE$90,18,0)) -> 106300 | C59: 1000 | D59: =IF(D$9="BARJORA",HLOOKUP($A59,[1]LD!$D$2:$AE$90,18,0)) -> 2314.242965 | E59: =(B59-C59-D59)*12.36% -> 12729.03957 | F59: =B59-C59-D59+E59 -> 115714.7966 | G59: =IF(G$9="HOSUR",HLOOKUP($A59,'[2]PROPOSED EX WORKS'!$D$2:$AE$90,19,0)) -> 104710 | H59: 1000 | I59: =IF(G$9="HOSUR",HLOOKUP($A59,[1]LD!$D$2:$AE$90,19,0)) -> 2279.298555 | J59: =(G59-H59-I59)*12.36% -> 12536.8347 | K59: =G59-H59-I59+J59 -> 113967.5361 | L59: =IF(L$9="JAMMU",HLOOKUP($A59,'[2]PROPOSED EX WORKS'!$D$2:$AE$90,20,0)) -> 110060 | M59: 1000 | N59: =IF(L$9="JAMMU",HLOOKUP($A59,[1]LD!$D$2:$AE$90,20,0)) -> 2396.878801 | O59: =(L59-M59-N59)*12.36% -> 13183.56178 | P59: =L59-M59-N59+O59 -> 119846.683 | Q59: =IF(Q$9="NOIDA",HLOOKUP($A59,'[2]PROPOSED EX WORKS'!$D$2:$AE$90,21,0)) -> 108000 | R59: 1000 | S59: 0 | T59: =(Q59-R59-S59)*12.36% -> 13225.2 | U59: =Q59-R59-S59+T59 -> 120225.2 | V59: =IF(V$9="PONDICHERRY",HLOOKUP($A59,'[2]PROPOSED EX WORKS'!$D$2:$AE$90,22,0)) -> 104860 | W59: 1000 | X59: =IF(V$9="PONDICHERRY",HLOOKUP($A59,[1]LD!$D$2:$AE$90,22,0)) -> 2282.595198 | Y59: =U59-V59-W59+X59 -> 16647.7952 | Z59: =V59-W59-X59+Y59 -> 118225.2 | AA59: =IF(AA$9="BARODA",HLOOKUP($A59,'[2]PROPOSED EX WORKS'!$D$2:$AE$90,23,0)) -> 108090 | AB59: 1000 | AC59: =IF(AA$9="BARODA",HLOOKUP($A59,[1]LD!$D$2:$AE$90,23,0)) -> 2353.582897 | AD59: =(AA59-AB59-AC59)*12.36% -> 12945.42115 | AE59: =AA59-AB59-AC59+AD59 -> 117681.8383
A60: ROTO
A61: R35A042A | B61: =IF(D$9="BARJORA",HLOOKUP($A61,'[2]PROPOSED EX WORKS'!$D$2:$AE$90,18,0)) -> 109220 | C61: 1000 | D61: =IF(D$9="BARJORA",HLOOKUP($A61,[1]LD!$D$2:$AE$90,18,0)) -> 2378.417604 | E61: =(B61-C61-D61)*12.36% -> 13082.01958 | F61: =B61-C61-D61+E61 -> 118923.602 | G61: =IF(G$9="HOSUR",HLOOKUP($A61,'[2]PROPOSED EX WORKS'!$D$2:$AE$90,19,0)) -> 105200 | H61: 1000 | I61: =IF(G$9="HOSUR",HLOOKUP($A61,[1]LD!$D$2:$AE$90,19,0)) -> 2290.067587 | J61: =(G61-H61-I61)*12.36% -> 12596.06765 | K61: =G61-H61-I61+J61 -> 114506.0001 | L61: =IF(L$9="JAMMU",HLOOKUP($A61,'[2]PROPOSED EX WORKS'!$D$2:$AE$90,20,0)) -> 110570 | M61: 1000 | N61: =IF(L$9="JAMMU",HLOOKUP($A61,[1]LD!$D$2:$AE$90,20,0)) -> 2408.087385 | O61: =(L61-M61-N61)*12.36% -> 13245.2124 | P61: =L61-M61-N61+O61 -> 120407.125 | Q61: =IF(Q$9="NOIDA",HLOOKUP($A61,'[2]PROPOSED EX WORKS'!$D$2:$AE$90,21,0)) -> 108520 | R61: 1000 | S61: 0 | T61: =(Q61-R61-S61)*12.36% -> 13289.472 | U61: =Q61-R61-S61+T61 -> 120809.472 | V61: =IF(V$9="PONDICHERRY",HLOOKUP($A61,'[2]PROPOSED EX WORKS'!$D$2:$AE$90,22,0)) -> 105870 | W61: 1000 | X61: =IF(V$9="PONDICHERRY",HLOOKUP($A61,[1]LD!$D$2:$AE$90,22,0)) -> 2304.79259 | Y61: =(V61-W61-X61)*12.36% -> 12677.05964 | Z61: =V61-W61-X61+Y61 -> 115242.267 | AA61: =IF(AA$9="BARODA",HLOOKUP($A61,'[2]PROPOSED EX WORKS'!$D$2:$AE$90,23,0)) -> 108710 | AB61: 1000 | AC61: =IF(AA$9="BARODA",HLOOKUP($A61,[1]LD!$D$2:$AE$90,23,0)) -> 2367.209019 | AD61: =(AA61-AB61-AC61)*12.36% -> 13020.36897 | AE61: =AA61-AB61-AC61+AD61 -> 118363.1599
A62: R35U042A | B62: =IF(D$9="BARJORA",HLOOKUP($A62,'[2]PROPOSED EX WORKS'!$D$2:$AE$90,18,0)) -> 110500 | C62: 1000 | D62: =IF(D$9="BARJORA",HLOOKUP($A62,[1]LD!$D$2:$AE$90,18,0)) -> 2406.548952 | E62: =(B62-C62-D62)*12.36% -> 13236.75055 | F62: =B62-C62-D62+E62 -> 120330.2016 | G62: =IF(G$9="HOSUR",HLOOKUP($A62,'[2]PROPOSED EX WORKS'!$D$2:$AE$90,19,0)) -> 106060 | H62: 1000 | I62: =IF(G$9="HOSUR",HLOOKUP($A62,[1]LD!$D$2:$AE$90,19,0)) -> 2308.968337 | J62: =(G62-H62-I62)*12.36% -> 12700.02751 | K62: =G62-H62-I62+J62 -> 115451.0592 | L62: =IF(L$9="JAMMU",HLOOKUP($A62,'[2]PROPOSED EX WORKS'!$D$2:$AE$90,20,0)) -> 111430 | M62: 1000 | N62: =IF(L$9="JAMMU",HLOOKUP($A62,[1]LD!$D$2:$AE$90,20,0)) -> 2426.988135 | O62: =(L62-M62-N62)*12.36% -> 13349.17227 | P62: =L62-M62-N62+O62 -> 121352.1841 | Q62: =IF(Q$9="NOIDA",HLOOKUP($A62,'[2]PROPOSED EX WORKS'!$D$2:$AE$90,21,0)) -> 109780 | R62: 1000 | T62: =(Q62-R62-S62)*12.36% -> 13445.208 | U62: =Q62-R62-S62+T62 -> 122225.208 | V62: =IF(V$9="PONDICHERRY",HLOOKUP($A62,'[2]PROPOSED EX WORKS'!$D$2:$AE$90,22,0)) -> 106750 | W62: 1000 | X62: =IF(V$9="PONDICHERRY",HLOOKUP($A62,[1]LD!$D$2:$AE$90,22,0)) -> 2324.132892 | Y62: =(V62-W62-X62)*12.36% -> 12783.43717 | Z62: =V62-W62-X62+Y62 -> 116209.3043 | AA62: =IF(AA$9="BARODA",HLOOKUP($A62,'[2]PROPOSED EX WORKS'!$D$2:$AE$90,23,0)) -> 109570 | AB62: 1000 | AC62: =IF(AA$9="BARODA",HLOOKUP($A62,[1]LD!$D$2:$AE$90,23,0)) -> 2386.109769 | AD62: =(AA62-AB62-AC62)*12.36% -> 13124.32883 | AE62: =AA62-AB62-AC62+AD62 -> 119308.2191
A64: NOTE : | B64: THE PRICES OF OLD PLANT & NEW PLANT ARE SAME FROM DIRECT SALE

Sheet Sheet4
A1: UNITED BROTHERS
A2: CONSIGNMENT STOCKIST OF GAIL (INDIA) LTD
A3: 301,HERITAGE PLAZA, R.S.MAHARAJ MARG,( TELI GALLI CROSS LANE), ANDHERI (E), MUMBAI - 400 069
A4: TEL: 26844612(4 LINES) FAX: 26822914 E-MAIL: info@unibrothers.com ,prashant@unibrothers.com ,jyoti@unibrothers.com
A5: EX-WORKS PRICE OF HDPE "G-LEX / G-LENE " W.E.F. 3RD APRIL 2014
A6: CASH / ADVANCE PAYMENT FOR MAHARASHTRA & DAMAN
B7: Freight 985.53 | G7: Freight 3199.90 | N7: FREIGHT 1758.96 | R7: FREIGHT 5424.7 | V7: Freight 2024.85
B8: ALWAR | G8: HYDERABAD | L8: BADDI | Q8: UDMALPET | V8: BHAVNAGAR
B9: BASIC | C9: DISC | D9: LOC | E9: EXCISE | F9: EX-WKS | G9: BASIC | H9: DISC | I9: LOC | J9: EXCISE | K9: EX-WKS | L9: BASIC | M9: DISC | N9: LOC | O9: EXCISE | P9: EX-WKS | Q9: BASIC | R9: DISC | S9: LOC | T9: EXCISE | U9: EX-WKS | W9: DISC | X9: LOC | Y9: EXCISE | Z9: EX-WKS
A10: BM
A11: B52A003A | B11: =IF(B$8="ALWAR",HLOOKUP($A11,'[2]PROPOSED EX WORKS'!$D$2:$AE$90,24,0)) -> 109470 | C11: 1000 | D11: =IF(B$8="ALWAR",HLOOKUP($A11,[1]LD!$D$2:$AE$90,24,0)) -> 2383.912008 | E11: =(B11-C11-D11)*12.36% -> 13112.24048 | F11: =B11-C11-D11+E11 -> 119198.3285 | G11: =IF(G$8="HYDERABAD",HLOOKUP($A11,'[2]PROPOSED EX WORKS'!$D$2:$AE$90,25,0)) -> 105900 | H11: 1000 | I11: =IF(G$8="HYDERABAD",HLOOKUP($A11,[1]LD!$D$2:$AE$90,25,0)) -> 2305.451918 | J11: =(G11-H11-I11)*12.36% -> 12680.68614 | K11: =G11-H11-I11+J11 -> 115275.2342 | L11: =IF(L$8="BADDI",HLOOKUP($A11,'[2]PROPOSED EX WORKS'!$D$2:$AE$90,26,0)) -> 109020 | M11: 1000 | N11: =IF(L$8="BADDI",HLOOKUP($A11,[1]LD!$D$2:$AE$90,26,0)) -> 2374.02208 | O11: =(L11-M11-N11)*12.36% -> 13057.84287 | P11: =L11-M11-N11+O11 -> 118703.8208 | Q11: =IF(Q$8="UDMALPET",HLOOKUP($A11,'[2]PROPOSED EX WORKS'!$D$2:$AE$90,27,0)) -> 104210 | R11: 1000 | S11: =IF(Q$8="UDMALPET",HLOOKUP($A11,[1]LD!$D$2:$AE$90,27,0)) -> 2268.309747 | T11: =(Q11-R11-S11)*12.36% -> 12476.39292 | U11: =Q11-R11-S11+T11 -> 113418.0832 | V11: =IF(V$8="BHAVNAGAR",HLOOKUP($A11,'[2]PROPOSED EX WORKS'!$D$2:$AE$90,28,0)) -> 107110 | W11: 1000 | X11: =IF(V$8="BHAVNAGAR",HLOOKUP($A11,[1]LD!$D$2:$AE$90,28,0)) -> 2332.044834 | Y11: =(V11-W11-X11)*12.36% -> 12826.95526 | Z11: =V11-W11-X11+Y11 -> 116604.9104
A12: B63A003A | B12: =IF(B$8="ALWAR",HLOOKUP($A12,'[2]PROPOSED EX WORKS'!$D$2:$AE$90,24,0)) -> 109470 | C12: 1000 | D12: =IF(B$8="ALWAR",HLOOKUP($A12,[1]LD!$D$2:$AE$90,24,0)) -> 2383.912008 | E12: =(B12-C12-D12)*12.36% -> 13112.24048 | F12: =B12-C12-D12+E12 -> 119198.3285 | G12: =IF(G$8="HYDERABAD",HLOOKUP($A12,'[2]PROPOSED EX WORKS'!$D$2:$AE$90,25,0)) -> 105900 | H12: 1000 | I12: =IF(G$8="HYDERABAD",HLOOKUP($A12,[1]LD!$D$2:$AE$90,25,0)) -> 2305.451918 | J12: =(G12-H12-I12)*12.36% -> 12680.68614 | K12: =G12-H12-I12+J12 -> 115275.2342 | L12: =IF(L$8="BADDI",HLOOKUP($A12,'[2]PROPOSED EX WORKS'!$D$2:$AE$90,26,0)) -> 109020 | M12: 1000 | N12: =IF(L$8="BADDI",HLOOKUP($A12,[1]LD!$D$2:$AE$90,26,0)) -> 2374.02208 | O12: =(L12-M12-N12)*12.36% -> 13057.84287 | P12: =L12-M12-N12+O12 -> 118703.8208 | Q12: =IF(Q$8="UDMALPET",HLOOKUP($A12,'[2]PROPOSED EX WORKS'!$D$2:$AE$90,27,0)) -> 104210 | R12: 1000 | S12: =IF(Q$8="UDMALPET",HLOOKUP($A12,[1]LD!$D$2:$AE$90,27,0)) -> 2268.309747 | T12: =(Q12-R12-S12)*12.36% -> 12476.39292 | U12: =Q12-R12-S12+T12 -> 113418.0832 | V12: =IF(V$8="BHAVNAGAR",HLOOKUP($A12,'[2]PROPOSED EX WORKS'!$D$2:$AE$90,28,0)) -> 107110 | W12: 1000 | X12: =IF(V$8="BHAVNAGAR",HLOOKUP($A12,[1]LD!$D$2:$AE$90,28,0)) -> 2332.044834 | Y12: =(V12-W12-X12)*12.36% -> 12826.95526 | Z12: =V12-W12-X12+Y12 -> 116604.9104
A13: B55HM0003A | B13: =IF(B$8="ALWAR",HLOOKUP($A13,'[2]PROPOSED EX WORKS'!$D$2:$AE$90,24,0)) -> 113670 | C13: 1000 | D13: =IF(B$8="ALWAR",HLOOKUP($A13,[1]LD!$D$2:$AE$90,24,0)) -> 2476.217995 | E13: =(B13-C13-D13)*12.36% -> 13619.95146 | F13: =B13-C13-D13+E13 -> 123813.7335 | G13: =IF(G$8="HYDERABAD",HLOOKUP($A13,'[2]PROPOSED EX WORKS'!$D$2:$AE$90,25,0)) -> 110440 | H13: 1000 | I13: =IF(G$8="HYDERABAD",HLOOKUP($A13,[1]LD!$D$2:$AE$90,25,0)) -> 2405.230295 | J13: =(G13-H13-I13)*12.36% -> 13229.49754 | K13: =G13-H13-I13+J13 -> 120264.2672 | L13: =IF(L$8="BADDI",HLOOKUP($A13,'[2]PROPOSED EX WORKS'!$D$2:$AE$90,26,0)) -> 113680 | M13: 1000 | N13: =IF(L$8="BADDI",HLOOKUP($A13,[1]LD!$D$2:$AE$90,26,0)) -> 2476.437771 | O13: =(L13-M13-N13)*12.36% -> 13621.16029 | P13: =L13-M13-N13+O13 -> 123824.7225 | Q13: =IF(Q$8="UDMALPET",HLOOKUP($A13,'[2]PROPOSED EX WORKS'!$D$2:$AE$90,27,0)) -> 108360 | R13: 1000 | S13: =IF(Q$8="UDMALPET",HLOOKUP($A13,[1]LD!$D$2:$AE$90,27,0)) -> 2359.516854 | T13: =(Q13-R13-S13)*12.36% -> 12978.05972 | U13: =Q13-R13-S13+T13 -> 117978.5429 | V13: =IF(V$8="BHAVNAGAR",HLOOKUP($A13,'[2]PROPOSED EX WORKS'!$D$2:$AE$90,28,0)) -> 111470 | W13: 1000 | X13: =IF(V$8="BHAVNAGAR",HLOOKUP($A13,[1]LD!$D$2:$AE$90,28,0)) -> 2427.86724 | Y13: =(V13-W13-X13)*12.36% -> 13354.00761 | Z13: =V13-W13-X13+Y13 -> 121396.1404
A14: CABLE-INSUL
A15: C43D006A | B15: =IF(B$8="ALWAR",HLOOKUP($A15,'[2]PROPOSED EX WORKS'!$D$2:$AE$90,24,0)) -> 107543.5 | C15: 1000 | D15: =IF(B$8="ALWAR",HLOOKUP($A15,[1]LD!$D$2:$AE$90,24,0)) -> 2341.57213 | E15: =(B15-C15-D15)*12.36% -> 12879.35828 | F15: =B15-C15-D15+E15 -> 117081.2862 | G15: =IF(G$8="HYDERABAD",HLOOKUP($A15,'[2]PROPOSED EX WORKS'!$D$2:$AE$90,25,0)) -> 104437 | H15: 1000 | I15: =IF(G$8="HYDERABAD",HLOOKUP($A15,[1]LD!$D$2:$AE$90,25,0)) -> 2273.298666 | J15: =(G15-H15-I15)*12.36% -> 12503.83348 | K15: =G15-H15-I15+J15 -> 113667.5348 | L15: =IF(L$8="BADDI",HLOOKUP($A15,'[2]PROPOSED EX WORKS'!$D$2:$AE$90,26,0)) -> 107591 | M15: 1000 | N15: =IF(L$8="BADDI",HLOOKUP($A15,[1]LD!$D$2:$AE$90,26,0)) -> 2342.616067 | O15: =(L15-M15-N15)*12.36% -> 12885.10025 | P15: =L15-M15-N15+O15 -> 117133.4842 | Q15: =IF(Q$8="UDMALPET",HLOOKUP($A15,'[2]PROPOSED EX WORKS'!$D$2:$AE$90,27,0)) -> 102271 | R15: 1000 | S15: =IF(Q$8="UDMALPET",HLOOKUP($A15,[1]LD!$D$2:$AE$90,27,0)) -> 2225.69515 | T15: =(Q15-R15-S15)*12.36% -> 12241.99968 | U15: =Q15-R15-S15+T15 -> 111287.3045 | V15: =IF(V$8="BHAVNAGAR",HLOOKUP($A15,'[2]PROPOSED EX WORKS'!$D$2:$AE$90,28,0)) -> 104735 | W15: 1000 | X15: =IF(V$8="BHAVNAGAR",HLOOKUP($A15,[1]LD!$D$2:$AE$90,28,0)) -> 2279.847996 | Y15: =(V15-W15-X15)*12.36% -> 12539.85679 | Z15: =V15-W15-X15+Y15 -> 113995.0088
A17: SHETG
A18: E45A003A | B18: =IF(B$8="ALWAR",HLOOKUP($A18,'[2]PROPOSED EX WORKS'!$D$2:$AE$90,24,0)) -> 108780 | C18: 1000 | D18: =IF(B$8="ALWAR",HLOOKUP($A18,[1]LD!$D$2:$AE$90,24,0)) -> 2368.747452 | E18: =(B18-C18-D18)*12.36% -> 13028.83081 | F18: =B18-C18-D18+E18 -> 118440.0834 | G18: =IF(G$8="HYDERABAD",HLOOKUP($A18,'[2]PROPOSED EX WORKS'!$D$2:$AE$90,25,0)) -> 105510 | H18: 1000 | I18: =IF(G$8="HYDERABAD",HLOOKUP($A18,[1]LD!$D$2:$AE$90,25,0)) -> 2296.880648 | J18: =(G18-H18-I18)*12.36% -> 12633.54155 | K18: =G18-H18-I18+J18 -> 114846.6609 | L18: =IF(L$8="BADDI",HLOOKUP($A18,'[2]PROPOSED EX WORKS'!$D$2:$AE$90,26,0)) -> 108830 | M18: 1000 | N18: =IF(L$8="BADDI",HLOOKUP($A18,[1]LD!$D$2:$AE$90,26,0)) -> 2369.846333 | O18: =(L18-M18-N18)*12.36% -> 13034.87499 | P18: =L18-M18-N18+O18 -> 118495.0287 | Q18: =IF(Q$8="UDMALPET",HLOOKUP($A18,'[2]PROPOSED EX WORKS'!$D$2:$AE$90,27,0)) -> 103220 | R18: 1000 | S18: =IF(Q$8="UDMALPET",HLOOKUP($A18,[1]LD!$D$2:$AE$90,27,0)) -> 2246.551908 | T18: =(Q18-R18-S18)*12.36% -> 12356.71818 | U18: =Q18-R18-S18+T18 -> 112330.1663 | V18: =IF(V$8="BHAVNAGAR",HLOOKUP($A18,'[2]PROPOSED EX WORKS'!$D$2:$AE$90,28,0)) -> 106000 | W18: 1000 | X18: =IF(V$8="BHAVNAGAR",HLOOKUP($A18,[1]LD!$D$2:$AE$90,28,0)) -> 2307.64968 | Y18: =(V18-W18-X18)*12.36% -> 12692.7745 | Z18: =V18-W18-X18+Y18 -> 115385.1248
A19: E45A003OG
A20: EXTR
A21: E52A003A | B21: =IF(B$8="ALWAR",HLOOKUP($A21,'[2]PROPOSED EX WORKS'!$D$2:$AE$90,24,0)) -> 110450 | C21: 1000 | D21: =IF(B$8="ALWAR",HLOOKUP($A21,[1]LD!$D$2:$AE$90,24,0)) -> 2405.450071 | E21: =(B21-C21-D21)*12.36% -> 13230.70637 | F21: =B21-C21-D21+E21 -> 120275.2563 | G21: =IF(G$8="HYDERABAD",HLOOKUP($A21,'[2]PROPOSED EX WORKS'!$D$2:$AE$90,25,0)) -> 107180 | H21: 1000 | I21: =IF(G$8="HYDERABAD",HLOOKUP($A21,[1]LD!$D$2:$AE$90,25,0)) -> 2333.583267 | J21: =(G21-H21-I21)*12.36% -> 12835.41711 | K21: =G21-H21-I21+J21 -> 116681.8338 | L21: =IF(L$8="BADDI",HLOOKUP($A21,'[2]PROPOSED EX WORKS'!$D$2:$AE$90,26,0)) -> 110500 | M21: 1000 | N21: =IF(L$8="BADDI",HLOOKUP($A21,[1]LD!$D$2:$AE$90,26,0)) -> 2406.548952 | O21: =(L21-M21-N21)*12.36% -> 13236.75055 | P21: =L21-M21-N21+O21 -> 120330.2016 | Q21: =IF(Q$8="UDMALPET",HLOOKUP($A21,'[2]PROPOSED EX WORKS'!$D$2:$AE$90,27,0)) -> 104890 | R21: 1000 | S21: =IF(Q$8="UDMALPET",HLOOKUP($A21,[1]LD!$D$2:$AE$90,27,0)) -> 2283.254526 | T21: =(Q21-R21-S21)*12.36% -> 12558.59374 | U21: =Q21-R21-S21+T21 -> 114165.3392 | V21: =IF(V$8="BHAVNAGAR",HLOOKUP($A21,'[2]PROPOSED EX WORKS'!$D$2:$AE$90,28,0)) -> 108100 | W21: 1000 | X21: =IF(V$8="BHAVNAGAR",HLOOKUP($A21,[1]LD!$D$2:$AE$90,28,0)) -> 2353.802674 | Y21: =(V21-W21-X21)*12.36% -> 12946.62999 | Z21: =V21-W21-X21+Y21 -> 117692.8273
A22: E52A003OG
A23: E52U003A | B23: =IF(B$8="ALWAR",HLOOKUP($A23,'[2]PROPOSED EX WORKS'!$D$2:$AE$90,24,0)) -> 114230 | C23: 1000 | D23: =IF(B$8="ALWAR",HLOOKUP($A23,[1]LD!$D$2:$AE$90,24,0)) -> 2433.58142 | E23: =(B23-C23-D23)*12.36% -> 13694.43734 | F23: =B23-C23-D23+E23 -> 124490.8559 | G23: =IF(G$8="HYDERABAD",HLOOKUP($A23,'[2]PROPOSED EX WORKS'!$D$2:$AE$90,25,0)) -> 110960 | H23: 1000 | I23: =IF(G$8="HYDERABAD",HLOOKUP($A23,[1]LD!$D$2:$AE$90,25,0)) -> 2361.714615 | J23: =(G23-H23-I23)*12.36% -> 13299.14807 | K23: =G23-H23-I23+J23 -> 120897.4335 | L23: =IF(L$8="BADDI",HLOOKUP($A23,'[2]PROPOSED EX WORKS'!$D$2:$AE$90,26,0)) -> 114280 | M23: 1000 | N23: =IF(L$8="BADDI",HLOOKUP($A23,[1]LD!$D$2:$AE$90,26,0)) -> 2434.6803 | O23: =(L23-M23-N23)*12.36% -> 13700.48151 | P23: =L23-M23-N23+O23 -> 124545.8012 | Q23: =IF(Q$8="UDMALPET",HLOOKUP($A23,'[2]PROPOSED EX WORKS'!$D$2:$AE$90,27,0)) -> 108670 | R23: 1000 | S23: =IF(Q$8="UDMALPET",HLOOKUP($A23,[1]LD!$D$2:$AE$90,27,0)) -> 2311.385875 | T23: =(Q23-R23-S23)*12.36% -> 13022.32471 | U23: =Q23-R23-S23+T23 -> 118380.9388 | V23: =IF(V$8="BHAVNAGAR",HLOOKUP($A23,'[2]PROPOSED EX WORKS'!$D$2:$AE$90,28,0)) -> 111880 | W23: 1000 | X23: =IF(V$8="BHAVNAGAR",HLOOKUP($A23,[1]LD!$D$2:$AE$90,28,0)) -> 2381.934022 | Y23: =(V23-W23-X23)*12.36% -> 13410.36095 | Z23: =V23-W23-X23+Y23 -> 121908.4269
A24: E52U003OG
A25: HM FILM
A26: F55HM0003A | B26: =IF(B$8="ALWAR",HLOOKUP($A26,'[2]PROPOSED EX WORKS'!$D$2:$AE$90,24,0)) -> 109720 | C26: 1000 | D26: =IF(B$8="ALWAR",HLOOKUP($A26,[1]LD!$D$2:$AE$90,24,0)) -> 2389.406412 | E26: =(B26-C26-D26)*12.36% -> 13142.46137 | F26: =B26-C26-D26+E26 -> 119473.055 | G26: =IF(G$8="HYDERABAD",HLOOKUP($A26,'[2]PROPOSED EX WORKS'!$D$2:$AE$90,25,0)) -> 104740 | H26: 1000 | I26: =IF(G$8="HYDERABAD",HLOOKUP($A26,[1]LD!$D$2:$AE$90,25,0)) -> 2279.957884 | J26: =(G26-H26-I26)*12.36% -> 12540.46121 | K26: =G26-H26-I26+J26 -> 114000.5033 | L26: =IF(L$8="BADDI",HLOOKUP($A26,'[2]PROPOSED EX WORKS'!$D$2:$AE$90,26,0)) -> 108980 | M26: 1000 | N26: =IF(L$8="BADDI",HLOOKUP($A26,[1]LD!$D$2:$AE$90,26,0)) -> 2373.142976 | O26: =(L26-M26-N26)*12.36% -> 13053.00753 | P26: =L26-M26-N26+O26 -> 118659.8646 | Q26: =IF(Q$8="UDMALPET",HLOOKUP($A26,'[2]PROPOSED EX WORKS'!$D$2:$AE$90,27,0)) -> 104410 | R26: 1000 | S26: =IF(Q$8="UDMALPET",HLOOKUP($A26,[1]LD!$D$2:$AE$90,27,0)) -> 2272.705271 | T26: =(Q26-R26-S26)*12.36% -> 12500.56963 | U26: =Q26-R26-S26+T26 -> 113637.8644 | V26: =IF(V$8="BHAVNAGAR",HLOOKUP($A26,'[2]PROPOSED EX WORKS'!$D$2:$AE$90,28,0)) -> 107020 | W26: 1000 | X26: =IF(V$8="BHAVNAGAR",HLOOKUP($A26,[1]LD!$D$2:$AE$90,28,0)) -> 2330.066848 | Y26: =(V26-W26-X26)*12.36% -> 12816.07574 | Z26: =V26-W26-X26+Y26 -> 116506.0089
A27: F55HM0003OG
A28: IM HIGH
A29: I50A180A | B29: =IF(B$8="ALWAR",HLOOKUP($A29,'[2]PROPOSED EX WORKS'!$D$2:$AE$90,24,0)) -> 105950 | C29: 1000 | D29: =IF(B$8="ALWAR",HLOOKUP($A29,[1]LD!$D$2:$AE$90,24,0)) -> 2306.550799 | E29: =(B29-C29-D29)*12.36% -> 12686.73032 | F29: =B29-C29-D29+E29 -> 115330.1795 | G29: =IF(G$8="HYDERABAD",HLOOKUP($A29,'[2]PROPOSED EX WORKS'!$D$2:$AE$90,25,0)) -> 102930 | H29: 1000 | I29: =IF(G$8="HYDERABAD",HLOOKUP($A29,[1]LD!$D$2:$AE$90,25,0)) -> 2240.178399 | J29: =(G29-H29-I29)*12.36% -> 12321.66195 | K29: =G29-H29-I29+J29 -> 112011.4836 | L29: =IF(L$8="BADDI",HLOOKUP($A29,'[2]PROPOSED EX WORKS'!$D$2:$AE$90,26,0)) -> 105520 | M29: 1000 | N29: =IF(L$8="BADDI",HLOOKUP($A29,[1]LD!$D$2:$AE$90,26,0)) -> 2297.100424 | O29: =(L29-M29-N29)*12.36% -> 12634.75039 | P29: =L29-M29-N29+O29 -> 114857.65 | Q29: =IF(Q$8="UDMALPET",HLOOKUP($A29,'[2]PROPOSED EX WORKS'!$D$2:$AE$90,27,0)) -> 100920 | R29: 1000 | S29: =IF(Q$8="UDMALPET",HLOOKUP($A29,[1]LD!$D$2:$AE$90,27,0)) -> 2196.003391 | T29: =(Q29-R29-S29)*12.36% -> 12078.68598 | U29: =Q29-R29-S29+T29 -> 109802.6826 | V29: =IF(V$8="BHAVNAGAR",HLOOKUP($A29,'[2]PROPOSED EX WORKS'!$D$2:$AE$90,28,0)) -> 103350 | W29: 1000 | X29: =IF(V$8="BHAVNAGAR",HLOOKUP($A29,[1]LD!$D$2:$AE$90,28,0)) -> 2249.408998 | Y29: =(V29-W29-X29)*12.36% -> 12372.43305 | Z29: =V29-W29-X29+Y29 -> 112473.0241
A30: I50A180OG
A31: IM LOW
A32: I60A080A | B32: =IF(B$8="ALWAR",HLOOKUP($A32,'[2]PROPOSED EX WORKS'!$D$2:$AE$90,24,0)) -> 107420 | C32: 1000 | D32: =IF(B$8="ALWAR",HLOOKUP($A32,[1]LD!$D$2:$AE$90,24,0)) -> 2338.857895 | E32: =(B32-C32-D32)*12.36% -> 12864.42916 | F32: =B32-C32-D32+E32 -> 116945.5713 | G32: =IF(G$8="HYDERABAD",HLOOKUP($A32,'[2]PROPOSED EX WORKS'!$D$2:$AE$90,25,0)) -> 104150 | H32: 1000 | I32: =IF(G$8="HYDERABAD",HLOOKUP($A32,[1]LD!$D$2:$AE$90,25,0)) -> 2266.99109 | J32: =(G32-H32-I32)*12.36% -> 12469.1399 | K32: =G32-H32-I32+J32 -> 113352.1488 | L32: =IF(L$8="BADDI",HLOOKUP($A32,'[2]PROPOSED EX WORKS'!$D$2:$AE$90,26,0)) -> 107480 | M32: 1000 | N32: =IF(L$8="BADDI",HLOOKUP($A32,[1]LD!$D$2:$AE$90,26,0)) -> 2340.176552 | O32: =(L32-M32-N32)*12.36% -> 12871.68218 | P32: =L32-M32-N32+O32 -> 117011.5056 | Q32: =IF(Q$8="UDMALPET",HLOOKUP($A32,'[2]PROPOSED EX WORKS'!$D$2:$AE$90,27,0)) -> 101870 | R32: 1000 | S32: =IF(Q$8="UDMALPET",HLOOKUP($A32,[1]LD!$D$2:$AE$90,27,0)) -> 2216.882126 | T32: =(Q32-R32-S32)*12.36% -> 12193.52537 | U32: =Q32-R32-S32+T32 -> 110846.6432 | V32: =IF(V$8="BHAVNAGAR",HLOOKUP($A32,'[2]PROPOSED EX WORKS'!$D$2:$AE$90,28,0)) -> 104600 | W32: 1000 | X32: =IF(V$8="BHAVNAGAR",HLOOKUP($A32,[1]LD!$D$2:$AE$90,28,0)) -> 2276.881018 | Y32: =(V32-W32-X32)*12.36% -> 12523.53751 | Z32: =V32-W32-X32+Y32 -> 113846.6565
A33: I60A080OG
A34: IM-L-UV
A35: I60U080A | B35: =IF(B$8="ALWAR",HLOOKUP($A35,'[2]PROPOSED EX WORKS'!$D$2:$AE$90,24,0)) -> 108960 | C35: 1000 | D35: =IF(B$8="ALWAR",HLOOKUP($A35,[1]LD!$D$2:$AE$90,24,0)) -> 2372.703423 | E35: =(B35-C35-D35)*12.36% -> 13050.58986 | F35: =B35-C35-D35+E35 -> 118637.8864 | G35: =IF(G$8="HYDERABAD",HLOOKUP($A35,'[2]PROPOSED EX WORKS'!$D$2:$AE$90,25,0)) -> 105690 | H35: 1000 | I35: =IF(G$8="HYDERABAD",HLOOKUP($A35,[1]LD!$D$2:$AE$90,25,0)) -> 2300.836619 | J35: =(G35-H35-I35)*12.36% -> 12655.30059 | K35: =G35-H35-I35+J35 -> 115044.464 | L35: =IF(L$8="BADDI",HLOOKUP($A35,'[2]PROPOSED EX WORKS'!$D$2:$AE$90,26,0)) -> 109010 | M35: 1000 | N35: =IF(L$8="BADDI",HLOOKUP($A35,[1]LD!$D$2:$AE$90,26,0)) -> 2373.802304 | O35: =(L35-M35-N35)*12.36% -> 13056.63404 | P35: =L35-M35-N35+O35 -> 118692.8317 | Q35: =IF(Q$8="UDMALPET",HLOOKUP($A35,'[2]PROPOSED EX WORKS'!$D$2:$AE$90,27,0)) -> 103410 | R35: 1000 | S35: =IF(Q$8="UDMALPET",HLOOKUP($A35,[1]LD!$D$2:$AE$90,27,0)) -> 2250.727655 | T35: =(Q35-R35-S35)*12.36% -> 12379.68606 | U35: =Q35-R35-S35+T35 -> 112538.9584 | V35: =IF(V$8="BHAVNAGAR",HLOOKUP($A35,'[2]PROPOSED EX WORKS'!$D$2:$AE$90,28,0)) -> 106100 | W35: 1000 | X35: =IF(V$8="BHAVNAGAR",HLOOKUP($A35,[1]LD!$D$2:$AE$90,28,0)) -> 2309.847442 | Y35: =(V35-W35-X35)*12.36% -> 12704.86286 | Z35: =V35-W35-X35+Y35 -> 115495.0154
A36: I60U080OG
A37: PIPE (PE80)
A38: P54A001A | B38: =IF(B$8="ALWAR",HLOOKUP($A38,'[2]PROPOSED EX WORKS'!$D$2:$AE$90,24,0)) -> 116430 | C38: 1000 | D38: =IF(B$8="ALWAR",HLOOKUP($A38,[1]LD!$D$2:$AE$90,24,0)) -> 2481.932175 | E38: =(B38-C38-D38)*12.36% -> 13960.38118 | F38: =B38-C38-D38+E38 -> 126908.449 | G38: =IF(G$8="HYDERABAD",HLOOKUP($A38,'[2]PROPOSED EX WORKS'!$D$2:$AE$90,25,0)) -> 113200 | H38: 1000 | I38: =IF(G$8="HYDERABAD",HLOOKUP($A38,[1]LD!$D$2:$AE$90,25,0)) -> 2410.944475 | J38: =(G38-H38-I38)*12.36% -> 13569.92726 | K38: =G38-H38-I38+J38 -> 123358.9828 | L38: =IF(L$8="BADDI",HLOOKUP($A38,'[2]PROPOSED EX WORKS'!$D$2:$AE$90,26,0)) -> 116440 | M38: 1000 | N38: =IF(L$8="BADDI",HLOOKUP($A38,[1]LD!$D$2:$AE$90,26,0)) -> 2482.151951 | O38: =(L38-M38-N38)*12.36% -> 13961.59002 | P38: =L38-M38-N38+O38 -> 126919.4381 | Q38: =IF(Q$8="UDMALPET",HLOOKUP($A38,'[2]PROPOSED EX WORKS'!$D$2:$AE$90,27,0)) -> 111120 | R38: 1000 | S38: =IF(Q$8="UDMALPET",HLOOKUP($A38,[1]LD!$D$2:$AE$90,27,0)) -> 2365.231034 | T38: =(Q38-R38-S38)*12.36% -> 13318.48944 | U38: =Q38-R38-S38+T38 -> 121073.2584 | V38: =IF(V$8="BHAVNAGAR",HLOOKUP($A38,'[2]PROPOSED EX WORKS'!$D$2:$AE$90,28,0)) -> 114230 | W38: 1000 | X38: =IF(V$8="BHAVNAGAR",HLOOKUP($A38,[1]LD!$D$2:$AE$90,28,0)) -> 2433.58142 | Y38: =(V38-W38-X38)*12.36% -> 13694.43734 | Z38: =V38-W38-X38+Y38 -> 124490.8559
A39: PIPE (PE100)
A40: P52A003A | B40: =IF(B$8="ALWAR",HLOOKUP($A40,'[2]PROPOSED EX WORKS'!$D$2:$AE$90,24,0)) -> 118430 | C40: 1000 | D40: =IF(B$8="ALWAR",HLOOKUP($A40,[1]LD!$D$2:$AE$90,24,0)) -> 2525.887407 | E40: =(B40-C40-D40)*12.36% -> 14202.14832 | F40: =B40-C40-D40+E40 -> 129106.2609 | G40: =IF(G$8="HYDERABAD",HLOOKUP($A40,'[2]PROPOSED EX WORKS'!$D$2:$AE$90,25,0)) -> 115200 | H40: 1000 | I40: =IF(G$8="HYDERABAD",HLOOKUP($A40,[1]LD!$D$2:$AE$90,25,0)) -> 2454.899707 | J40: =(G40-H40-I40)*12.36% -> 13811.6944 | K40: =G40-H40-I40+J40 -> 125556.7947 | L40: =IF(L$8="BADDI",HLOOKUP($A40,'[2]PROPOSED EX WORKS'!$D$2:$AE$90,26,0)) -> 118440 | M40: 1000 | N40: =IF(L$8="BADDI",HLOOKUP($A40,[1]LD!$D$2:$AE$90,26,0)) -> 2526.107183 | O40: =(L40-M40-N40)*12.36% -> 14203.35715 | P40: =L40-M40-N40+O40 -> 129117.25 | Q40: =IF(Q$8="UDMALPET",HLOOKUP($A40,'[2]PROPOSED EX WORKS'!$D$2:$AE$90,27,0)) -> 113120 | R40: 1000 | S40: =IF(Q$8="UDMALPET",HLOOKUP($A40,[1]LD!$D$2:$AE$90,27,0)) -> 2409.186266 | T40: =(Q40-R40-S40)*12.36% -> 13560.25658 | U40: =Q40-R40-S40+T40 -> 123271.0703 | V40: =IF(V$8="BHAVNAGAR",HLOOKUP($A40,'[2]PROPOSED EX WORKS'!$D$2:$AE$90,28,0)) -> 116230 | W40: 1000 | X40: =IF(V$8="BHAVNAGAR",HLOOKUP($A40,[1]LD!$D$2:$AE$90,28,0)) -> 2477.536652 | Y40: =(V40-W40-X40)*12.36% -> 13936.20447 | Z40: =V40-W40-X40+Y40 -> 126688.6678
A41: RAFFIA
A42: W50A009A | B42: =IF(B$8="ALWAR",HLOOKUP($A42,'[2]PROPOSED EX WORKS'!$D$2:$AE$90,24,0)) -> 110050 | C42: 1000 | D42: =IF(B$8="ALWAR",HLOOKUP($A42,[1]LD!$D$2:$AE$90,24,0)) -> 2308.748561 | E42: =(B42-C42-D42)*12.36% -> 13193.21868 | F42: =B42-C42-D42+E42 -> 119934.4701 | G42: =IF(G$8="HYDERABAD",HLOOKUP($A42,'[2]PROPOSED EX WORKS'!$D$2:$AE$90,25,0)) -> 107280 | H42: 1000 | I42: =IF(G$8="HYDERABAD",HLOOKUP($A42,[1]LD!$D$2:$AE$90,25,0)) -> 2247.870564 | J42: =(G42-H42-I42)*12.36% -> 12858.3712 | K42: =G42-H42-I42+J42 -> 116890.5006 | L42: =IF(L$8="BADDI",HLOOKUP($A42,'[2]PROPOSED EX WORKS'!$D$2:$AE$90,26,0)) -> 110600 | M42: 1000 | N42: =IF(L$8="BADDI",HLOOKUP($A42,[1]LD!$D$2:$AE$90,26,0)) -> 2320.83625 | O42: =(L42-M42-N42)*12.36% -> 13259.70464 | P42: =L42-M42-N42+O42 -> 120538.8684 | Q42: =IF(Q$8="UDMALPET",HLOOKUP($A42,'[2]PROPOSED EX WORKS'!$D$2:$AE$90,27,0)) -> 104500 | R42: 1000 | S42: =IF(Q$8="UDMALPET",HLOOKUP($A42,[1]LD!$D$2:$AE$90,27,0)) -> 2186.772792 | T42: =(Q42-R42-S42)*12.36% -> 12522.31488 | U42: =Q42-R42-S42+T42 -> 113835.5421 | V42: =IF(V$8="BHAVNAGAR",HLOOKUP($A42,'[2]PROPOSED EX WORKS'!$D$2:$AE$90,28,0)) -> 107600 | W42: 1000 | X42: =IF(V$8="BHAVNAGAR",HLOOKUP($A42,[1]LD!$D$2:$AE$90,28,0)) -> 2254.903402 | Y42: =(V42-W42-X42)*12.36% -> 12897.05394 | Z42: =V42-W42-X42+Y42 -> 117242.1505
A43: T50A010A | B43: =IF(B$8="ALWAR",HLOOKUP($A43,'[2]PROPOSED EX WORKS'!$D$2:$AE$90,24,0)) -> 110550 | C43: 1000 | D43: =IF(B$8="ALWAR",HLOOKUP($A43,[1]LD!$D$2:$AE$90,24,0)) -> 2319.737369 | E43: =(B43-C43-D43)*12.36% -> 13253.66046 | F43: =B43-C43-D43+E43 -> 120483.9231 | G43: =IF(G$8="HYDERABAD",HLOOKUP($A43,'[2]PROPOSED EX WORKS'!$D$2:$AE$90,25,0)) -> 107280 | H43: 1000 | I43: =IF(G$8="HYDERABAD",HLOOKUP($A43,[1]LD!$D$2:$AE$90,25,0)) -> 2247.870564 | J43: =(G43-H43-I43)*12.36% -> 12858.3712 | K43: =G43-H43-I43+J43 -> 116890.5006 | L43: =IF(L$8="BADDI",HLOOKUP($A43,'[2]PROPOSED EX WORKS'!$D$2:$AE$90,26,0)) -> 110600 | M43: 1000 | N43: =IF(L$8="BADDI",HLOOKUP($A43,[1]LD!$D$2:$AE$90,26,0)) -> 2320.83625 | O43: =(L43-M43-N43)*12.36% -> 13259.70464 | P43: =L43-M43-N43+O43 -> 120538.8684 | Q43: =IF(Q$8="UDMALPET",HLOOKUP($A43,'[2]PROPOSED EX WORKS'!$D$2:$AE$90,27,0)) -> 105000 | R43: 1000 | S43: =IF(Q$8="UDMALPET",HLOOKUP($A43,[1]LD!$D$2:$AE$90,27,0)) -> 2197.7616 | T43: =(Q43-R43-S43)*12.36% -> 12582.75667 | U43: =Q43-R43-S43+T43 -> 114384.9951 | V43: =IF(V$8="BHAVNAGAR",HLOOKUP($A43,'[2]PROPOSED EX WORKS'!$D$2:$AE$90,28,0)) -> 107600 | W43: 1000 | X43: =IF(V$8="BHAVNAGAR",HLOOKUP($A43,[1]LD!$D$2:$AE$90,28,0)) -> 2254.903402 | Y43: =(V43-W43-X43)*12.36% -> 12897.05394 | Z43: =V43-W43-X43+Y43 -> 117242.1505
A44: MF
A45: W52A009A | B45: =IF(B$8="ALWAR",HLOOKUP($A45,'[2]PROPOSED EX WORKS'!$D$2:$AE$90,24,0)) -> 107050 | C45: 1000 | D45: =IF(B$8="ALWAR",HLOOKUP($A45,[1]LD!$D$2:$AE$90,24,0)) -> 2330.726177 | E45: =(B45-C45-D45)*12.36% -> 12819.70224 | F45: =B45-C45-D45+E45 -> 116538.9761 | G45: =IF(G$8="HYDERABAD",HLOOKUP($A45,'[2]PROPOSED EX WORKS'!$D$2:$AE$90,25,0)) -> 103780 | H45: 1000 | I45: =IF(G$8="HYDERABAD",HLOOKUP($A45,[1]LD!$D$2:$AE$90,25,0)) -> 2258.859372 | J45: =(G45-H45-I45)*12.36% -> 12424.41298 | K45: =G45-H45-I45+J45 -> 112945.5536 | L45: =IF(L$8="BADDI",HLOOKUP($A45,'[2]PROPOSED EX WORKS'!$D$2:$AE$90,26,0)) -> 107100 | M45: 1000 | N45: =IF(L$8="BADDI",HLOOKUP($A45,[1]LD!$D$2:$AE$90,26,0)) -> 2331.825058 | O45: =(L45-M45-N45)*12.36% -> 12825.74642 | P45: =L45-M45-N45+O45 -> 116593.9214 | Q45: =IF(Q$8="UDMALPET",HLOOKUP($A45,'[2]PROPOSED EX WORKS'!$D$2:$AE$90,27,0)) -> 101500 | R45: 1000 | S45: =IF(Q$8="UDMALPET",HLOOKUP($A45,[1]LD!$D$2:$AE$90,27,0)) -> 2208.750408 | T45: =(Q45-R45-S45)*12.36% -> 12148.79845 | U45: =Q45-R45-S45+T45 -> 110440.048 | V45: =IF(V$8="BHAVNAGAR",HLOOKUP($A45,'[2]PROPOSED EX WORKS'!$D$2:$AE$90,28,0)) -> 104100 | W45: 1000 | X45: =IF(V$8="BHAVNAGAR",HLOOKUP($A45,[1]LD!$D$2:$AE$90,28,0)) -> 2265.89221 | Y45: =(V45-W45-X45)*12.36% -> 12463.09572 | Z45: =V45-W45-X45+Y45 -> 113297.2035
A46: W52A009OG
A47: W52ASR009A | B47: =IF(B$8="ALWAR",HLOOKUP($A47,'[2]PROPOSED EX WORKS'!$D$2:$AE$90,24,0)) -> 107050 | C47: 1000 | D47: =IF(B$8="ALWAR",HLOOKUP($A47,[1]LD!$D$2:$AE$90,24,0)) -> 2330.726177 | E47: =(B47-C47-D47)*12.36% -> 12819.70224 | F47: =B47-C47-D47+E47 -> 116538.9761 | G47: =IF(G$8="HYDERABAD",HLOOKUP($A47,'[2]PROPOSED EX WORKS'!$D$2:$AE$90,25,0)) -> 103780 | H47: 1000 | I47: =IF(G$8="HYDERABAD",HLOOKUP($A47,[1]LD!$D$2:$AE$90,25,0)) -> 2258.859372 | J47: =(G47-H47-I47)*12.36% -> 12424.41298 | K47: =G47-H47-I47+J47 -> 112945.5536 | L47: =IF(L$8="BADDI",HLOOKUP($A47,'[2]PROPOSED EX WORKS'!$D$2:$AE$90,26,0)) -> 107100 | M47: 1000 | N47: =IF(L$8="BADDI",HLOOKUP($A47,[1]LD!$D$2:$AE$90,26,0)) -> 2331.825058 | O47: =(L47-M47-N47)*12.36% -> 12825.74642 | P47: =L47-M47-N47+O47 -> 116593.9214 | Q47: =IF(Q$8="UDMALPET",HLOOKUP($A47,'[2]PROPOSED EX WORKS'!$D$2:$AE$90,27,0)) -> 101500 | R47: 1000 | S47: =IF(Q$8="UDMALPET",HLOOKUP($A47,[1]LD!$D$2:$AE$90,27,0)) -> 2208.750408 | T47: =(Q47-R47-S47)*12.36% -> 12148.79845 | U47: =Q47-R47-S47+T47 -> 110440.048 | V47: =IF(V$8="BHAVNAGAR",HLOOKUP($A47,'[2]PROPOSED EX WORKS'!$D$2:$AE$90,28,0)) -> 104100 | W47: 1000 | X47: =IF(V$8="BHAVNAGAR",HLOOKUP($A47,[1]LD!$D$2:$AE$90,28,0)) -> 2265.89221 | Y47: =(V47-W47-X47)*12.36% -> 12463.09572 | Z47: =V47-W47-X47+Y47 -> 113297.2035
A48: W55A004A | B48: =IF(B$8="ALWAR",HLOOKUP($A48,'[2]PROPOSED EX WORKS'!$D$2:$AE$90,24,0)) -> 110050 | C48: 1000 | D48: =IF(B$8="ALWAR",HLOOKUP($A48,[1]LD!$D$2:$AE$90,24,0)) -> 2396.659025 | E48: =(B48-C48-D48)*12.36% -> 13182.35294 | F48: =B48-C48-D48+E48 -> 119835.6939 | G48: =IF(G$8="HYDERABAD",HLOOKUP($A48,'[2]PROPOSED EX WORKS'!$D$2:$AE$90,25,0)) -> 106780 | H48: 1000 | I48: =IF(G$8="HYDERABAD",HLOOKUP($A48,[1]LD!$D$2:$AE$90,25,0)) -> 2324.79222 | J48: =(G48-H48-I48)*12.36% -> 12787.06368 | K48: =G48-H48-I48+J48 -> 116242.2715 | L48: =IF(L$8="BADDI",HLOOKUP($A48,'[2]PROPOSED EX WORKS'!$D$2:$AE$90,26,0)) -> 110100 | M48: 1000 | N48: =IF(L$8="BADDI",HLOOKUP($A48,[1]LD!$D$2:$AE$90,26,0)) -> 2397.757906 | O48: =(L48-M48-N48)*12.36% -> 13188.39712 | P48: =L48-M48-N48+O48 -> 119890.6392 | Q48: =IF(Q$8="UDMALPET",HLOOKUP($A48,'[2]PROPOSED EX WORKS'!$D$2:$AE$90,27,0)) -> 104500 | R48: 1000 | S48: =IF(Q$8="UDMALPET",HLOOKUP($A48,[1]LD!$D$2:$AE$90,27,0)) -> 2274.683256 | T48: =(Q48-R48-S48)*12.36% -> 12511.44915 | U48: =Q48-R48-S48+T48 -> 113736.7659 | V48: =IF(V$8="BHAVNAGAR",HLOOKUP($A48,'[2]PROPOSED EX WORKS'!$D$2:$AE$90,28,0)) -> 107600 | W48: 1000 | X48: =IF(V$8="BHAVNAGAR",HLOOKUP($A48,[1]LD!$D$2:$AE$90,28,0)) -> 2342.813866 | Y48: =(V48-W48-X48)*12.36% -> 12886.18821 | Z48: =V48-W48-X48+Y48 -> 117143.3743
A49: LLDPE
A50: E20AN009A | B50: =IF(B$8="ALWAR",HLOOKUP($A50,'[2]PROPOSED EX WORKS'!$D$2:$AE$90,24,0)) -> 109810 | C50: 1000 | D50: =IF(B$8="ALWAR",HLOOKUP($A50,[1]LD!$D$2:$AE$90,24,0)) -> 2391.384397 | E50: =(B50-C50-D50)*12.36% -> 13153.34089 | F50: =B50-C50-D50+E50 -> 119571.9565 | G50: =IF(G$8="HYDERABAD",HLOOKUP($A50,'[2]PROPOSED EX WORKS'!$D$2:$AE$90,25,0)) -> 106540 | H50: 1000 | I50: =IF(G$8="HYDERABAD",HLOOKUP($A50,[1]LD!$D$2:$AE$90,25,0)) -> 2319.517593 | J50: =(G50-H50-I50)*12.36% -> 12758.05163 | K50: =G50-H50-I50+J50 -> 115978.534 | L50: =IF(L$8="BADDI",HLOOKUP($A50,'[2]PROPOSED EX WORKS'!$D$2:$AE$90,26,0)) -> 109860 | M50: 1000 | N50: =IF(L$8="BADDI",HLOOKUP($A50,[1]LD!$D$2:$AE$90,26,0)) -> 2392.483278 | O50: =(L50-M50-N50)*12.36% -> 13159.38507 | P50: =L50-M50-N50+O50 -> 119626.9018 | Q50: =IF(Q$8="UDMALPET",HLOOKUP($A50,'[2]PROPOSED EX WORKS'!$D$2:$AE$90,27,0)) -> 104260 | R50: 1000 | S50: =IF(Q$8="UDMALPET",HLOOKUP($A50,[1]LD!$D$2:$AE$90,27,0)) -> 2269.408628 | T50: =(Q50-R50-S50)*12.36% -> 12482.43709 | U50: =Q50-R50-S50+T50 -> 113473.0285 | V50: =IF(V$8="BHAVNAGAR",HLOOKUP($A50,'[2]PROPOSED EX WORKS'!$D$2:$AE$90,28,0)) -> 107500 | W50: 1000 | X50: =IF(V$8="BHAVNAGAR",HLOOKUP($A50,[1]LD!$D$2:$AE$90,28,0)) -> 2340.616104 | Y50: =(V50-W50-X50)*12.36% -> 12874.09985 | Z50: =V50-W50-X50+Y50 -> 117033.4837
A51: E20AN009OG
A52: E36A060A | B52: =IF(B$8="ALWAR",HLOOKUP($A52,'[2]PROPOSED EX WORKS'!$D$2:$AE$90,24,0)) -> 113850 | C52: 1000 | D52: =IF(B$8="ALWAR",HLOOKUP($A52,[1]LD!$D$2:$AE$90,24,0)) -> 2480.173966 | E52: =(B52-C52-D52)*12.36% -> 13641.7105 | F52: =B52-C52-D52+E52 -> 124011.5365 | G52: =IF(G$8="HYDERABAD",HLOOKUP($A52,'[2]PROPOSED EX WORKS'!$D$2:$AE$90,25,0)) -> 110580 | H52: 1000 | I52: =IF(G$8="HYDERABAD",HLOOKUP($A52,[1]LD!$D$2:$AE$90,25,0)) -> 2408.307161 | J52: =(G52-H52-I52)*12.36% -> 13246.42123 | K52: =G52-H52-I52+J52 -> 120418.1141 | L52: =IF(L$8="BADDI",HLOOKUP($A52,'[2]PROPOSED EX WORKS'!$D$2:$AE$90,26,0)) -> 113910 | M52: 1000 | N52: =IF(L$8="BADDI",HLOOKUP($A52,[1]LD!$D$2:$AE$90,26,0)) -> 2481.492623 | O52: =(L52-M52-N52)*12.36% -> 13648.96351 | P52: =L52-M52-N52+O52 -> 124077.4709 | Q52: =IF(Q$8="UDMALPET",HLOOKUP($A52,'[2]PROPOSED EX WORKS'!$D$2:$AE$90,27,0)) -> 108300 | R52: 1000 | S52: =IF(Q$8="UDMALPET",HLOOKUP($A52,[1]LD!$D$2:$AE$90,27,0)) -> 2358.198197 | T52: =(Q52-R52-S52)*12.36% -> 12970.8067 | U52: =Q52-R52-S52+T52 -> 117912.6085 | V52: =IF(V$8="BHAVNAGAR",HLOOKUP($A52,'[2]PROPOSED EX WORKS'!$D$2:$AE$90,28,0)) -> 111500 | W52: 1000 | X52: =IF(V$8="BHAVNAGAR",HLOOKUP($A52,[1]LD!$D$2:$AE$90,28,0)) -> 2428.526568 | Y52: =(V52-W52-X52)*12.36% -> 13357.63412 | Z52: =V52-W52-X52+Y52 -> 121429.1075
A53: E36A060OG
A54: FILM
A55: F20S009A | B55: =IF(B$8="ALWAR",HLOOKUP($A55,'[2]PROPOSED EX WORKS'!$D$2:$AE$90,24,0)) -> 111310 | C55: 1000 | D55: =IF(B$8="ALWAR",HLOOKUP($A55,[1]LD!$D$2:$AE$90,24,0)) -> 2424.350821 | E55: =(B55-C55-D55)*12.36% -> 13334.66624 | F55: =B55-C55-D55+E55 -> 121220.3154 | G55: =IF(G$8="HYDERABAD",HLOOKUP($A55,'[2]PROPOSED EX WORKS'!$D$2:$AE$90,25,0)) -> 108040 | H55: 1000 | I55: =IF(G$8="HYDERABAD",HLOOKUP($A55,[1]LD!$D$2:$AE$90,25,0)) -> 2352.484017 | J55: =(G55-H55-I55)*12.36% -> 12939.37698 | K55: =G55-H55-I55+J55 -> 117626.893 | L55: =IF(L$8="BADDI",HLOOKUP($A55,'[2]PROPOSED EX WORKS'!$D$2:$AE$90,26,0)) -> 111360 | M55: 1000 | N55: =IF(L$8="BADDI",HLOOKUP($A55,[1]LD!$D$2:$AE$90,26,0)) -> 2425.449702 | O55: =(L55-M55-N55)*12.36% -> 13340.71042 | P55: =L55-M55-N55+O55 -> 121275.2607 | Q55: =IF(Q$8="UDMALPET",HLOOKUP($A55,'[2]PROPOSED EX WORKS'!$D$2:$AE$90,27,0)) -> 105760 | R55: 1000 | S55: =IF(Q$8="UDMALPET",HLOOKUP($A55,[1]LD!$D$2:$AE$90,27,0)) -> 2302.375052 | T55: =(Q55-R55-S55)*12.36% -> 12663.76244 | U55: =Q55-R55-S55+T55 -> 115121.3874 | V55: =IF(V$8="BHAVNAGAR",HLOOKUP($A55,'[2]PROPOSED EX WORKS'!$D$2:$AE$90,28,0)) -> 109000 | W55: 1000 | X55: =IF(V$8="BHAVNAGAR",HLOOKUP($A55,[1]LD!$D$2:$AE$90,28,0)) -> 2373.582528 | Y55: =(V55-W55-X55)*12.36% -> 13055.4252 | Z55: =V55-W55-X55+Y55 -> 118681.8427
A56: F20S009OG
A57: D22S010A | B57: =IF(B$8="ALWAR",HLOOKUP($A57,'[2]PROPOSED EX WORKS'!$D$2:$AE$90,24,0)) -> 110310 | C57: 1000 | D57: =IF(B$8="ALWAR",HLOOKUP($A57,[1]LD!$D$2:$AE$90,24,0)) -> 2402.373205 | E57: =(B57-C57-D57)*12.36% -> 13213.78267 | F57: =B57-C57-D57+E57 -> 120121.4095 | G57: =IF(G$8="HYDERABAD",HLOOKUP($A57,'[2]PROPOSED EX WORKS'!$D$2:$AE$90,25,0)) -> 107040 | H57: 1000 | I57: =IF(G$8="HYDERABAD",HLOOKUP($A57,[1]LD!$D$2:$AE$90,25,0)) -> 2330.506401 | J57: =(G57-H57-I57)*12.36% -> 12818.49341 | K57: =G57-H57-I57+J57 -> 116527.987 | L57: =IF(L$8="BADDI",HLOOKUP($A57,'[2]PROPOSED EX WORKS'!$D$2:$AE$90,26,0)) -> 110360 | M57: 1000 | N57: =IF(L$8="BADDI",HLOOKUP($A57,[1]LD!$D$2:$AE$90,26,0)) -> 2403.472086 | O57: =(L57-M57-N57)*12.36% -> 13219.82685 | P57: =L57-M57-N57+O57 -> 120176.3548 | Q57: =IF(Q$8="UDMALPET",HLOOKUP($A57,'[2]PROPOSED EX WORKS'!$D$2:$AE$90,27,0)) -> 104760 | R57: 1000 | S57: =IF(Q$8="UDMALPET",HLOOKUP($A57,[1]LD!$D$2:$AE$90,27,0)) -> 2280.397436 | T57: =(Q57-R57-S57)*12.36% -> 12542.87888 | U57: =Q57-R57-S57+T57 -> 114022.4814 | V57: =IF(V$8="BHAVNAGAR",HLOOKUP($A57,'[2]PROPOSED EX WORKS'!$D$2:$AE$90,28,0)) -> 108000 | W57: 1000 | X57: =IF(V$8="BHAVNAGAR",HLOOKUP($A57,[1]LD!$D$2:$AE$90,28,0)) -> 2351.604912 | Y57: =(V57-W57-X57)*12.36% -> 12934.54163 | Z57: =V57-W57-X57+Y57 -> 117582.9367
A58: ROTO
A59: R35A042A | B59: =IF(B$8="ALWAR",HLOOKUP($A59,'[2]PROPOSED EX WORKS'!$D$2:$AE$90,24,0)) -> 110820 | C59: 1000 | D59: =IF(B$8="ALWAR",HLOOKUP($A59,[1]LD!$D$2:$AE$90,24,0)) -> 2413.581789 | E59: =(B59-C59-D59)*12.36% -> 13275.43329 | F59: =B59-C59-D59+E59 -> 120681.8515 | G59: =IF(G$8="HYDERABAD",HLOOKUP($A59,'[2]PROPOSED EX WORKS'!$D$2:$AE$90,25,0)) -> 107590 | H59: 1000 | I59: =IF(G$8="HYDERABAD",HLOOKUP($A59,[1]LD!$D$2:$AE$90,25,0)) -> 2342.594089 | J59: =(G59-H59-I59)*12.36% -> 12884.97937 | K59: =G59-H59-I59+J59 -> 117132.3853 | L59: =IF(L$8="BADDI",HLOOKUP($A59,'[2]PROPOSED EX WORKS'!$D$2:$AE$90,26,0)) -> 110830 | M59: 1000 | N59: =IF(L$8="BADDI",HLOOKUP($A59,[1]LD!$D$2:$AE$90,26,0)) -> 2413.801565 | O59: =(L59-M59-N59)*12.36% -> 13276.64213 | P59: =L59-M59-N59+O59 -> 120692.8406 | Q59: =IF(Q$8="UDMALPET",HLOOKUP($A59,'[2]PROPOSED EX WORKS'!$D$2:$AE$90,27,0)) -> 105360 | R59: 1000 | S59: =IF(Q$8="UDMALPET",HLOOKUP($A59,[1]LD!$D$2:$AE$90,27,0)) -> 2293.584006 | T59: =(Q59-R59-S59)*12.36% -> 12615.40902 | U59: =Q59-R59-S59+T59 -> 114681.825 | V59: =IF(V$8="BHAVNAGAR",HLOOKUP($A59,'[2]PROPOSED EX WORKS'!$D$2:$AE$90,28,0)) -> 108620 | W59: 1000 | X59: =IF(V$8="BHAVNAGAR",HLOOKUP($A59,[1]LD!$D$2:$AE$90,28,0)) -> 2365.231034 | Y59: =(V59-W59-X59)*12.36% -> 13009.48944 | Z59: =V59-W59-X59+Y59 -> 118264.2584
A60: R35U042A | B60: =IF(B$8="ALWAR",HLOOKUP($A60,'[2]PROPOSED EX WORKS'!$D$2:$AE$90,24,0)) -> 111680 | C60: 1000 | D60: =IF(B$8="ALWAR",HLOOKUP($A60,[1]LD!$D$2:$AE$90,24,0)) -> 2432.482539 | E60: =(B60-C60-D60)*12.36% -> 13379.39316 | F60: =B60-C60-D60+E60 -> 121626.9106 | G60: =IF(G$8="HYDERABAD",HLOOKUP($A60,'[2]PROPOSED EX WORKS'!$D$2:$AE$90,25,0)) -> 108450 | H60: 1000 | I60: =IF(G$8="HYDERABAD",HLOOKUP($A60,[1]LD!$D$2:$AE$90,25,0)) -> 2361.494839 | J60: =(G60-H60-I60)*12.36% -> 12988.93924 | K60: =G60-H60-I60+J60 -> 118077.4444 | L60: =IF(L$8="BADDI",HLOOKUP($A60,'[2]PROPOSED EX WORKS'!$D$2:$AE$90,26,0)) -> 111690 | M60: 1000 | N60: =IF(L$8="BADDI",HLOOKUP($A60,[1]LD!$D$2:$AE$90,26,0)) -> 2432.702315 | O60: =(L60-M60-N60)*12.36% -> 13380.60199 | P60: =L60-M60-N60+O60 -> 121637.8997 | Q60: =IF(Q$8="UDMALPET",HLOOKUP($A60,'[2]PROPOSED EX WORKS'!$D$2:$AE$90,27,0)) -> 106220 | R60: 1000 | S60: =IF(Q$8="UDMALPET",HLOOKUP($A60,[1]LD!$D$2:$AE$90,27,0)) -> 2312.484756 | T60: =(Q60-R60-S60)*12.36% -> 12719.36888 | U60: =Q60-R60-S60+T60 -> 115626.8841 | V60: =IF(V$8="BHAVNAGAR",HLOOKUP($A60,'[2]PROPOSED EX WORKS'!$D$2:$AE$90,28,0)) -> 109480 | W60: 1000 | X60: =IF(V$8="BHAVNAGAR",HLOOKUP($A60,[1]LD!$D$2:$AE$90,28,0)) -> 2384.131784 | Y60: =(V60-W60-X60)*12.36% -> 13113.44931 | Z60: =V60-W60-X60+Y60 -> 119209.3175
A62: NOTE : | B62: THE PRICES OF OLD PLANT & NEW PLANT ARE SAME FROM DIRECT SALE

Sheet STOCK POINT PRICE
A2: UNITED BROTHERS
A3: CONSIGNMENT STOCKIST OF GAIL (INDIA) LTD
A4: 301,HERITAGE PLAZA, R.S.MAHARAJ MARG,( TELI GALLI CROSS LANE), ANDHERI (E), MUMBAI - 400 069
A5: TEL: 26844612(4 LINES) FAX: 26822914 E-MAIL:info@unibrothers.com,prashant@unibrothers.com,jyoti@unibrothers.com
A6: PRICE OF HDPE "G-LEX / G-LENE " W.E.F 3RD APRIL 2014
C8: DAMAN | D8: BHIWANDI | E8: PUNE
C9: ST.PT. | D9: ST.PT. | E9: ST.PT. | G9: FREIGHT
B10: BM | G10: ALWAR | H10: 985.53
B11: B52A003A | C11: 121300 | D11: 121130 | E11: 121240 | G11: BHAVNAGAR | H11: 2024.85
B12: B52A003NA | C12: 120730 | D12: 120560 | E12: 121240 | G12: BADDI | H12: 1758.96
B13: B63A003A | C13: 121300 | D13: 121130 | E13: 121240 | G13: DAMAN | H13: 2048.77
B14: B63A003NA | C14: 120730 | D14: 120560 | E14: 121240 | G14: SILVASSA | H14: 2061.17
B15: B55HM0003A | C15: 125730 | D15: 125630 | E15: 125770 | G15: BHIWANDI | H15: 2537.23
B16: B55HM0003NA | C16: 125160 | D16: 125060 | E16: 125770 | G16: JALGAON | H16: 1959.23
B17: B53EA0035A | C17: 121860 | D17: 121690 | E17: 121800 | G17: NAGPUR | H17: 1624.98
B18: SHETG | G18: SANGLI | H18: 3069.18
B19: E45A003A | C19: 120230 | D19: 120040 | E19: 120220 | G19: UMBERGAON | H19: 2016.35
G20: PUNE | H20: 2640.33
B21: EXTR | G21: WAI | H21: 2825.33
B22: E52A003A | C22: 122110 | D22: 121910 | E22: 122100 | G22: HYDERABAD | H22: 3199.9
B23: E52A003NA | C23: 121540 | D23: 121340 | E23: 122100 | G23: NASIK | H23: 2282.96
B24: E52U003A | C24: 123540 | D24: 123350 | E24: 123530 | G24: AHMEDNAGAR | H24: 2446.93
B25: E52U003NA | C25: 122970 | D25: 122780 | E25: 123530 | G25: ROHA | H25: 2814.81
B26: HM FILM | G26: AURANGABAD | H26: 2247.23
B27: F55HM0003A | C27: 120730 | D27: 121190 | E27: 121330 | G27: TARAPUR | H27: 2610.9
B28: F55HM0003NA | C28: 120160 | D28: 120620 | E28: 121330 | G28: THANE | H28: 2581.47
B29: IM HIGH | G29: SOLAPUR | H29: 2833.73
B30: I50A180A | C30: 117160 | D30: 117130 | E30: 117260 | G30: BAROJRA | H30: 2507.05
G31: HOSUR | H31: 4749.82
B32: IM LOW | G32: JAMMU | H32: 2573.77
B33: I60A080A | C33: 118700 | D33: 118520 | E33: 118700 | G33: NOIDA | H33: 1210.75
G34: PONDICHERRY | H34: 5162.96
B35: IM-L-UV | G35: UDMALPET | H35: 5424.7
B36: I60U080A | C36: 120430 | D36: 120240 | E36: 120420 | G36: KOLHAPUR | H36: 3163.78
G37: BARODA
B38: PIPE (PE80)
B39: P54A001A | C39: 126030 | D39: 125920 | E39: 126060
B40: P54A001NA | C40: 125460 | D40: 125350 | E40: 126060
B41: PIPE (PE100)
B42: P52A003A | C42: 128270 | D42: 128170 | E42: 128310
B43: P52A003NA | C43: 127700 | D43: 127600 | E43: 128310
B44: RAFFIA
B45: W50A009A | C45: 117720 | D45: 117530 | E45: 117710 | G45: QUANTITY DISCOUNT
B46: T50A010A | C46: 117720 | D46: 117530 | E46: 117710
B47: MF | G47: QTY MTS | H47: AMT
B48: W55A004A | C48: 121660 | D48: 121460 | E48: 121650 | G48: >=10 | H48: 300
B49: W55A004NA | C49: 121090 | D49: 120890 | E49: 121650 | G49: >=30 | H49: 400
B50: W52A009A | C50: 118280 | D50: 118090 | E50: 118280 | G50: >=50 | H50: 500
B51: W52A009NA | C51: 117710 | D51: 117520 | E51: 118280 | G51: >=100 | H51: 600
B52: W52ASR009A | C52: 118280 | D52: 118090 | E52: 118280 | G52: >=200 | H52: 700
B53: W52ASR009NA | C53: 117710 | D53: 117520 | E53: 118280 | G53: >=300 | H53: 750
B54: LLDPE | G54: >=400 | H54: 800
G55: >=600 | H55: 900
B56: E36A060A | C56: 125930 | D56: 125740 | E56: 125930
B58: FILM
B59: F20S009A | C59: 123070 | D59: 122890 | E59: 123060
B60: F20S009OG
B61: D22S010A | C61: 121950 | D61: 121770 | E61: 121940
B62: E20AN009A | C62: 121390 | D62: 121200 | E62: 121380
B63: ROTO
B64: R35A042A | C64: 122530 | D64: 122430 | E64: 122570
B65: R35U042A | C65: 123500 | D65: 123400 | E65: 123530
B67: * Ex Works Cash Discount (Rs.1000/-)
B68: 1. Freight & Transportation will be extra and at buyers account, on Ex-Works sale
B69: 2. The price of B Grade will be Rs.500/- PMT less than Prime Grade for Ex.Works sale and Rs.580/- P.M.T. less for Stock Point Sales.
B70: 3. The price of Old Plant & New Plant are same from Direct Sale
B71: 4. The price of Standardised Grade will be Rs.500/-PMT less than Prime Grade for Ex.Wks.sale and Rs.580/-P.M.T.less for St.Pt. Sales.
B72: 5. 14 days interest free credit is applicable in lieu of this credit a Cash Discount of Rs.800/- PMT is offered in the
B73: basic price in case of Cash Payment in Ex-Works Sale.
B74: 6. Stock point Price is net price
B75: 7. Cash/quantity Discount is not applicable for OG & PS Grade.
B76: 8. CST & Transportation will be charged extra & at buyers account on Exworks sale
B77: 9. CST / Vat & Transporation will be charged extra & at buyers account on Stock Point sale
B78: 10. The prices are subject to change without any prior notice those prevailing at the time of delivery will be applicable.
B79: 11. C-Form is mandatory for all Ex-works Sales w.e.f.1st April'2002.
B80: 12. Gas Authority Of India Ltd. changed to GAIL (India) Ltd. w.e.f. 1st January 2003.
B81: 13. CST @ 2% WILL BE APPLICABLE
B82: 14. Payment will be accepted through RTGS only.
B84: JYOTI | C84: 9930945123
B85: ASHISH | C85: 9029914092
